{"text_format":"1","workbook":"xlsx","n_sheets":2,"sheets":["Клиенты  - адреса","Справочник кодов"],"not_rendered":{"charts":0,"images":5,"macros":1,"external_links":0,"defined_names":28,"comments":0,"pivot_tables":0},"unopened":[],"bounds":{"document_bytes":16777216,"sheet_cells":100000,"rows_first":2000,"rows_last":500,"rows_between":2000,"halvings":0,"cell_chars":16384,"cell_head_chars":4096},"cells_cut":0,"cells_raw":0,"read":"whole","date_system":"1900"}

{"sheet":"Клиенты  - адреса","index":0,"n_rows":9,"n_cols":4,"rows_kept":9,"cut":false,"hidden":false,"merged":[]}
["Предприятие","ОКПО","Данные",{"$f":"IF(OR(IFERROR(FIND(UPPER(LEFT(тп&INDEX(коды,SUM(IF(IFERROR(FIND(тп&UPPER(LEFT(коды,FIND(\" \",коды)-1)),INDEX(данные,ROW())),0)>0,ROW(коды)))),FIND(\" \", тп&INDEX(коды,SUM(IF(IFERROR(FIND(тп&UPPER(LEFT(коды,FIND(\" \",коды)-1)),INDEX(данные,ROW())),0)>0,ROW(коды)))))-1)),INDEX(данные,ROW())),0)>0),RIGHT(тп&INDEX(коды,SUM(IF(IFERROR(FIND(тп&UPPER(LEFT(коды,FIND(\" \",коды)-1)),INDEX(данные,ROW())),0)>0,ROW(коды)))),LEN(тп&INDEX(коды,SUM(IF(IFERROR(FIND(тп&UPPER(LEFT(коды,FIND(\" \",коды)-1)),INDEX(данные,ROW())),0)>0,ROW(коды)))))+1-MIN(IFERROR(FIND({0,1,2,3,4,5,6,7,8,9},тп&INDEX(коды,SUM(IF(IFERROR(FIND(тп&UPPER(LEFT(коды,FIND(\" \",коды)-1)),INDEX(данные,ROW())),0)>0,ROW(коды))))),\"\"))),\"\")","v":""}]
["\"ЛЬВІВСЬКИЙ ХІМІЧНИЙ ЗАВОД\"",5761873," АДРЕС М.ЛЬВІВ, ГАЛИЦЬКИЙ Р-Н ВУЛ. РАХІВСЬКА БУД. 16 ТЕЛЕФОН 422324",{"$f":"IF(OR(IFERROR(FIND(UPPER(LEFT(тп&INDEX(коды,SUM(IF(IFERROR(FIND(тп&UPPER(LEFT(коды,FIND(\" \",коды)-1)),INDEX(данные,ROW())),0)>0,ROW(коды)))),FIND(\" \", тп&INDEX(коды,SUM(IF(IFERROR(FIND(тп&UPPER(LEFT(коды,FIND(\" \",коды)-1)),INDEX(данные,ROW())),0)>0,ROW(коды)))))-1)),INDEX(данные,ROW())),0)>0),RIGHT(тп&INDEX(коды,SUM(IF(IFERROR(FIND(тп&UPPER(LEFT(коды,FIND(\" \",коды)-1)),INDEX(данные,ROW())),0)>0,ROW(коды)))),LEN(тп&INDEX(коды,SUM(IF(IFERROR(FIND(тп&UPPER(LEFT(коды,FIND(\" \",коды)-1)),INDEX(данные,ROW())),0)>0,ROW(коды)))))+1-MIN(IFERROR(FIND({0,1,2,3,4,5,6,7,8,9},тп&INDEX(коды,SUM(IF(IFERROR(FIND(тп&UPPER(LEFT(коды,FIND(\" \",коды)-1)),INDEX(данные,ROW())),0)>0,ROW(коды))))),\"\"))),\"\")","v":"0322"}]
["\"ПРИВАТНЕ ЗАГОТІВЕЛЬНЕ ВИРОБНИЧО-КОМЕРЦІЙНЕ ПІДПРИЄМСТВО \"ЕЛІТА\"",22187424," АДРЕС ІВАНО-ФРАНКІВСЬКА ОБЛ., ГАЛИЦЬКИЙ Р-Н, М.ГАЛИЧ ВУЛ. ГОРА БУД. 3 ТЕЛЕФОН 22023",{"$f":"IF(OR(IFERROR(FIND(UPPER(LEFT(тп&INDEX(коды,SUM(IF(IFERROR(FIND(тп&UPPER(LEFT(коды,FIND(\" \",коды)-1)),INDEX(данные,ROW())),0)>0,ROW(коды)))),FIND(\" \", тп&INDEX(коды,SUM(IF(IFERROR(FIND(тп&UPPER(LEFT(коды,FIND(\" \",коды)-1)),INDEX(данные,ROW())),0)>0,ROW(коды)))))-1)),INDEX(данные,ROW())),0)>0),RIGHT(тп&INDEX(коды,SUM(IF(IFERROR(FIND(тп&UPPER(LEFT(коды,FIND(\" \",коды)-1)),INDEX(данные,ROW())),0)>0,ROW(коды)))),LEN(тп&INDEX(коды,SUM(IF(IFERROR(FIND(тп&UPPER(LEFT(коды,FIND(\" \",коды)-1)),INDEX(данные,ROW())),0)>0,ROW(коды)))))+1-MIN(IFERROR(FIND({0,1,2,3,4,5,6,7,8,9},тп&INDEX(коды,SUM(IF(IFERROR(FIND(тп&UPPER(LEFT(коды,FIND(\" \",коды)-1)),INDEX(данные,ROW())),0)>0,ROW(коды))))),\"\"))),\"\")","v":""}]
["АГРОПРОМИСЛОВЕ ТОВАРИСТВО З ОБМЕЖЕНОЮ ВІДПОВІДАЛЬНІСТЮ ФІРМА \"ВІВАТ\"",24236345," АДРЕС ДНІПРОПЕТРОВСЬКА ОБЛ., ВЕРХНЬОДНІПРОВСЬКИЙ Р-Н, М.ВЕРХНЬОДНІПРОВСЬК ТЕР-Я БУД. А/Я10 ТЕЛЕФОН 31629",{"$f":"IF(OR(IFERROR(FIND(UPPER(LEFT(тп&INDEX(коды,SUM(IF(IFERROR(FIND(тп&UPPER(LEFT(коды,FIND(\" \",коды)-1)),INDEX(данные,ROW())),0)>0,ROW(коды)))),FIND(\" \", тп&INDEX(коды,SUM(IF(IFERROR(FIND(тп&UPPER(LEFT(коды,FIND(\" \",коды)-1)),INDEX(данные,ROW())),0)>0,ROW(коды)))))-1)),INDEX(данные,ROW())),0)>0),RIGHT(тп&INDEX(коды,SUM(IF(IFERROR(FIND(тп&UPPER(LEFT(коды,FIND(\" \",коды)-1)),INDEX(данные,ROW())),0)>0,ROW(коды)))),LEN(тп&INDEX(коды,SUM(IF(IFERROR(FIND(тп&UPPER(LEFT(коды,FIND(\" \",коды)-1)),INDEX(данные,ROW())),0)>0,ROW(коды)))))+1-MIN(IFERROR(FIND({0,1,2,3,4,5,6,7,8,9},тп&INDEX(коды,SUM(IF(IFERROR(FIND(тп&UPPER(LEFT(коды,FIND(\" \",коды)-1)),INDEX(данные,ROW())),0)>0,ROW(коды))))),\"\"))),\"\")","v":""}]
["ВИРОБНИЧО-КОМЕРЦІЙНА ФІРМА У ФОРМІ ТОВАРИСТВА З ОБМЕЖЕНОЮ ВІДПОВІДАЛЬНІСТЮ \"ТИТАН ЛТД\"",22104771," АДРЕС М.УЖГОРОД ВУЛ. ПІДГРАДСЬКА БУД. 33 ТЕЛЕФОН 32481",{"$f":"IF(OR(IFERROR(FIND(UPPER(LEFT(тп&INDEX(коды,SUM(IF(IFERROR(FIND(тп&UPPER(LEFT(коды,FIND(\" \",коды)-1)),INDEX(данные,ROW())),0)>0,ROW(коды)))),FIND(\" \", тп&INDEX(коды,SUM(IF(IFERROR(FIND(тп&UPPER(LEFT(коды,FIND(\" \",коды)-1)),INDEX(данные,ROW())),0)>0,ROW(коды)))))-1)),INDEX(данные,ROW())),0)>0),RIGHT(тп&INDEX(коды,SUM(IF(IFERROR(FIND(тп&UPPER(LEFT(коды,FIND(\" \",коды)-1)),INDEX(данные,ROW())),0)>0,ROW(коды)))),LEN(тп&INDEX(коды,SUM(IF(IFERROR(FIND(тп&UPPER(LEFT(коды,FIND(\" \",коды)-1)),INDEX(данные,ROW())),0)>0,ROW(коды)))))+1-MIN(IFERROR(FIND({0,1,2,3,4,5,6,7,8,9},тп&INDEX(коды,SUM(IF(IFERROR(FIND(тп&UPPER(LEFT(коды,FIND(\" \",коды)-1)),INDEX(данные,ROW())),0)>0,ROW(коды))))),\"\"))),\"\")","v":"312, 03122"}]
["ВІДКРИТЕ АКЦІОНЕРНЕ ТОВАРИСТВО \"АВТОТРАНСПОРТНЕ ПІДПРИЄМСТВО 17461\"",3119581," АДРЕС ЧЕРНІГІВСЬКА ОБЛ., М.ПРИЛУКИ ВУЛ. ДЗЕРЖИНСЬКОГО БУД. 127 ТЕЛЕФОН 52318",{"$f":"IF(OR(IFERROR(FIND(UPPER(LEFT(тп&INDEX(коды,SUM(IF(IFERROR(FIND(тп&UPPER(LEFT(коды,FIND(\" \",коды)-1)),INDEX(данные,ROW())),0)>0,ROW(коды)))),FIND(\" \", тп&INDEX(коды,SUM(IF(IFERROR(FIND(тп&UPPER(LEFT(коды,FIND(\" \",коды)-1)),INDEX(данные,ROW())),0)>0,ROW(коды)))))-1)),INDEX(данные,ROW())),0)>0),RIGHT(тп&INDEX(коды,SUM(IF(IFERROR(FIND(тп&UPPER(LEFT(коды,FIND(\" \",коды)-1)),INDEX(данные,ROW())),0)>0,ROW(коды)))),LEN(тп&INDEX(коды,SUM(IF(IFERROR(FIND(тп&UPPER(LEFT(коды,FIND(\" \",коды)-1)),INDEX(данные,ROW())),0)>0,ROW(коды)))))+1-MIN(IFERROR(FIND({0,1,2,3,4,5,6,7,8,9},тп&INDEX(коды,SUM(IF(IFERROR(FIND(тп&UPPER(LEFT(коды,FIND(\" \",коды)-1)),INDEX(данные,ROW())),0)>0,ROW(коды))))),\"\"))),\"\")","v":""}]
["фывапролдж","00000000","АДРЕС М.ХМЕЛЬНИЦЬКИЙ ПРОВ. СТЕЛЬМАХА БУД. 5 ТЕЛЕФОН 727515",{"$f":"IF(OR(IFERROR(FIND(UPPER(LEFT(тп&INDEX(коды,SUM(IF(IFERROR(FIND(тп&UPPER(LEFT(коды,FIND(\" \",коды)-1)),INDEX(данные,ROW())),0)>0,ROW(коды)))),FIND(\" \", тп&INDEX(коды,SUM(IF(IFERROR(FIND(тп&UPPER(LEFT(коды,FIND(\" \",коды)-1)),INDEX(данные,ROW())),0)>0,ROW(коды)))))-1)),INDEX(данные,ROW())),0)>0),RIGHT(тп&INDEX(коды,SUM(IF(IFERROR(FIND(тп&UPPER(LEFT(коды,FIND(\" \",коды)-1)),INDEX(данные,ROW())),0)>0,ROW(коды)))),LEN(тп&INDEX(коды,SUM(IF(IFERROR(FIND(тп&UPPER(LEFT(коды,FIND(\" \",коды)-1)),INDEX(данные,ROW())),0)>0,ROW(коды)))))+1-MIN(IFERROR(FIND({0,1,2,3,4,5,6,7,8,9},тп&INDEX(коды,SUM(IF(IFERROR(FIND(тп&UPPER(LEFT(коды,FIND(\" \",коды)-1)),INDEX(данные,ROW())),0)>0,ROW(коды))))),\"\"))),\"\")","v":"0382, 03822"}]
[null,null,null,{"$f":"IF(OR(IFERROR(FIND(UPPER(LEFT(тп&INDEX(коды,SUM(IF(IFERROR(FIND(тп&UPPER(LEFT(коды,FIND(\" \",коды)-1)),INDEX(данные,ROW())),0)>0,ROW(коды)))),FIND(\" \", тп&INDEX(коды,SUM(IF(IFERROR(FIND(тп&UPPER(LEFT(коды,FIND(\" \",коды)-1)),INDEX(данные,ROW())),0)>0,ROW(коды)))))-1)),INDEX(данные,ROW())),0)>0),RIGHT(тп&INDEX(коды,SUM(IF(IFERROR(FIND(тп&UPPER(LEFT(коды,FIND(\" \",коды)-1)),INDEX(данные,ROW())),0)>0,ROW(коды)))),LEN(тп&INDEX(коды,SUM(IF(IFERROR(FIND(тп&UPPER(LEFT(коды,FIND(\" \",коды)-1)),INDEX(данные,ROW())),0)>0,ROW(коды)))))+1-MIN(IFERROR(FIND({0,1,2,3,4,5,6,7,8,9},тп&INDEX(коды,SUM(IF(IFERROR(FIND(тп&UPPER(LEFT(коды,FIND(\" \",коды)-1)),INDEX(данные,ROW())),0)>0,ROW(коды))))),\"\"))),\"\")","v":""}]
[null,null,"М.ЛЬВIВ",{"$f":"IF(OR(IFERROR(FIND(UPPER(LEFT(тп&INDEX(коды,SUM(IF(IFERROR(FIND(тп&UPPER(LEFT(коды,FIND(\" \",коды)-1)),INDEX(данные,ROW())),0)>0,ROW(коды)))),FIND(\" \", тп&INDEX(коды,SUM(IF(IFERROR(FIND(тп&UPPER(LEFT(коды,FIND(\" \",коды)-1)),INDEX(данные,ROW())),0)>0,ROW(коды)))))-1)),INDEX(данные,ROW())),0)>0),RIGHT(тп&INDEX(коды,SUM(IF(IFERROR(FIND(тп&UPPER(LEFT(коды,FIND(\" \",коды)-1)),INDEX(данные,ROW())),0)>0,ROW(коды)))),LEN(тп&INDEX(коды,SUM(IF(IFERROR(FIND(тп&UPPER(LEFT(коды,FIND(\" \",коды)-1)),INDEX(данные,ROW())),0)>0,ROW(коды)))))+1-MIN(IFERROR(FIND({0,1,2,3,4,5,6,7,8,9},тп&INDEX(коды,SUM(IF(IFERROR(FIND(тп&UPPER(LEFT(коды,FIND(\" \",коды)-1)),INDEX(данные,ROW())),0)>0,ROW(коды))))),\"\"))),\"\")","v":""}]

{"sheet":"Справочник кодов","index":1,"n_rows":464,"n_cols":2,"rows_kept":464,"cut":false,"hidden":false,"merged":[]}
["Аграрне (АРК) – 0652",{"$f":"IFERROR(RIGHT(INDEX(данные,SUM(IF(IFERROR(FIND(тп&INDEX(UPPER(LEFT(коды,FIND(\" \",коды)-1)),ROW()),данные),0)>0,ROW(данные)))),LEN(INDEX(данные,SUM(IF(IFERROR(FIND(тп&INDEX(UPPER(LEFT(коды,FIND(\" \",коды)-1)),ROW()),данные),0)>0,ROW(данные)))))-FIND(\"ТЕЛЕФОН\",INDEX(данные,SUM(IF(IFERROR(FIND(тп&INDEX(UPPER(LEFT(коды,FIND(\" \",коды)-1)),ROW()),данные),0)>0,ROW(данные)))))-7),\"\")","v":""}]
["Аерофлотський (АРК) – 0652",{"$f":"IFERROR(RIGHT(INDEX(данные,SUM(IF(IFERROR(FIND(тп&INDEX(UPPER(LEFT(коды,FIND(\" \",коды)-1)),ROW()),данные),0)>0,ROW(данные)))),LEN(INDEX(данные,SUM(IF(IFERROR(FIND(тп&INDEX(UPPER(LEFT(коды,FIND(\" \",коды)-1)),ROW()),данные),0)>0,ROW(данные)))))-FIND(\"ТЕЛЕФОН\",INDEX(данные,SUM(IF(IFERROR(FIND(тп&INDEX(UPPER(LEFT(коды,FIND(\" \",коды)-1)),ROW()),данные),0)>0,ROW(данные)))))-7),\"\")","v":""}]
["Азовське (АРК) – 06564",{"$f":"IFERROR(RIGHT(INDEX(данные,SUM(IF(IFERROR(FIND(тп&INDEX(UPPER(LEFT(коды,FIND(\" \",коды)-1)),ROW()),данные),0)>0,ROW(данные)))),LEN(INDEX(данные,SUM(IF(IFERROR(FIND(тп&INDEX(UPPER(LEFT(коды,FIND(\" \",коды)-1)),ROW()),данные),0)>0,ROW(данные)))))-FIND(\"ТЕЛЕФОН\",INDEX(данные,SUM(IF(IFERROR(FIND(тп&INDEX(UPPER(LEFT(коды,FIND(\" \",коды)-1)),ROW()),данные),0)>0,ROW(данные)))))-7),\"\")","v":""}]
[null,{"$f":"IFERROR(RIGHT(INDEX(данные,SUM(IF(IFERROR(FIND(тп&INDEX(UPPER(LEFT(коды,FIND(\" \",коды)-1)),ROW()),данные),0)>0,ROW(данные)))),LEN(INDEX(данные,SUM(IF(IFERROR(FIND(тп&INDEX(UPPER(LEFT(коды,FIND(\" \",коды)-1)),ROW()),данные),0)>0,ROW(данные)))))-FIND(\"ТЕЛЕФОН\",INDEX(данные,SUM(IF(IFERROR(FIND(тп&INDEX(UPPER(LEFT(коды,FIND(\" \",коды)-1)),ROW()),данные),0)>0,ROW(данные)))))-7),\"\")","v":""}]
["Бабаї (Харк.) – 0572",{"$f":"IFERROR(RIGHT(INDEX(данные,SUM(IF(IFERROR(FIND(тп&INDEX(UPPER(LEFT(коды,FIND(\" \",коды)-1)),ROW()),данные),0)>0,ROW(данные)))),LEN(INDEX(данные,SUM(IF(IFERROR(FIND(тп&INDEX(UPPER(LEFT(коды,FIND(\" \",коды)-1)),ROW()),данные),0)>0,ROW(данные)))))-FIND(\"ТЕЛЕФОН\",INDEX(данные,SUM(IF(IFERROR(FIND(тп&INDEX(UPPER(LEFT(коды,FIND(\" \",коды)-1)),ROW()),данные),0)>0,ROW(данные)))))-7),\"\")","v":""}]
["Багерове (АРК) – 06557",{"$f":"IFERROR(RIGHT(INDEX(данные,SUM(IF(IFERROR(FIND(тп&INDEX(UPPER(LEFT(коды,FIND(\" \",коды)-1)),ROW()),данные),0)>0,ROW(данные)))),LEN(INDEX(данные,SUM(IF(IFERROR(FIND(тп&INDEX(UPPER(LEFT(коды,FIND(\" \",коды)-1)),ROW()),данные),0)>0,ROW(данные)))))-FIND(\"ТЕЛЕФОН\",INDEX(данные,SUM(IF(IFERROR(FIND(тп&INDEX(UPPER(LEFT(коды,FIND(\" \",коды)-1)),ROW()),данные),0)>0,ROW(данные)))))-7),\"\")","v":""}]
["Балабине (Зап.) – 0612",{"$f":"IFERROR(RIGHT(INDEX(данные,SUM(IF(IFERROR(FIND(тп&INDEX(UPPER(LEFT(коды,FIND(\" \",коды)-1)),ROW()),данные),0)>0,ROW(данные)))),LEN(INDEX(данные,SUM(IF(IFERROR(FIND(тп&INDEX(UPPER(LEFT(коды,FIND(\" \",коды)-1)),ROW()),данные),0)>0,ROW(данные)))))-FIND(\"ТЕЛЕФОН\",INDEX(данные,SUM(IF(IFERROR(FIND(тп&INDEX(UPPER(LEFT(коды,FIND(\" \",коды)-1)),ROW()),данные),0)>0,ROW(данные)))))-7),\"\")","v":""}]
["Балаклія (Харк.) – 05749",{"$f":"IFERROR(RIGHT(INDEX(данные,SUM(IF(IFERROR(FIND(тп&INDEX(UPPER(LEFT(коды,FIND(\" \",коды)-1)),ROW()),данные),0)>0,ROW(данные)))),LEN(INDEX(данные,SUM(IF(IFERROR(FIND(тп&INDEX(UPPER(LEFT(коды,FIND(\" \",коды)-1)),ROW()),данные),0)>0,ROW(данные)))))-FIND(\"ТЕЛЕФОН\",INDEX(данные,SUM(IF(IFERROR(FIND(тп&INDEX(UPPER(LEFT(коды,FIND(\" \",коды)-1)),ROW()),данные),0)>0,ROW(данные)))))-7),\"\")","v":""}]
[null,{"$f":"IFERROR(RIGHT(INDEX(данные,SUM(IF(IFERROR(FIND(тп&INDEX(UPPER(LEFT(коды,FIND(\" \",коды)-1)),ROW()),данные),0)>0,ROW(данные)))),LEN(INDEX(данные,SUM(IF(IFERROR(FIND(тп&INDEX(UPPER(LEFT(коды,FIND(\" \",коды)-1)),ROW()),данные),0)>0,ROW(данные)))))-FIND(\"ТЕЛЕФОН\",INDEX(данные,SUM(IF(IFERROR(FIND(тп&INDEX(UPPER(LEFT(коды,FIND(\" \",коды)-1)),ROW()),данные),0)>0,ROW(данные)))))-7),\"\")","v":""}]
["Валки (Харк.) – 05753",{"$f":"IFERROR(RIGHT(INDEX(данные,SUM(IF(IFERROR(FIND(тп&INDEX(UPPER(LEFT(коды,FIND(\" \",коды)-1)),ROW()),данные),0)>0,ROW(данные)))),LEN(INDEX(данные,SUM(IF(IFERROR(FIND(тп&INDEX(UPPER(LEFT(коды,FIND(\" \",коды)-1)),ROW()),данные),0)>0,ROW(данные)))))-FIND(\"ТЕЛЕФОН\",INDEX(данные,SUM(IF(IFERROR(FIND(тп&INDEX(UPPER(LEFT(коды,FIND(\" \",коды)-1)),ROW()),данные),0)>0,ROW(данные)))))-7),\"\")","v":""}]
["Вапнярка (Він.) – 04350",{"$f":"IFERROR(RIGHT(INDEX(данные,SUM(IF(IFERROR(FIND(тп&INDEX(UPPER(LEFT(коды,FIND(\" \",коды)-1)),ROW()),данные),0)>0,ROW(данные)))),LEN(INDEX(данные,SUM(IF(IFERROR(FIND(тп&INDEX(UPPER(LEFT(коды,FIND(\" \",коды)-1)),ROW()),данные),0)>0,ROW(данные)))))-FIND(\"ТЕЛЕФОН\",INDEX(данные,SUM(IF(IFERROR(FIND(тп&INDEX(UPPER(LEFT(коды,FIND(\" \",коды)-1)),ROW()),данные),0)>0,ROW(данные)))))-7),\"\")","v":""}]
["Варва (Черніг.) – 04636",{"$f":"IFERROR(RIGHT(INDEX(данные,SUM(IF(IFERROR(FIND(тп&INDEX(UPPER(LEFT(коды,FIND(\" \",коды)-1)),ROW()),данные),0)>0,ROW(данные)))),LEN(INDEX(данные,SUM(IF(IFERROR(FIND(тп&INDEX(UPPER(LEFT(коды,FIND(\" \",коды)-1)),ROW()),данные),0)>0,ROW(данные)))))-FIND(\"ТЕЛЕФОН\",INDEX(данные,SUM(IF(IFERROR(FIND(тп&INDEX(UPPER(LEFT(коды,FIND(\" \",коды)-1)),ROW()),данные),0)>0,ROW(данные)))))-7),\"\")","v":""}]
["Василівка (Зап.) – 06175",{"$f":"IFERROR(RIGHT(INDEX(данные,SUM(IF(IFERROR(FIND(тп&INDEX(UPPER(LEFT(коды,FIND(\" \",коды)-1)),ROW()),данные),0)>0,ROW(данные)))),LEN(INDEX(данные,SUM(IF(IFERROR(FIND(тп&INDEX(UPPER(LEFT(коды,FIND(\" \",коды)-1)),ROW()),данные),0)>0,ROW(данные)))))-FIND(\"ТЕЛЕФОН\",INDEX(данные,SUM(IF(IFERROR(FIND(тп&INDEX(UPPER(LEFT(коды,FIND(\" \",коды)-1)),ROW()),данные),0)>0,ROW(данные)))))-7),\"\")","v":""}]
["Васильків (Київ.) – 04471",{"$f":"IFERROR(RIGHT(INDEX(данные,SUM(IF(IFERROR(FIND(тп&INDEX(UPPER(LEFT(коды,FIND(\" \",коды)-1)),ROW()),данные),0)>0,ROW(данные)))),LEN(INDEX(данные,SUM(IF(IFERROR(FIND(тп&INDEX(UPPER(LEFT(коды,FIND(\" \",коды)-1)),ROW()),данные),0)>0,ROW(данные)))))-FIND(\"ТЕЛЕФОН\",INDEX(данные,SUM(IF(IFERROR(FIND(тп&INDEX(UPPER(LEFT(коды,FIND(\" \",коды)-1)),ROW()),данные),0)>0,ROW(данные)))))-7),\"\")","v":""}]
["Васильківка (Дн.) – 05639",{"$f":"IFERROR(RIGHT(INDEX(данные,SUM(IF(IFERROR(FIND(тп&INDEX(UPPER(LEFT(коды,FIND(\" \",коды)-1)),ROW()),данные),0)>0,ROW(данные)))),LEN(INDEX(данные,SUM(IF(IFERROR(FIND(тп&INDEX(UPPER(LEFT(коды,FIND(\" \",коды)-1)),ROW()),данные),0)>0,ROW(данные)))))-FIND(\"ТЕЛЕФОН\",INDEX(данные,SUM(IF(IFERROR(FIND(тп&INDEX(UPPER(LEFT(коды,FIND(\" \",коды)-1)),ROW()),данные),0)>0,ROW(данные)))))-7),\"\")","v":""}]
["Васищеве (Харк.) – 0572",{"$f":"IFERROR(RIGHT(INDEX(данные,SUM(IF(IFERROR(FIND(тп&INDEX(UPPER(LEFT(коды,FIND(\" \",коды)-1)),ROW()),данные),0)>0,ROW(данные)))),LEN(INDEX(данные,SUM(IF(IFERROR(FIND(тп&INDEX(UPPER(LEFT(коды,FIND(\" \",коды)-1)),ROW()),данные),0)>0,ROW(данные)))))-FIND(\"ТЕЛЕФОН\",INDEX(данные,SUM(IF(IFERROR(FIND(тп&INDEX(UPPER(LEFT(коды,FIND(\" \",коды)-1)),ROW()),данные),0)>0,ROW(данные)))))-7),\"\")","v":""}]
["Введенка (Харк.) – 05746",{"$f":"IFERROR(RIGHT(INDEX(данные,SUM(IF(IFERROR(FIND(тп&INDEX(UPPER(LEFT(коды,FIND(\" \",коды)-1)),ROW()),данные),0)>0,ROW(данные)))),LEN(INDEX(данные,SUM(IF(IFERROR(FIND(тп&INDEX(UPPER(LEFT(коды,FIND(\" \",коды)-1)),ROW()),данные),0)>0,ROW(данные)))))-FIND(\"ТЕЛЕФОН\",INDEX(данные,SUM(IF(IFERROR(FIND(тп&INDEX(UPPER(LEFT(коды,FIND(\" \",коды)-1)),ROW()),данные),0)>0,ROW(данные)))))-7),\"\")","v":""}]
["Велика Білозерка (Зап.) – 06156",{"$f":"IFERROR(RIGHT(INDEX(данные,SUM(IF(IFERROR(FIND(тп&INDEX(UPPER(LEFT(коды,FIND(\" \",коды)-1)),ROW()),данные),0)>0,ROW(данные)))),LEN(INDEX(данные,SUM(IF(IFERROR(FIND(тп&INDEX(UPPER(LEFT(коды,FIND(\" \",коды)-1)),ROW()),данные),0)>0,ROW(данные)))))-FIND(\"ТЕЛЕФОН\",INDEX(данные,SUM(IF(IFERROR(FIND(тп&INDEX(UPPER(LEFT(коды,FIND(\" \",коды)-1)),ROW()),данные),0)>0,ROW(данные)))))-7),\"\")","v":""}]
["Велика Багачка (Полт.) – 05345",{"$f":"IFERROR(RIGHT(INDEX(данные,SUM(IF(IFERROR(FIND(тп&INDEX(UPPER(LEFT(коды,FIND(\" \",коды)-1)),ROW()),данные),0)>0,ROW(данные)))),LEN(INDEX(данные,SUM(IF(IFERROR(FIND(тп&INDEX(UPPER(LEFT(коды,FIND(\" \",коды)-1)),ROW()),данные),0)>0,ROW(данные)))))-FIND(\"ТЕЛЕФОН\",INDEX(данные,SUM(IF(IFERROR(FIND(тп&INDEX(UPPER(LEFT(коды,FIND(\" \",коды)-1)),ROW()),данные),0)>0,ROW(данные)))))-7),\"\")","v":""}]
["Велика Лепетиха (Херс.) – 05543",{"$f":"IFERROR(RIGHT(INDEX(данные,SUM(IF(IFERROR(FIND(тп&INDEX(UPPER(LEFT(коды,FIND(\" \",коды)-1)),ROW()),данные),0)>0,ROW(данные)))),LEN(INDEX(данные,SUM(IF(IFERROR(FIND(тп&INDEX(UPPER(LEFT(коды,FIND(\" \",коды)-1)),ROW()),данные),0)>0,ROW(данные)))))-FIND(\"ТЕЛЕФОН\",INDEX(данные,SUM(IF(IFERROR(FIND(тп&INDEX(UPPER(LEFT(коды,FIND(\" \",коды)-1)),ROW()),данные),0)>0,ROW(данные)))))-7),\"\")","v":""}]
["Велика Михайлівка (Од.) – 04859",{"$f":"IFERROR(RIGHT(INDEX(данные,SUM(IF(IFERROR(FIND(тп&INDEX(UPPER(LEFT(коды,FIND(\" \",коды)-1)),ROW()),данные),0)>0,ROW(данные)))),LEN(INDEX(данные,SUM(IF(IFERROR(FIND(тп&INDEX(UPPER(LEFT(коды,FIND(\" \",коды)-1)),ROW()),данные),0)>0,ROW(данные)))))-FIND(\"ТЕЛЕФОН\",INDEX(данные,SUM(IF(IFERROR(FIND(тп&INDEX(UPPER(LEFT(коды,FIND(\" \",коды)-1)),ROW()),данные),0)>0,ROW(данные)))))-7),\"\")","v":""}]
["Дунаївці (Хм.) – 03858",{"$f":"IFERROR(RIGHT(INDEX(данные,SUM(IF(IFERROR(FIND(тп&INDEX(UPPER(LEFT(коды,FIND(\" \",коды)-1)),ROW()),данные),0)>0,ROW(данные)))),LEN(INDEX(данные,SUM(IF(IFERROR(FIND(тп&INDEX(UPPER(LEFT(коды,FIND(\" \",коды)-1)),ROW()),данные),0)>0,ROW(данные)))))-FIND(\"ТЕЛЕФОН\",INDEX(данные,SUM(IF(IFERROR(FIND(тп&INDEX(UPPER(LEFT(коды,FIND(\" \",коды)-1)),ROW()),данные),0)>0,ROW(данные)))))-7),\"\")","v":""}]
[null,{"$f":"IFERROR(RIGHT(INDEX(данные,SUM(IF(IFERROR(FIND(тп&INDEX(UPPER(LEFT(коды,FIND(\" \",коды)-1)),ROW()),данные),0)>0,ROW(данные)))),LEN(INDEX(данные,SUM(IF(IFERROR(FIND(тп&INDEX(UPPER(LEFT(коды,FIND(\" \",коды)-1)),ROW()),данные),0)>0,ROW(данные)))))-FIND(\"ТЕЛЕФОН\",INDEX(данные,SUM(IF(IFERROR(FIND(тп&INDEX(UPPER(LEFT(коды,FIND(\" \",коды)-1)),ROW()),данные),0)>0,ROW(данные)))))-7),\"\")","v":""}]
["Енергодар (Зап.) – 06139",{"$f":"IFERROR(RIGHT(INDEX(данные,SUM(IF(IFERROR(FIND(тп&INDEX(UPPER(LEFT(коды,FIND(\" \",коды)-1)),ROW()),данные),0)>0,ROW(данные)))),LEN(INDEX(данные,SUM(IF(IFERROR(FIND(тп&INDEX(UPPER(LEFT(коды,FIND(\" \",коды)-1)),ROW()),данные),0)>0,ROW(данные)))))-FIND(\"ТЕЛЕФОН\",INDEX(данные,SUM(IF(IFERROR(FIND(тп&INDEX(UPPER(LEFT(коды,FIND(\" \",коды)-1)),ROW()),данные),0)>0,ROW(данные)))))-7),\"\")","v":""}]
["Есхар (Харк.) – 05746",{"$f":"IFERROR(RIGHT(INDEX(данные,SUM(IF(IFERROR(FIND(тп&INDEX(UPPER(LEFT(коды,FIND(\" \",коды)-1)),ROW()),данные),0)>0,ROW(данные)))),LEN(INDEX(данные,SUM(IF(IFERROR(FIND(тп&INDEX(UPPER(LEFT(коды,FIND(\" \",коды)-1)),ROW()),данные),0)>0,ROW(данные)))))-FIND(\"ТЕЛЕФОН\",INDEX(данные,SUM(IF(IFERROR(FIND(тп&INDEX(UPPER(LEFT(коды,FIND(\" \",коды)-1)),ROW()),данные),0)>0,ROW(данные)))))-7),\"\")","v":""}]
[null,{"$f":"IFERROR(RIGHT(INDEX(данные,SUM(IF(IFERROR(FIND(тп&INDEX(UPPER(LEFT(коды,FIND(\" \",коды)-1)),ROW()),данные),0)>0,ROW(данные)))),LEN(INDEX(данные,SUM(IF(IFERROR(FIND(тп&INDEX(UPPER(LEFT(коды,FIND(\" \",коды)-1)),ROW()),данные),0)>0,ROW(данные)))))-FIND(\"ТЕЛЕФОН\",INDEX(данные,SUM(IF(IFERROR(FIND(тп&INDEX(UPPER(LEFT(коды,FIND(\" \",коды)-1)),ROW()),данные),0)>0,ROW(данные)))))-7),\"\")","v":""}]
["Євпаторія (АРК) – 06569",{"$f":"IFERROR(RIGHT(INDEX(данные,SUM(IF(IFERROR(FIND(тп&INDEX(UPPER(LEFT(коды,FIND(\" \",коды)-1)),ROW()),данные),0)>0,ROW(данные)))),LEN(INDEX(данные,SUM(IF(IFERROR(FIND(тп&INDEX(UPPER(LEFT(коды,FIND(\" \",коды)-1)),ROW()),данные),0)>0,ROW(данные)))))-FIND(\"ТЕЛЕФОН\",INDEX(данные,SUM(IF(IFERROR(FIND(тп&INDEX(UPPER(LEFT(коды,FIND(\" \",коды)-1)),ROW()),данные),0)>0,ROW(данные)))))-7),\"\")","v":""}]
["Єланець (Мик.) – 05159",{"$f":"IFERROR(RIGHT(INDEX(данные,SUM(IF(IFERROR(FIND(тп&INDEX(UPPER(LEFT(коды,FIND(\" \",коды)-1)),ROW()),данные),0)>0,ROW(данные)))),LEN(INDEX(данные,SUM(IF(IFERROR(FIND(тп&INDEX(UPPER(LEFT(коды,FIND(\" \",коды)-1)),ROW()),данные),0)>0,ROW(данные)))))-FIND(\"ТЕЛЕФОН\",INDEX(данные,SUM(IF(IFERROR(FIND(тп&INDEX(UPPER(LEFT(коды,FIND(\" \",коды)-1)),ROW()),данные),0)>0,ROW(данные)))))-7),\"\")","v":""}]
["Ємільчине (Жит.) – 04149",{"$f":"IFERROR(RIGHT(INDEX(данные,SUM(IF(IFERROR(FIND(тп&INDEX(UPPER(LEFT(коды,FIND(\" \",коды)-1)),ROW()),данные),0)>0,ROW(данные)))),LEN(INDEX(данные,SUM(IF(IFERROR(FIND(тп&INDEX(UPPER(LEFT(коды,FIND(\" \",коды)-1)),ROW()),данные),0)>0,ROW(данные)))))-FIND(\"ТЕЛЕФОН\",INDEX(данные,SUM(IF(IFERROR(FIND(тп&INDEX(UPPER(LEFT(коды,FIND(\" \",коды)-1)),ROW()),данные),0)>0,ROW(данные)))))-7),\"\")","v":""}]
["Єнакієве (Дон.) – 06252",{"$f":"IFERROR(RIGHT(INDEX(данные,SUM(IF(IFERROR(FIND(тп&INDEX(UPPER(LEFT(коды,FIND(\" \",коды)-1)),ROW()),данные),0)>0,ROW(данные)))),LEN(INDEX(данные,SUM(IF(IFERROR(FIND(тп&INDEX(UPPER(LEFT(коды,FIND(\" \",коды)-1)),ROW()),данные),0)>0,ROW(данные)))))-FIND(\"ТЕЛЕФОН\",INDEX(данные,SUM(IF(IFERROR(FIND(тп&INDEX(UPPER(LEFT(коды,FIND(\" \",коды)-1)),ROW()),данные),0)>0,ROW(данные)))))-7),\"\")","v":""}]
[null,{"$f":"IFERROR(RIGHT(INDEX(данные,SUM(IF(IFERROR(FIND(тп&INDEX(UPPER(LEFT(коды,FIND(\" \",коды)-1)),ROW()),данные),0)>0,ROW(данные)))),LEN(INDEX(данные,SUM(IF(IFERROR(FIND(тп&INDEX(UPPER(LEFT(коды,FIND(\" \",коды)-1)),ROW()),данные),0)>0,ROW(данные)))))-FIND(\"ТЕЛЕФОН\",INDEX(данные,SUM(IF(IFERROR(FIND(тп&INDEX(UPPER(LEFT(коды,FIND(\" \",коды)-1)),ROW()),данные),0)>0,ROW(данные)))))-7),\"\")","v":""}]
["Жашків (Черк.) – 04747",{"$f":"IFERROR(RIGHT(INDEX(данные,SUM(IF(IFERROR(FIND(тп&INDEX(UPPER(LEFT(коды,FIND(\" \",коды)-1)),ROW()),данные),0)>0,ROW(данные)))),LEN(INDEX(данные,SUM(IF(IFERROR(FIND(тп&INDEX(UPPER(LEFT(коды,FIND(\" \",коды)-1)),ROW()),данные),0)>0,ROW(данные)))))-FIND(\"ТЕЛЕФОН\",INDEX(данные,SUM(IF(IFERROR(FIND(тп&INDEX(UPPER(LEFT(коды,FIND(\" \",коды)-1)),ROW()),данные),0)>0,ROW(данные)))))-7),\"\")","v":""}]
["Жвирка (Льв.) – 03257",{"$f":"IFERROR(RIGHT(INDEX(данные,SUM(IF(IFERROR(FIND(тп&INDEX(UPPER(LEFT(коды,FIND(\" \",коды)-1)),ROW()),данные),0)>0,ROW(данные)))),LEN(INDEX(данные,SUM(IF(IFERROR(FIND(тп&INDEX(UPPER(LEFT(коды,FIND(\" \",коды)-1)),ROW()),данные),0)>0,ROW(данные)))))-FIND(\"ТЕЛЕФОН\",INDEX(данные,SUM(IF(IFERROR(FIND(тп&INDEX(UPPER(LEFT(коды,FIND(\" \",коды)-1)),ROW()),данные),0)>0,ROW(данные)))))-7),\"\")","v":""}]
["Жденеве (Зак.) – 03136",{"$f":"IFERROR(RIGHT(INDEX(данные,SUM(IF(IFERROR(FIND(тп&INDEX(UPPER(LEFT(коды,FIND(\" \",коды)-1)),ROW()),данные),0)>0,ROW(данные)))),LEN(INDEX(данные,SUM(IF(IFERROR(FIND(тп&INDEX(UPPER(LEFT(коды,FIND(\" \",коды)-1)),ROW()),данные),0)>0,ROW(данные)))))-FIND(\"ТЕЛЕФОН\",INDEX(данные,SUM(IF(IFERROR(FIND(тп&INDEX(UPPER(LEFT(коды,FIND(\" \",коды)-1)),ROW()),данные),0)>0,ROW(данные)))))-7),\"\")","v":""}]
["Жидачів (Льв.) – 03239",{"$f":"IFERROR(RIGHT(INDEX(данные,SUM(IF(IFERROR(FIND(тп&INDEX(UPPER(LEFT(коды,FIND(\" \",коды)-1)),ROW()),данные),0)>0,ROW(данные)))),LEN(INDEX(данные,SUM(IF(IFERROR(FIND(тп&INDEX(UPPER(LEFT(коды,FIND(\" \",коды)-1)),ROW()),данные),0)>0,ROW(данные)))))-FIND(\"ТЕЛЕФОН\",INDEX(данные,SUM(IF(IFERROR(FIND(тп&INDEX(UPPER(LEFT(коды,FIND(\" \",коды)-1)),ROW()),данные),0)>0,ROW(данные)))))-7),\"\")","v":""}]
["ЖИТОМИР – 0412",{"$f":"IFERROR(RIGHT(INDEX(данные,SUM(IF(IFERROR(FIND(тп&INDEX(UPPER(LEFT(коды,FIND(\" \",коды)-1)),ROW()),данные),0)>0,ROW(данные)))),LEN(INDEX(данные,SUM(IF(IFERROR(FIND(тп&INDEX(UPPER(LEFT(коды,FIND(\" \",коды)-1)),ROW()),данные),0)>0,ROW(данные)))))-FIND(\"ТЕЛЕФОН\",INDEX(данные,SUM(IF(IFERROR(FIND(тп&INDEX(UPPER(LEFT(коды,FIND(\" \",коды)-1)),ROW()),данные),0)>0,ROW(данные)))))-7),\"\")","v":""}]
["Жмеринка (Він.) – 04332",{"$f":"IFERROR(RIGHT(INDEX(данные,SUM(IF(IFERROR(FIND(тп&INDEX(UPPER(LEFT(коды,FIND(\" \",коды)-1)),ROW()),данные),0)>0,ROW(данные)))),LEN(INDEX(данные,SUM(IF(IFERROR(FIND(тп&INDEX(UPPER(LEFT(коды,FIND(\" \",коды)-1)),ROW()),данные),0)>0,ROW(данные)))))-FIND(\"ТЕЛЕФОН\",INDEX(данные,SUM(IF(IFERROR(FIND(тп&INDEX(UPPER(LEFT(коды,FIND(\" \",коды)-1)),ROW()),данные),0)>0,ROW(данные)))))-7),\"\")","v":""}]
["Жовква (Льв.) – 03252",{"$f":"IFERROR(RIGHT(INDEX(данные,SUM(IF(IFERROR(FIND(тп&INDEX(UPPER(LEFT(коды,FIND(\" \",коды)-1)),ROW()),данные),0)>0,ROW(данные)))),LEN(INDEX(данные,SUM(IF(IFERROR(FIND(тп&INDEX(UPPER(LEFT(коды,FIND(\" \",коды)-1)),ROW()),данные),0)>0,ROW(данные)))))-FIND(\"ТЕЛЕФОН\",INDEX(данные,SUM(IF(IFERROR(FIND(тп&INDEX(UPPER(LEFT(коды,FIND(\" \",коды)-1)),ROW()),данные),0)>0,ROW(данные)))))-7),\"\")","v":""}]
["Жовті Води (Дн.) – 05652",{"$f":"IFERROR(RIGHT(INDEX(данные,SUM(IF(IFERROR(FIND(тп&INDEX(UPPER(LEFT(коды,FIND(\" \",коды)-1)),ROW()),данные),0)>0,ROW(данные)))),LEN(INDEX(данные,SUM(IF(IFERROR(FIND(тп&INDEX(UPPER(LEFT(коды,FIND(\" \",коды)-1)),ROW()),данные),0)>0,ROW(данные)))))-FIND(\"ТЕЛЕФОН\",INDEX(данные,SUM(IF(IFERROR(FIND(тп&INDEX(UPPER(LEFT(коды,FIND(\" \",коды)-1)),ROW()),данные),0)>0,ROW(данные)))))-7),\"\")","v":""}]
[null,{"$f":"IFERROR(RIGHT(INDEX(данные,SUM(IF(IFERROR(FIND(тп&INDEX(UPPER(LEFT(коды,FIND(\" \",коды)-1)),ROW()),данные),0)>0,ROW(данные)))),LEN(INDEX(данные,SUM(IF(IFERROR(FIND(тп&INDEX(UPPER(LEFT(коды,FIND(\" \",коды)-1)),ROW()),данные),0)>0,ROW(данные)))))-FIND(\"ТЕЛЕФОН\",INDEX(данные,SUM(IF(IFERROR(FIND(тп&INDEX(UPPER(LEFT(коды,FIND(\" \",коды)-1)),ROW()),данные),0)>0,ROW(данные)))))-7),\"\")","v":""}]
["Залізничне (Зап.) – 06145",{"$f":"IFERROR(RIGHT(INDEX(данные,SUM(IF(IFERROR(FIND(тп&INDEX(UPPER(LEFT(коды,FIND(\" \",коды)-1)),ROW()),данные),0)>0,ROW(данные)))),LEN(INDEX(данные,SUM(IF(IFERROR(FIND(тп&INDEX(UPPER(LEFT(коды,FIND(\" \",коды)-1)),ROW()),данные),0)>0,ROW(данные)))))-FIND(\"ТЕЛЕФОН\",INDEX(данные,SUM(IF(IFERROR(FIND(тп&INDEX(UPPER(LEFT(коды,FIND(\" \",коды)-1)),ROW()),данные),0)>0,ROW(данные)))))-7),\"\")","v":""}]
["Заліщики (Терн.) – 03554",{"$f":"IFERROR(RIGHT(INDEX(данные,SUM(IF(IFERROR(FIND(тп&INDEX(UPPER(LEFT(коды,FIND(\" \",коды)-1)),ROW()),данные),0)>0,ROW(данные)))),LEN(INDEX(данные,SUM(IF(IFERROR(FIND(тп&INDEX(UPPER(LEFT(коды,FIND(\" \",коды)-1)),ROW()),данные),0)>0,ROW(данные)))))-FIND(\"ТЕЛЕФОН\",INDEX(данные,SUM(IF(IFERROR(FIND(тп&INDEX(UPPER(LEFT(коды,FIND(\" \",коды)-1)),ROW()),данные),0)>0,ROW(данные)))))-7),\"\")","v":""}]
["Заложці (Терн.) – 03540",{"$f":"IFERROR(RIGHT(INDEX(данные,SUM(IF(IFERROR(FIND(тп&INDEX(UPPER(LEFT(коды,FIND(\" \",коды)-1)),ROW()),данные),0)>0,ROW(данные)))),LEN(INDEX(данные,SUM(IF(IFERROR(FIND(тп&INDEX(UPPER(LEFT(коды,FIND(\" \",коды)-1)),ROW()),данные),0)>0,ROW(данные)))))-FIND(\"ТЕЛЕФОН\",INDEX(данные,SUM(IF(IFERROR(FIND(тп&INDEX(UPPER(LEFT(коды,FIND(\" \",коды)-1)),ROW()),данные),0)>0,ROW(данные)))))-7),\"\")","v":""}]
["Заозерне (АРК) – 06569",{"$f":"IFERROR(RIGHT(INDEX(данные,SUM(IF(IFERROR(FIND(тп&INDEX(UPPER(LEFT(коды,FIND(\" \",коды)-1)),ROW()),данные),0)>0,ROW(данные)))),LEN(INDEX(данные,SUM(IF(IFERROR(FIND(тп&INDEX(UPPER(LEFT(коды,FIND(\" \",коды)-1)),ROW()),данные),0)>0,ROW(данные)))))-FIND(\"ТЕЛЕФОН\",INDEX(данные,SUM(IF(IFERROR(FIND(тп&INDEX(UPPER(LEFT(коды,FIND(\" \",коды)-1)),ROW()),данные),0)>0,ROW(данные)))))-7),\"\")","v":""}]
["ЗАПОРІЖЖЯ – 0612, 06122",{"$f":"IFERROR(RIGHT(INDEX(данные,SUM(IF(IFERROR(FIND(тп&INDEX(UPPER(LEFT(коды,FIND(\" \",коды)-1)),ROW()),данные),0)>0,ROW(данные)))),LEN(INDEX(данные,SUM(IF(IFERROR(FIND(тп&INDEX(UPPER(LEFT(коды,FIND(\" \",коды)-1)),ROW()),данные),0)>0,ROW(данные)))))-FIND(\"ТЕЛЕФОН\",INDEX(данные,SUM(IF(IFERROR(FIND(тп&INDEX(UPPER(LEFT(коды,FIND(\" \",коды)-1)),ROW()),данные),0)>0,ROW(данные)))))-7),\"\")","v":""}]
["Зарічне (Рівн.) – 03632",{"$f":"IFERROR(RIGHT(INDEX(данные,SUM(IF(IFERROR(FIND(тп&INDEX(UPPER(LEFT(коды,FIND(\" \",коды)-1)),ROW()),данные),0)>0,ROW(данные)))),LEN(INDEX(данные,SUM(IF(IFERROR(FIND(тп&INDEX(UPPER(LEFT(коды,FIND(\" \",коды)-1)),ROW()),данные),0)>0,ROW(данные)))))-FIND(\"ТЕЛЕФОН\",INDEX(данные,SUM(IF(IFERROR(FIND(тп&INDEX(UPPER(LEFT(коды,FIND(\" \",коды)-1)),ROW()),данные),0)>0,ROW(данные)))))-7),\"\")","v":""}]
["Заставна (Чернів.) – 03737",{"$f":"IFERROR(RIGHT(INDEX(данные,SUM(IF(IFERROR(FIND(тп&INDEX(UPPER(LEFT(коды,FIND(\" \",коды)-1)),ROW()),данные),0)>0,ROW(данные)))),LEN(INDEX(данные,SUM(IF(IFERROR(FIND(тп&INDEX(UPPER(LEFT(коды,FIND(\" \",коды)-1)),ROW()),данные),0)>0,ROW(данные)))))-FIND(\"ТЕЛЕФОН\",INDEX(данные,SUM(IF(IFERROR(FIND(тп&INDEX(UPPER(LEFT(коды,FIND(\" \",коды)-1)),ROW()),данные),0)>0,ROW(данные)))))-7),\"\")","v":""}]
["Зачепилівка (Харк.) – 05761",{"$f":"IFERROR(RIGHT(INDEX(данные,SUM(IF(IFERROR(FIND(тп&INDEX(UPPER(LEFT(коды,FIND(\" \",коды)-1)),ROW()),данные),0)>0,ROW(данные)))),LEN(INDEX(данные,SUM(IF(IFERROR(FIND(тп&INDEX(UPPER(LEFT(коды,FIND(\" \",коды)-1)),ROW()),данные),0)>0,ROW(данные)))))-FIND(\"ТЕЛЕФОН\",INDEX(данные,SUM(IF(IFERROR(FIND(тп&INDEX(UPPER(LEFT(коды,FIND(\" \",коды)-1)),ROW()),данные),0)>0,ROW(данные)))))-7),\"\")","v":""}]
["Збараж (Терн.) – 03550",{"$f":"IFERROR(RIGHT(INDEX(данные,SUM(IF(IFERROR(FIND(тп&INDEX(UPPER(LEFT(коды,FIND(\" \",коды)-1)),ROW()),данные),0)>0,ROW(данные)))),LEN(INDEX(данные,SUM(IF(IFERROR(FIND(тп&INDEX(UPPER(LEFT(коды,FIND(\" \",коды)-1)),ROW()),данные),0)>0,ROW(данные)))))-FIND(\"ТЕЛЕФОН\",INDEX(данные,SUM(IF(IFERROR(FIND(тп&INDEX(UPPER(LEFT(коды,FIND(\" \",коды)-1)),ROW()),данные),0)>0,ROW(данные)))))-7),\"\")","v":""}]
["Зборів (Терн.) – 03540",{"$f":"IFERROR(RIGHT(INDEX(данные,SUM(IF(IFERROR(FIND(тп&INDEX(UPPER(LEFT(коды,FIND(\" \",коды)-1)),ROW()),данные),0)>0,ROW(данные)))),LEN(INDEX(данные,SUM(IF(IFERROR(FIND(тп&INDEX(UPPER(LEFT(коды,FIND(\" \",коды)-1)),ROW()),данные),0)>0,ROW(данные)))))-FIND(\"ТЕЛЕФОН\",INDEX(данные,SUM(IF(IFERROR(FIND(тп&INDEX(UPPER(LEFT(коды,FIND(\" \",коды)-1)),ROW()),данные),0)>0,ROW(данные)))))-7),\"\")","v":""}]
["Звенигородка (Черк.) – 04740",{"$f":"IFERROR(RIGHT(INDEX(данные,SUM(IF(IFERROR(FIND(тп&INDEX(UPPER(LEFT(коды,FIND(\" \",коды)-1)),ROW()),данные),0)>0,ROW(данные)))),LEN(INDEX(данные,SUM(IF(IFERROR(FIND(тп&INDEX(UPPER(LEFT(коды,FIND(\" \",коды)-1)),ROW()),данные),0)>0,ROW(данные)))))-FIND(\"ТЕЛЕФОН\",INDEX(данные,SUM(IF(IFERROR(FIND(тп&INDEX(UPPER(LEFT(коды,FIND(\" \",коды)-1)),ROW()),данные),0)>0,ROW(данные)))))-7),\"\")","v":""}]
["Згурівка (Київ.) – 04470",{"$f":"IFERROR(RIGHT(INDEX(данные,SUM(IF(IFERROR(FIND(тп&INDEX(UPPER(LEFT(коды,FIND(\" \",коды)-1)),ROW()),данные),0)>0,ROW(данные)))),LEN(INDEX(данные,SUM(IF(IFERROR(FIND(тп&INDEX(UPPER(LEFT(коды,FIND(\" \",коды)-1)),ROW()),данные),0)>0,ROW(данные)))))-FIND(\"ТЕЛЕФОН\",INDEX(данные,SUM(IF(IFERROR(FIND(тп&INDEX(UPPER(LEFT(коды,FIND(\" \",коды)-1)),ROW()),данные),0)>0,ROW(данные)))))-7),\"\")","v":""}]
["Здолбунів (Рівн.) – 036522",{"$f":"IFERROR(RIGHT(INDEX(данные,SUM(IF(IFERROR(FIND(тп&INDEX(UPPER(LEFT(коды,FIND(\" \",коды)-1)),ROW()),данные),0)>0,ROW(данные)))),LEN(INDEX(данные,SUM(IF(IFERROR(FIND(тп&INDEX(UPPER(LEFT(коды,FIND(\" \",коды)-1)),ROW()),данные),0)>0,ROW(данные)))))-FIND(\"ТЕЛЕФОН\",INDEX(данные,SUM(IF(IFERROR(FIND(тп&INDEX(UPPER(LEFT(коды,FIND(\" \",коды)-1)),ROW()),данные),0)>0,ROW(данные)))))-7),\"\")","v":""}]
["Зепенодольськ (Дн.) – 05655",{"$f":"IFERROR(RIGHT(INDEX(данные,SUM(IF(IFERROR(FIND(тп&INDEX(UPPER(LEFT(коды,FIND(\" \",коды)-1)),ROW()),данные),0)>0,ROW(данные)))),LEN(INDEX(данные,SUM(IF(IFERROR(FIND(тп&INDEX(UPPER(LEFT(коды,FIND(\" \",коды)-1)),ROW()),данные),0)>0,ROW(данные)))))-FIND(\"ТЕЛЕФОН\",INDEX(данные,SUM(IF(IFERROR(FIND(тп&INDEX(UPPER(LEFT(коды,FIND(\" \",коды)-1)),ROW()),данные),0)>0,ROW(данные)))))-7),\"\")","v":""}]
["Зимогір'я (Луг.) – 06473",{"$f":"IFERROR(RIGHT(INDEX(данные,SUM(IF(IFERROR(FIND(тп&INDEX(UPPER(LEFT(коды,FIND(\" \",коды)-1)),ROW()),данные),0)>0,ROW(данные)))),LEN(INDEX(данные,SUM(IF(IFERROR(FIND(тп&INDEX(UPPER(LEFT(коды,FIND(\" \",коды)-1)),ROW()),данные),0)>0,ROW(данные)))))-FIND(\"ТЕЛЕФОН\",INDEX(данные,SUM(IF(IFERROR(FIND(тп&INDEX(UPPER(LEFT(коды,FIND(\" \",коды)-1)),ROW()),данные),0)>0,ROW(данные)))))-7),\"\")","v":""}]
["Зідьки (Харк.) – 05747",{"$f":"IFERROR(RIGHT(INDEX(данные,SUM(IF(IFERROR(FIND(тп&INDEX(UPPER(LEFT(коды,FIND(\" \",коды)-1)),ROW()),данные),0)>0,ROW(данные)))),LEN(INDEX(данные,SUM(IF(IFERROR(FIND(тп&INDEX(UPPER(LEFT(коды,FIND(\" \",коды)-1)),ROW()),данные),0)>0,ROW(данные)))))-FIND(\"ТЕЛЕФОН\",INDEX(данные,SUM(IF(IFERROR(FIND(тп&INDEX(UPPER(LEFT(коды,FIND(\" \",коды)-1)),ROW()),данные),0)>0,ROW(данные)))))-7),\"\")","v":""}]
["Зіньків (Полт.) – 05353",{"$f":"IFERROR(RIGHT(INDEX(данные,SUM(IF(IFERROR(FIND(тп&INDEX(UPPER(LEFT(коды,FIND(\" \",коды)-1)),ROW()),данные),0)>0,ROW(данные)))),LEN(INDEX(данные,SUM(IF(IFERROR(FIND(тп&INDEX(UPPER(LEFT(коды,FIND(\" \",коды)-1)),ROW()),данные),0)>0,ROW(данные)))))-FIND(\"ТЕЛЕФОН\",INDEX(данные,SUM(IF(IFERROR(FIND(тп&INDEX(UPPER(LEFT(коды,FIND(\" \",коды)-1)),ROW()),данные),0)>0,ROW(данные)))))-7),\"\")","v":""}]
["Зміїв (Харк.) – 05747",{"$f":"IFERROR(RIGHT(INDEX(данные,SUM(IF(IFERROR(FIND(тп&INDEX(UPPER(LEFT(коды,FIND(\" \",коды)-1)),ROW()),данные),0)>0,ROW(данные)))),LEN(INDEX(данные,SUM(IF(IFERROR(FIND(тп&INDEX(UPPER(LEFT(коды,FIND(\" \",коды)-1)),ROW()),данные),0)>0,ROW(данные)))))-FIND(\"ТЕЛЕФОН\",INDEX(данные,SUM(IF(IFERROR(FIND(тп&INDEX(UPPER(LEFT(коды,FIND(\" \",коды)-1)),ROW()),данные),0)>0,ROW(данные)))))-7),\"\")","v":""}]
["Знам'янка (Кір.) – 05233",{"$f":"IFERROR(RIGHT(INDEX(данные,SUM(IF(IFERROR(FIND(тп&INDEX(UPPER(LEFT(коды,FIND(\" \",коды)-1)),ROW()),данные),0)>0,ROW(данные)))),LEN(INDEX(данные,SUM(IF(IFERROR(FIND(тп&INDEX(UPPER(LEFT(коды,FIND(\" \",коды)-1)),ROW()),данные),0)>0,ROW(данные)))))-FIND(\"ТЕЛЕФОН\",INDEX(данные,SUM(IF(IFERROR(FIND(тп&INDEX(UPPER(LEFT(коды,FIND(\" \",коды)-1)),ROW()),данные),0)>0,ROW(данные)))))-7),\"\")","v":""}]
["Золотий Потік (Терн.) – 03544",{"$f":"IFERROR(RIGHT(INDEX(данные,SUM(IF(IFERROR(FIND(тп&INDEX(UPPER(LEFT(коды,FIND(\" \",коды)-1)),ROW()),данные),0)>0,ROW(данные)))),LEN(INDEX(данные,SUM(IF(IFERROR(FIND(тп&INDEX(UPPER(LEFT(коды,FIND(\" \",коды)-1)),ROW()),данные),0)>0,ROW(данные)))))-FIND(\"ТЕЛЕФОН\",INDEX(данные,SUM(IF(IFERROR(FIND(тп&INDEX(UPPER(LEFT(коды,FIND(\" \",коды)-1)),ROW()),данные),0)>0,ROW(данные)))))-7),\"\")","v":""}]
["Золотники (Терн.) – 03551",{"$f":"IFERROR(RIGHT(INDEX(данные,SUM(IF(IFERROR(FIND(тп&INDEX(UPPER(LEFT(коды,FIND(\" \",коды)-1)),ROW()),данные),0)>0,ROW(данные)))),LEN(INDEX(данные,SUM(IF(IFERROR(FIND(тп&INDEX(UPPER(LEFT(коды,FIND(\" \",коды)-1)),ROW()),данные),0)>0,ROW(данные)))))-FIND(\"ТЕЛЕФОН\",INDEX(данные,SUM(IF(IFERROR(FIND(тп&INDEX(UPPER(LEFT(коды,FIND(\" \",коды)-1)),ROW()),данные),0)>0,ROW(данные)))))-7),\"\")","v":""}]
["Золотоноша (Черк.) – 04737",{"$f":"IFERROR(RIGHT(INDEX(данные,SUM(IF(IFERROR(FIND(тп&INDEX(UPPER(LEFT(коды,FIND(\" \",коды)-1)),ROW()),данные),0)>0,ROW(данные)))),LEN(INDEX(данные,SUM(IF(IFERROR(FIND(тп&INDEX(UPPER(LEFT(коды,FIND(\" \",коды)-1)),ROW()),данные),0)>0,ROW(данные)))))-FIND(\"ТЕЛЕФОН\",INDEX(данные,SUM(IF(IFERROR(FIND(тп&INDEX(UPPER(LEFT(коды,FIND(\" \",коды)-1)),ROW()),данные),0)>0,ROW(данные)))))-7),\"\")","v":""}]
["Золочів (Льв.) – 03265",{"$f":"IFERROR(RIGHT(INDEX(данные,SUM(IF(IFERROR(FIND(тп&INDEX(UPPER(LEFT(коды,FIND(\" \",коды)-1)),ROW()),данные),0)>0,ROW(данные)))),LEN(INDEX(данные,SUM(IF(IFERROR(FIND(тп&INDEX(UPPER(LEFT(коды,FIND(\" \",коды)-1)),ROW()),данные),0)>0,ROW(данные)))))-FIND(\"ТЕЛЕФОН\",INDEX(данные,SUM(IF(IFERROR(FIND(тп&INDEX(UPPER(LEFT(коды,FIND(\" \",коды)-1)),ROW()),данные),0)>0,ROW(данные)))))-7),\"\")","v":""}]
["Золочів (Харк.) – 05764",{"$f":"IFERROR(RIGHT(INDEX(данные,SUM(IF(IFERROR(FIND(тп&INDEX(UPPER(LEFT(коды,FIND(\" \",коды)-1)),ROW()),данные),0)>0,ROW(данные)))),LEN(INDEX(данные,SUM(IF(IFERROR(FIND(тп&INDEX(UPPER(LEFT(коды,FIND(\" \",коды)-1)),ROW()),данные),0)>0,ROW(данные)))))-FIND(\"ТЕЛЕФОН\",INDEX(данные,SUM(IF(IFERROR(FIND(тп&INDEX(UPPER(LEFT(коды,FIND(\" \",коды)-1)),ROW()),данные),0)>0,ROW(данные)))))-7),\"\")","v":""}]
["Зуя (АРК) – 06559",{"$f":"IFERROR(RIGHT(INDEX(данные,SUM(IF(IFERROR(FIND(тп&INDEX(UPPER(LEFT(коды,FIND(\" \",коды)-1)),ROW()),данные),0)>0,ROW(данные)))),LEN(INDEX(данные,SUM(IF(IFERROR(FIND(тп&INDEX(UPPER(LEFT(коды,FIND(\" \",коды)-1)),ROW()),данные),0)>0,ROW(данные)))))-FIND(\"ТЕЛЕФОН\",INDEX(данные,SUM(IF(IFERROR(FIND(тп&INDEX(UPPER(LEFT(коды,FIND(\" \",коды)-1)),ROW()),данные),0)>0,ROW(данные)))))-7),\"\")","v":""}]
[null,{"$f":"IFERROR(RIGHT(INDEX(данные,SUM(IF(IFERROR(FIND(тп&INDEX(UPPER(LEFT(коды,FIND(\" \",коды)-1)),ROW()),данные),0)>0,ROW(данные)))),LEN(INDEX(данные,SUM(IF(IFERROR(FIND(тп&INDEX(UPPER(LEFT(коды,FIND(\" \",коды)-1)),ROW()),данные),0)>0,ROW(данные)))))-FIND(\"ТЕЛЕФОН\",INDEX(данные,SUM(IF(IFERROR(FIND(тп&INDEX(UPPER(LEFT(коды,FIND(\" \",коды)-1)),ROW()),данные),0)>0,ROW(данные)))))-7),\"\")","v":""}]
["Іваничі (Вол.) – 03372",{"$f":"IFERROR(RIGHT(INDEX(данные,SUM(IF(IFERROR(FIND(тп&INDEX(UPPER(LEFT(коды,FIND(\" \",коды)-1)),ROW()),данные),0)>0,ROW(данные)))),LEN(INDEX(данные,SUM(IF(IFERROR(FIND(тп&INDEX(UPPER(LEFT(коды,FIND(\" \",коды)-1)),ROW()),данные),0)>0,ROW(данные)))))-FIND(\"ТЕЛЕФОН\",INDEX(данные,SUM(IF(IFERROR(FIND(тп&INDEX(UPPER(LEFT(коды,FIND(\" \",коды)-1)),ROW()),данные),0)>0,ROW(данные)))))-7),\"\")","v":""}]
["Іванівка (Од.) – 04854",{"$f":"IFERROR(RIGHT(INDEX(данные,SUM(IF(IFERROR(FIND(тп&INDEX(UPPER(LEFT(коды,FIND(\" \",коды)-1)),ROW()),данные),0)>0,ROW(данные)))),LEN(INDEX(данные,SUM(IF(IFERROR(FIND(тп&INDEX(UPPER(LEFT(коды,FIND(\" \",коды)-1)),ROW()),данные),0)>0,ROW(данные)))))-FIND(\"ТЕЛЕФОН\",INDEX(данные,SUM(IF(IFERROR(FIND(тп&INDEX(UPPER(LEFT(коды,FIND(\" \",коды)-1)),ROW()),данные),0)>0,ROW(данные)))))-7),\"\")","v":""}]
["Іванівка (Херс.) – 05531",{"$f":"IFERROR(RIGHT(INDEX(данные,SUM(IF(IFERROR(FIND(тп&INDEX(UPPER(LEFT(коды,FIND(\" \",коды)-1)),ROW()),данные),0)>0,ROW(данные)))),LEN(INDEX(данные,SUM(IF(IFERROR(FIND(тп&INDEX(UPPER(LEFT(коды,FIND(\" \",коды)-1)),ROW()),данные),0)>0,ROW(данные)))))-FIND(\"ТЕЛЕФОН\",INDEX(данные,SUM(IF(IFERROR(FIND(тп&INDEX(UPPER(LEFT(коды,FIND(\" \",коды)-1)),ROW()),данные),0)>0,ROW(данные)))))-7),\"\")","v":""}]
["Іванків (Київ.) – 04491",{"$f":"IFERROR(RIGHT(INDEX(данные,SUM(IF(IFERROR(FIND(тп&INDEX(UPPER(LEFT(коды,FIND(\" \",коды)-1)),ROW()),данные),0)>0,ROW(данные)))),LEN(INDEX(данные,SUM(IF(IFERROR(FIND(тп&INDEX(UPPER(LEFT(коды,FIND(\" \",коды)-1)),ROW()),данные),0)>0,ROW(данные)))))-FIND(\"ТЕЛЕФОН\",INDEX(данные,SUM(IF(IFERROR(FIND(тп&INDEX(UPPER(LEFT(коды,FIND(\" \",коды)-1)),ROW()),данные),0)>0,ROW(данные)))))-7),\"\")","v":""}]
["Іванопіль (Жит.) – 04139",{"$f":"IFERROR(RIGHT(INDEX(данные,SUM(IF(IFERROR(FIND(тп&INDEX(UPPER(LEFT(коды,FIND(\" \",коды)-1)),ROW()),данные),0)>0,ROW(данные)))),LEN(INDEX(данные,SUM(IF(IFERROR(FIND(тп&INDEX(UPPER(LEFT(коды,FIND(\" \",коды)-1)),ROW()),данные),0)>0,ROW(данные)))))-FIND(\"ТЕЛЕФОН\",INDEX(данные,SUM(IF(IFERROR(FIND(тп&INDEX(UPPER(LEFT(коды,FIND(\" \",коды)-1)),ROW()),данные),0)>0,ROW(данные)))))-7),\"\")","v":""}]
["ІВАНО-ФРАНКІВСЬК – 034, 0342, 03422",{"$f":"IFERROR(RIGHT(INDEX(данные,SUM(IF(IFERROR(FIND(тп&INDEX(UPPER(LEFT(коды,FIND(\" \",коды)-1)),ROW()),данные),0)>0,ROW(данные)))),LEN(INDEX(данные,SUM(IF(IFERROR(FIND(тп&INDEX(UPPER(LEFT(коды,FIND(\" \",коды)-1)),ROW()),данные),0)>0,ROW(данные)))))-FIND(\"ТЕЛЕФОН\",INDEX(данные,SUM(IF(IFERROR(FIND(тп&INDEX(UPPER(LEFT(коды,FIND(\" \",коды)-1)),ROW()),данные),0)>0,ROW(данные)))))-7),\"\")","v":""}]
["Ізмаїл (Од.) – 04841",{"$f":"IFERROR(RIGHT(INDEX(данные,SUM(IF(IFERROR(FIND(тп&INDEX(UPPER(LEFT(коды,FIND(\" \",коды)-1)),ROW()),данные),0)>0,ROW(данные)))),LEN(INDEX(данные,SUM(IF(IFERROR(FIND(тп&INDEX(UPPER(LEFT(коды,FIND(\" \",коды)-1)),ROW()),данные),0)>0,ROW(данные)))))-FIND(\"ТЕЛЕФОН\",INDEX(данные,SUM(IF(IFERROR(FIND(тп&INDEX(UPPER(LEFT(коды,FIND(\" \",коды)-1)),ROW()),данные),0)>0,ROW(данные)))))-7),\"\")","v":""}]
["Ізюм (Харк.) – 05743",{"$f":"IFERROR(RIGHT(INDEX(данные,SUM(IF(IFERROR(FIND(тп&INDEX(UPPER(LEFT(коды,FIND(\" \",коды)-1)),ROW()),данные),0)>0,ROW(данные)))),LEN(INDEX(данные,SUM(IF(IFERROR(FIND(тп&INDEX(UPPER(LEFT(коды,FIND(\" \",коды)-1)),ROW()),данные),0)>0,ROW(данные)))))-FIND(\"ТЕЛЕФОН\",INDEX(данные,SUM(IF(IFERROR(FIND(тп&INDEX(UPPER(LEFT(коды,FIND(\" \",коды)-1)),ROW()),данные),0)>0,ROW(данные)))))-7),\"\")","v":""}]
["Ізяслав (Хм.) – 03852",{"$f":"IFERROR(RIGHT(INDEX(данные,SUM(IF(IFERROR(FIND(тп&INDEX(UPPER(LEFT(коды,FIND(\" \",коды)-1)),ROW()),данные),0)>0,ROW(данные)))),LEN(INDEX(данные,SUM(IF(IFERROR(FIND(тп&INDEX(UPPER(LEFT(коды,FIND(\" \",коды)-1)),ROW()),данные),0)>0,ROW(данные)))))-FIND(\"ТЕЛЕФОН\",INDEX(данные,SUM(IF(IFERROR(FIND(тп&INDEX(UPPER(LEFT(коды,FIND(\" \",коды)-1)),ROW()),данные),0)>0,ROW(данные)))))-7),\"\")","v":""}]
["Іллінці (Він.) – 04345",{"$f":"IFERROR(RIGHT(INDEX(данные,SUM(IF(IFERROR(FIND(тп&INDEX(UPPER(LEFT(коды,FIND(\" \",коды)-1)),ROW()),данные),0)>0,ROW(данные)))),LEN(INDEX(данные,SUM(IF(IFERROR(FIND(тп&INDEX(UPPER(LEFT(коды,FIND(\" \",коды)-1)),ROW()),данные),0)>0,ROW(данные)))))-FIND(\"ТЕЛЕФОН\",INDEX(данные,SUM(IF(IFERROR(FIND(тп&INDEX(UPPER(LEFT(коды,FIND(\" \",коды)-1)),ROW()),данные),0)>0,ROW(данные)))))-7),\"\")","v":""}]
["Іллічівськ (Од.) – 04868",{"$f":"IFERROR(RIGHT(INDEX(данные,SUM(IF(IFERROR(FIND(тп&INDEX(UPPER(LEFT(коды,FIND(\" \",коды)-1)),ROW()),данные),0)>0,ROW(данные)))),LEN(INDEX(данные,SUM(IF(IFERROR(FIND(тп&INDEX(UPPER(LEFT(коды,FIND(\" \",коды)-1)),ROW()),данные),0)>0,ROW(данные)))))-FIND(\"ТЕЛЕФОН\",INDEX(данные,SUM(IF(IFERROR(FIND(тп&INDEX(UPPER(LEFT(коды,FIND(\" \",коды)-1)),ROW()),данные),0)>0,ROW(данные)))))-7),\"\")","v":""}]
["Ірпінь (Київ.) – 04497",{"$f":"IFERROR(RIGHT(INDEX(данные,SUM(IF(IFERROR(FIND(тп&INDEX(UPPER(LEFT(коды,FIND(\" \",коды)-1)),ROW()),данные),0)>0,ROW(данные)))),LEN(INDEX(данные,SUM(IF(IFERROR(FIND(тп&INDEX(UPPER(LEFT(коды,FIND(\" \",коды)-1)),ROW()),данные),0)>0,ROW(данные)))))-FIND(\"ТЕЛЕФОН\",INDEX(данные,SUM(IF(IFERROR(FIND(тп&INDEX(UPPER(LEFT(коды,FIND(\" \",коды)-1)),ROW()),данные),0)>0,ROW(данные)))))-7),\"\")","v":""}]
["Іршава (Зак.) – 03144",{"$f":"IFERROR(RIGHT(INDEX(данные,SUM(IF(IFERROR(FIND(тп&INDEX(UPPER(LEFT(коды,FIND(\" \",коды)-1)),ROW()),данные),0)>0,ROW(данные)))),LEN(INDEX(данные,SUM(IF(IFERROR(FIND(тп&INDEX(UPPER(LEFT(коды,FIND(\" \",коды)-1)),ROW()),данные),0)>0,ROW(данные)))))-FIND(\"ТЕЛЕФОН\",INDEX(данные,SUM(IF(IFERROR(FIND(тп&INDEX(UPPER(LEFT(коды,FIND(\" \",коды)-1)),ROW()),данные),0)>0,ROW(данные)))))-7),\"\")","v":""}]
["Іршанськ (Жит.) – 04145",{"$f":"IFERROR(RIGHT(INDEX(данные,SUM(IF(IFERROR(FIND(тп&INDEX(UPPER(LEFT(коды,FIND(\" \",коды)-1)),ROW()),данные),0)>0,ROW(данные)))),LEN(INDEX(данные,SUM(IF(IFERROR(FIND(тп&INDEX(UPPER(LEFT(коды,FIND(\" \",коды)-1)),ROW()),данные),0)>0,ROW(данные)))))-FIND(\"ТЕЛЕФОН\",INDEX(данные,SUM(IF(IFERROR(FIND(тп&INDEX(UPPER(LEFT(коды,FIND(\" \",коды)-1)),ROW()),данные),0)>0,ROW(данные)))))-7),\"\")","v":""}]
["Ічня (Черніг.) – 04633",{"$f":"IFERROR(RIGHT(INDEX(данные,SUM(IF(IFERROR(FIND(тп&INDEX(UPPER(LEFT(коды,FIND(\" \",коды)-1)),ROW()),данные),0)>0,ROW(данные)))),LEN(INDEX(данные,SUM(IF(IFERROR(FIND(тп&INDEX(UPPER(LEFT(коды,FIND(\" \",коды)-1)),ROW()),данные),0)>0,ROW(данные)))))-FIND(\"ТЕЛЕФОН\",INDEX(данные,SUM(IF(IFERROR(FIND(тп&INDEX(UPPER(LEFT(коды,FIND(\" \",коды)-1)),ROW()),данные),0)>0,ROW(данные)))))-7),\"\")","v":""}]
[null,{"$f":"IFERROR(RIGHT(INDEX(данные,SUM(IF(IFERROR(FIND(тп&INDEX(UPPER(LEFT(коды,FIND(\" \",коды)-1)),ROW()),данные),0)>0,ROW(данные)))),LEN(INDEX(данные,SUM(IF(IFERROR(FIND(тп&INDEX(UPPER(LEFT(коды,FIND(\" \",коды)-1)),ROW()),данные),0)>0,ROW(данные)))))-FIND(\"ТЕЛЕФОН\",INDEX(данные,SUM(IF(IFERROR(FIND(тп&INDEX(UPPER(LEFT(коды,FIND(\" \",коды)-1)),ROW()),данные),0)>0,ROW(данные)))))-7),\"\")","v":""}]
["Кагарлик (Київ.) – 04473",{"$f":"IFERROR(RIGHT(INDEX(данные,SUM(IF(IFERROR(FIND(тп&INDEX(UPPER(LEFT(коды,FIND(\" \",коды)-1)),ROW()),данные),0)>0,ROW(данные)))),LEN(INDEX(данные,SUM(IF(IFERROR(FIND(тп&INDEX(UPPER(LEFT(коды,FIND(\" \",коды)-1)),ROW()),данные),0)>0,ROW(данные)))))-FIND(\"ТЕЛЕФОН\",INDEX(данные,SUM(IF(IFERROR(FIND(тп&INDEX(UPPER(LEFT(коды,FIND(\" \",коды)-1)),ROW()),данные),0)>0,ROW(данные)))))-7),\"\")","v":""}]
["Казанка (Мик.) – 05164",{"$f":"IFERROR(RIGHT(INDEX(данные,SUM(IF(IFERROR(FIND(тп&INDEX(UPPER(LEFT(коды,FIND(\" \",коды)-1)),ROW()),данные),0)>0,ROW(данные)))),LEN(INDEX(данные,SUM(IF(IFERROR(FIND(тп&INDEX(UPPER(LEFT(коды,FIND(\" \",коды)-1)),ROW()),данные),0)>0,ROW(данные)))))-FIND(\"ТЕЛЕФОН\",INDEX(данные,SUM(IF(IFERROR(FIND(тп&INDEX(UPPER(LEFT(коды,FIND(\" \",коды)-1)),ROW()),данные),0)>0,ROW(данные)))))-7),\"\")","v":""}]
["Каланчак (Херс.) – 05530",{"$f":"IFERROR(RIGHT(INDEX(данные,SUM(IF(IFERROR(FIND(тп&INDEX(UPPER(LEFT(коды,FIND(\" \",коды)-1)),ROW()),данные),0)>0,ROW(данные)))),LEN(INDEX(данные,SUM(IF(IFERROR(FIND(тп&INDEX(UPPER(LEFT(коды,FIND(\" \",коды)-1)),ROW()),данные),0)>0,ROW(данные)))))-FIND(\"ТЕЛЕФОН\",INDEX(данные,SUM(IF(IFERROR(FIND(тп&INDEX(UPPER(LEFT(коды,FIND(\" \",коды)-1)),ROW()),данные),0)>0,ROW(данные)))))-7),\"\")","v":""}]
["Калинівка (Він.) – 04333",{"$f":"IFERROR(RIGHT(INDEX(данные,SUM(IF(IFERROR(FIND(тп&INDEX(UPPER(LEFT(коды,FIND(\" \",коды)-1)),ROW()),данные),0)>0,ROW(данные)))),LEN(INDEX(данные,SUM(IF(IFERROR(FIND(тп&INDEX(UPPER(LEFT(коды,FIND(\" \",коды)-1)),ROW()),данные),0)>0,ROW(данные)))))-FIND(\"ТЕЛЕФОН\",INDEX(данные,SUM(IF(IFERROR(FIND(тп&INDEX(UPPER(LEFT(коды,FIND(\" \",коды)-1)),ROW()),данные),0)>0,ROW(данные)))))-7),\"\")","v":""}]
["Калита (Київ.) – 04494",{"$f":"IFERROR(RIGHT(INDEX(данные,SUM(IF(IFERROR(FIND(тп&INDEX(UPPER(LEFT(коды,FIND(\" \",коды)-1)),ROW()),данные),0)>0,ROW(данные)))),LEN(INDEX(данные,SUM(IF(IFERROR(FIND(тп&INDEX(UPPER(LEFT(коды,FIND(\" \",коды)-1)),ROW()),данные),0)>0,ROW(данные)))))-FIND(\"ТЕЛЕФОН\",INDEX(данные,SUM(IF(IFERROR(FIND(тп&INDEX(UPPER(LEFT(коды,FIND(\" \",коды)-1)),ROW()),данные),0)>0,ROW(данные)))))-7),\"\")","v":""}]
["Калуш (Ів.-Фр.) – 03472",{"$f":"IFERROR(RIGHT(INDEX(данные,SUM(IF(IFERROR(FIND(тп&INDEX(UPPER(LEFT(коды,FIND(\" \",коды)-1)),ROW()),данные),0)>0,ROW(данные)))),LEN(INDEX(данные,SUM(IF(IFERROR(FIND(тп&INDEX(UPPER(LEFT(коды,FIND(\" \",коды)-1)),ROW()),данные),0)>0,ROW(данные)))))-FIND(\"ТЕЛЕФОН\",INDEX(данные,SUM(IF(IFERROR(FIND(тп&INDEX(UPPER(LEFT(коды,FIND(\" \",коды)-1)),ROW()),данные),0)>0,ROW(данные)))))-7),\"\")","v":""}]
["Камінь-Каширський (Вол.) – 03357",{"$f":"IFERROR(RIGHT(INDEX(данные,SUM(IF(IFERROR(FIND(тп&INDEX(UPPER(LEFT(коды,FIND(\" \",коды)-1)),ROW()),данные),0)>0,ROW(данные)))),LEN(INDEX(данные,SUM(IF(IFERROR(FIND(тп&INDEX(UPPER(LEFT(коды,FIND(\" \",коды)-1)),ROW()),данные),0)>0,ROW(данные)))))-FIND(\"ТЕЛЕФОН\",INDEX(данные,SUM(IF(IFERROR(FIND(тп&INDEX(UPPER(LEFT(коды,FIND(\" \",коды)-1)),ROW()),данные),0)>0,ROW(данные)))))-7),\"\")","v":""}]
["Кам'янець-Подільський (Хм.) – 03849",{"$f":"IFERROR(RIGHT(INDEX(данные,SUM(IF(IFERROR(FIND(тп&INDEX(UPPER(LEFT(коды,FIND(\" \",коды)-1)),ROW()),данные),0)>0,ROW(данные)))),LEN(INDEX(данные,SUM(IF(IFERROR(FIND(тп&INDEX(UPPER(LEFT(коды,FIND(\" \",коды)-1)),ROW()),данные),0)>0,ROW(данные)))))-FIND(\"ТЕЛЕФОН\",INDEX(данные,SUM(IF(IFERROR(FIND(тп&INDEX(UPPER(LEFT(коды,FIND(\" \",коды)-1)),ROW()),данные),0)>0,ROW(данные)))))-7),\"\")","v":""}]
["Кам'янка (Черк.) – 04732",{"$f":"IFERROR(RIGHT(INDEX(данные,SUM(IF(IFERROR(FIND(тп&INDEX(UPPER(LEFT(коды,FIND(\" \",коды)-1)),ROW()),данные),0)>0,ROW(данные)))),LEN(INDEX(данные,SUM(IF(IFERROR(FIND(тп&INDEX(UPPER(LEFT(коды,FIND(\" \",коды)-1)),ROW()),данные),0)>0,ROW(данные)))))-FIND(\"ТЕЛЕФОН\",INDEX(данные,SUM(IF(IFERROR(FIND(тп&INDEX(UPPER(LEFT(коды,FIND(\" \",коды)-1)),ROW()),данные),0)>0,ROW(данные)))))-7),\"\")","v":""}]
["Кам'янка-Бузька (Льв.) – 03254",{"$f":"IFERROR(RIGHT(INDEX(данные,SUM(IF(IFERROR(FIND(тп&INDEX(UPPER(LEFT(коды,FIND(\" \",коды)-1)),ROW()),данные),0)>0,ROW(данные)))),LEN(INDEX(данные,SUM(IF(IFERROR(FIND(тп&INDEX(UPPER(LEFT(коды,FIND(\" \",коды)-1)),ROW()),данные),0)>0,ROW(данные)))))-FIND(\"ТЕЛЕФОН\",INDEX(данные,SUM(IF(IFERROR(FIND(тп&INDEX(UPPER(LEFT(коды,FIND(\" \",коды)-1)),ROW()),данные),0)>0,ROW(данные)))))-7),\"\")","v":""}]
["Кам'янка-Дніпровська (Зап.) – 06138",{"$f":"IFERROR(RIGHT(INDEX(данные,SUM(IF(IFERROR(FIND(тп&INDEX(UPPER(LEFT(коды,FIND(\" \",коды)-1)),ROW()),данные),0)>0,ROW(данные)))),LEN(INDEX(данные,SUM(IF(IFERROR(FIND(тп&INDEX(UPPER(LEFT(коды,FIND(\" \",коды)-1)),ROW()),данные),0)>0,ROW(данные)))))-FIND(\"ТЕЛЕФОН\",INDEX(данные,SUM(IF(IFERROR(FIND(тп&INDEX(UPPER(LEFT(коды,FIND(\" \",коды)-1)),ROW()),данные),0)>0,ROW(данные)))))-7),\"\")","v":""}]
["Канів (Черк.) – 04736",{"$f":"IFERROR(RIGHT(INDEX(данные,SUM(IF(IFERROR(FIND(тп&INDEX(UPPER(LEFT(коды,FIND(\" \",коды)-1)),ROW()),данные),0)>0,ROW(данные)))),LEN(INDEX(данные,SUM(IF(IFERROR(FIND(тп&INDEX(UPPER(LEFT(коды,FIND(\" \",коды)-1)),ROW()),данные),0)>0,ROW(данные)))))-FIND(\"ТЕЛЕФОН\",INDEX(данные,SUM(IF(IFERROR(FIND(тп&INDEX(UPPER(LEFT(коды,FIND(\" \",коды)-1)),ROW()),данные),0)>0,ROW(данные)))))-7),\"\")","v":""}]
["Карлівка (Полт.) – 05346",{"$f":"IFERROR(RIGHT(INDEX(данные,SUM(IF(IFERROR(FIND(тп&INDEX(UPPER(LEFT(коды,FIND(\" \",коды)-1)),ROW()),данные),0)>0,ROW(данные)))),LEN(INDEX(данные,SUM(IF(IFERROR(FIND(тп&INDEX(UPPER(LEFT(коды,FIND(\" \",коды)-1)),ROW()),данные),0)>0,ROW(данные)))))-FIND(\"ТЕЛЕФОН\",INDEX(данные,SUM(IF(IFERROR(FIND(тп&INDEX(UPPER(LEFT(коды,FIND(\" \",коды)-1)),ROW()),данные),0)>0,ROW(данные)))))-7),\"\")","v":""}]
["Катеринопіль (Черк.) – 04742",{"$f":"IFERROR(RIGHT(INDEX(данные,SUM(IF(IFERROR(FIND(тп&INDEX(UPPER(LEFT(коды,FIND(\" \",коды)-1)),ROW()),данные),0)>0,ROW(данные)))),LEN(INDEX(данные,SUM(IF(IFERROR(FIND(тп&INDEX(UPPER(LEFT(коды,FIND(\" \",коды)-1)),ROW()),данные),0)>0,ROW(данные)))))-FIND(\"ТЕЛЕФОН\",INDEX(данные,SUM(IF(IFERROR(FIND(тп&INDEX(UPPER(LEFT(коды,FIND(\" \",коды)-1)),ROW()),данные),0)>0,ROW(данные)))))-7),\"\")","v":""}]
["Каховка (Херс.) – 05536",{"$f":"IFERROR(RIGHT(INDEX(данные,SUM(IF(IFERROR(FIND(тп&INDEX(UPPER(LEFT(коды,FIND(\" \",коды)-1)),ROW()),данные),0)>0,ROW(данные)))),LEN(INDEX(данные,SUM(IF(IFERROR(FIND(тп&INDEX(UPPER(LEFT(коды,FIND(\" \",коды)-1)),ROW()),данные),0)>0,ROW(данные)))))-FIND(\"ТЕЛЕФОН\",INDEX(данные,SUM(IF(IFERROR(FIND(тп&INDEX(UPPER(LEFT(коды,FIND(\" \",коды)-1)),ROW()),данные),0)>0,ROW(данные)))))-7),\"\")","v":""}]
["Кацівелі (АРК) – 0654",{"$f":"IFERROR(RIGHT(INDEX(данные,SUM(IF(IFERROR(FIND(тп&INDEX(UPPER(LEFT(коды,FIND(\" \",коды)-1)),ROW()),данные),0)>0,ROW(данные)))),LEN(INDEX(данные,SUM(IF(IFERROR(FIND(тп&INDEX(UPPER(LEFT(коды,FIND(\" \",коды)-1)),ROW()),данные),0)>0,ROW(данные)))))-FIND(\"ТЕЛЕФОН\",INDEX(данные,SUM(IF(IFERROR(FIND(тп&INDEX(UPPER(LEFT(коды,FIND(\" \",коды)-1)),ROW()),данные),0)>0,ROW(данные)))))-7),\"\")","v":""}]
["Кача (АРК) – 0692",{"$f":"IFERROR(RIGHT(INDEX(данные,SUM(IF(IFERROR(FIND(тп&INDEX(UPPER(LEFT(коды,FIND(\" \",коды)-1)),ROW()),данные),0)>0,ROW(данные)))),LEN(INDEX(данные,SUM(IF(IFERROR(FIND(тп&INDEX(UPPER(LEFT(коды,FIND(\" \",коды)-1)),ROW()),данные),0)>0,ROW(данные)))))-FIND(\"ТЕЛЕФОН\",INDEX(данные,SUM(IF(IFERROR(FIND(тп&INDEX(UPPER(LEFT(коды,FIND(\" \",коды)-1)),ROW()),данные),0)>0,ROW(данные)))))-7),\"\")","v":""}]
["Кегичівка (Харк.) – 05755",{"$f":"IFERROR(RIGHT(INDEX(данные,SUM(IF(IFERROR(FIND(тп&INDEX(UPPER(LEFT(коды,FIND(\" \",коды)-1)),ROW()),данные),0)>0,ROW(данные)))),LEN(INDEX(данные,SUM(IF(IFERROR(FIND(тп&INDEX(UPPER(LEFT(коды,FIND(\" \",коды)-1)),ROW()),данные),0)>0,ROW(данные)))))-FIND(\"ТЕЛЕФОН\",INDEX(данные,SUM(IF(IFERROR(FIND(тп&INDEX(UPPER(LEFT(коды,FIND(\" \",коды)-1)),ROW()),данные),0)>0,ROW(данные)))))-7),\"\")","v":""}]
["Кельменці (Черніг.) – 03732",{"$f":"IFERROR(RIGHT(INDEX(данные,SUM(IF(IFERROR(FIND(тп&INDEX(UPPER(LEFT(коды,FIND(\" \",коды)-1)),ROW()),данные),0)>0,ROW(данные)))),LEN(INDEX(данные,SUM(IF(IFERROR(FIND(тп&INDEX(UPPER(LEFT(коды,FIND(\" \",коды)-1)),ROW()),данные),0)>0,ROW(данные)))))-FIND(\"ТЕЛЕФОН\",INDEX(данные,SUM(IF(IFERROR(FIND(тп&INDEX(UPPER(LEFT(коды,FIND(\" \",коды)-1)),ROW()),данные),0)>0,ROW(данные)))))-7),\"\")","v":""}]
["Керч (АРК) – 06561",{"$f":"IFERROR(RIGHT(INDEX(данные,SUM(IF(IFERROR(FIND(тп&INDEX(UPPER(LEFT(коды,FIND(\" \",коды)-1)),ROW()),данные),0)>0,ROW(данные)))),LEN(INDEX(данные,SUM(IF(IFERROR(FIND(тп&INDEX(UPPER(LEFT(коды,FIND(\" \",коды)-1)),ROW()),данные),0)>0,ROW(данные)))))-FIND(\"ТЕЛЕФОН\",INDEX(данные,SUM(IF(IFERROR(FIND(тп&INDEX(UPPER(LEFT(коды,FIND(\" \",коды)-1)),ROW()),данные),0)>0,ROW(данные)))))-7),\"\")","v":""}]
["КИЇВ – 044",{"$f":"IFERROR(RIGHT(INDEX(данные,SUM(IF(IFERROR(FIND(тп&INDEX(UPPER(LEFT(коды,FIND(\" \",коды)-1)),ROW()),данные),0)>0,ROW(данные)))),LEN(INDEX(данные,SUM(IF(IFERROR(FIND(тп&INDEX(UPPER(LEFT(коды,FIND(\" \",коды)-1)),ROW()),данные),0)>0,ROW(данные)))))-FIND(\"ТЕЛЕФОН\",INDEX(данные,SUM(IF(IFERROR(FIND(тп&INDEX(UPPER(LEFT(коды,FIND(\" \",коды)-1)),ROW()),данные),0)>0,ROW(данные)))))-7),\"\")","v":""}]
["Кирилівка (Зап.) – 06131",{"$f":"IFERROR(RIGHT(INDEX(данные,SUM(IF(IFERROR(FIND(тп&INDEX(UPPER(LEFT(коды,FIND(\" \",коды)-1)),ROW()),данные),0)>0,ROW(данные)))),LEN(INDEX(данные,SUM(IF(IFERROR(FIND(тп&INDEX(UPPER(LEFT(коды,FIND(\" \",коды)-1)),ROW()),данные),0)>0,ROW(данные)))))-FIND(\"ТЕЛЕФОН\",INDEX(данные,SUM(IF(IFERROR(FIND(тп&INDEX(UPPER(LEFT(коды,FIND(\" \",коды)-1)),ROW()),данные),0)>0,ROW(данные)))))-7),\"\")","v":""}]
["Ківерці (Вол.) – 03365",{"$f":"IFERROR(RIGHT(INDEX(данные,SUM(IF(IFERROR(FIND(тп&INDEX(UPPER(LEFT(коды,FIND(\" \",коды)-1)),ROW()),данные),0)>0,ROW(данные)))),LEN(INDEX(данные,SUM(IF(IFERROR(FIND(тп&INDEX(UPPER(LEFT(коды,FIND(\" \",коды)-1)),ROW()),данные),0)>0,ROW(данные)))))-FIND(\"ТЕЛЕФОН\",INDEX(данные,SUM(IF(IFERROR(FIND(тп&INDEX(UPPER(LEFT(коды,FIND(\" \",коды)-1)),ROW()),данные),0)>0,ROW(данные)))))-7),\"\")","v":""}]
["Ківшарівка (Харк.) – 05742",{"$f":"IFERROR(RIGHT(INDEX(данные,SUM(IF(IFERROR(FIND(тп&INDEX(UPPER(LEFT(коды,FIND(\" \",коды)-1)),ROW()),данные),0)>0,ROW(данные)))),LEN(INDEX(данные,SUM(IF(IFERROR(FIND(тп&INDEX(UPPER(LEFT(коды,FIND(\" \",коды)-1)),ROW()),данные),0)>0,ROW(данные)))))-FIND(\"ТЕЛЕФОН\",INDEX(данные,SUM(IF(IFERROR(FIND(тп&INDEX(UPPER(LEFT(коды,FIND(\" \",коды)-1)),ROW()),данные),0)>0,ROW(данные)))))-7),\"\")","v":""}]
["Кілія (Од.) – 04843",{"$f":"IFERROR(RIGHT(INDEX(данные,SUM(IF(IFERROR(FIND(тп&INDEX(UPPER(LEFT(коды,FIND(\" \",коды)-1)),ROW()),данные),0)>0,ROW(данные)))),LEN(INDEX(данные,SUM(IF(IFERROR(FIND(тп&INDEX(UPPER(LEFT(коды,FIND(\" \",коды)-1)),ROW()),данные),0)>0,ROW(данные)))))-FIND(\"ТЕЛЕФОН\",INDEX(данные,SUM(IF(IFERROR(FIND(тп&INDEX(UPPER(LEFT(коды,FIND(\" \",коды)-1)),ROW()),данные),0)>0,ROW(данные)))))-7),\"\")","v":""}]
["КІРОВОГРАД – 0522",{"$f":"IFERROR(RIGHT(INDEX(данные,SUM(IF(IFERROR(FIND(тп&INDEX(UPPER(LEFT(коды,FIND(\" \",коды)-1)),ROW()),данные),0)>0,ROW(данные)))),LEN(INDEX(данные,SUM(IF(IFERROR(FIND(тп&INDEX(UPPER(LEFT(коды,FIND(\" \",коды)-1)),ROW()),данные),0)>0,ROW(данные)))))-FIND(\"ТЕЛЕФОН\",INDEX(данные,SUM(IF(IFERROR(FIND(тп&INDEX(UPPER(LEFT(коды,FIND(\" \",коды)-1)),ROW()),данные),0)>0,ROW(данные)))))-7),\"\")","v":""}]
["Кіровськ (Луг.) – 06446",{"$f":"IFERROR(RIGHT(INDEX(данные,SUM(IF(IFERROR(FIND(тп&INDEX(UPPER(LEFT(коды,FIND(\" \",коды)-1)),ROW()),данные),0)>0,ROW(данные)))),LEN(INDEX(данные,SUM(IF(IFERROR(FIND(тп&INDEX(UPPER(LEFT(коды,FIND(\" \",коды)-1)),ROW()),данные),0)>0,ROW(данные)))))-FIND(\"ТЕЛЕФОН\",INDEX(данные,SUM(IF(IFERROR(FIND(тп&INDEX(UPPER(LEFT(коды,FIND(\" \",коды)-1)),ROW()),данные),0)>0,ROW(данные)))))-7),\"\")","v":""}]
["Кіровське (Дон.) – 06250",{"$f":"IFERROR(RIGHT(INDEX(данные,SUM(IF(IFERROR(FIND(тп&INDEX(UPPER(LEFT(коды,FIND(\" \",коды)-1)),ROW()),данные),0)>0,ROW(данные)))),LEN(INDEX(данные,SUM(IF(IFERROR(FIND(тп&INDEX(UPPER(LEFT(коды,FIND(\" \",коды)-1)),ROW()),данные),0)>0,ROW(данные)))))-FIND(\"ТЕЛЕФОН\",INDEX(данные,SUM(IF(IFERROR(FIND(тп&INDEX(UPPER(LEFT(коды,FIND(\" \",коды)-1)),ROW()),данные),0)>0,ROW(данные)))))-7),\"\")","v":""}]
["Кіровське (АРК) – 06555",{"$f":"IFERROR(RIGHT(INDEX(данные,SUM(IF(IFERROR(FIND(тп&INDEX(UPPER(LEFT(коды,FIND(\" \",коды)-1)),ROW()),данные),0)>0,ROW(данные)))),LEN(INDEX(данные,SUM(IF(IFERROR(FIND(тп&INDEX(UPPER(LEFT(коды,FIND(\" \",коды)-1)),ROW()),данные),0)>0,ROW(данные)))))-FIND(\"ТЕЛЕФОН\",INDEX(данные,SUM(IF(IFERROR(FIND(тп&INDEX(UPPER(LEFT(коды,FIND(\" \",коды)-1)),ROW()),данные),0)>0,ROW(данные)))))-7),\"\")","v":""}]
["Кіцмань (Чернів.) – 03736",{"$f":"IFERROR(RIGHT(INDEX(данные,SUM(IF(IFERROR(FIND(тп&INDEX(UPPER(LEFT(коды,FIND(\" \",коды)-1)),ROW()),данные),0)>0,ROW(данные)))),LEN(INDEX(данные,SUM(IF(IFERROR(FIND(тп&INDEX(UPPER(LEFT(коды,FIND(\" \",коды)-1)),ROW()),данные),0)>0,ROW(данные)))))-FIND(\"ТЕЛЕФОН\",INDEX(данные,SUM(IF(IFERROR(FIND(тп&INDEX(UPPER(LEFT(коды,FIND(\" \",коды)-1)),ROW()),данные),0)>0,ROW(данные)))))-7),\"\")","v":""}]
["Клавдієво-Тарасове (Київ.) – 04477",{"$f":"IFERROR(RIGHT(INDEX(данные,SUM(IF(IFERROR(FIND(тп&INDEX(UPPER(LEFT(коды,FIND(\" \",коды)-1)),ROW()),данные),0)>0,ROW(данные)))),LEN(INDEX(данные,SUM(IF(IFERROR(FIND(тп&INDEX(UPPER(LEFT(коды,FIND(\" \",коды)-1)),ROW()),данные),0)>0,ROW(данные)))))-FIND(\"ТЕЛЕФОН\",INDEX(данные,SUM(IF(IFERROR(FIND(тп&INDEX(UPPER(LEFT(коды,FIND(\" \",коды)-1)),ROW()),данные),0)>0,ROW(данные)))))-7),\"\")","v":""}]
["Кобеляки (Полт.) – 05343",{"$f":"IFERROR(RIGHT(INDEX(данные,SUM(IF(IFERROR(FIND(тп&INDEX(UPPER(LEFT(коды,FIND(\" \",коды)-1)),ROW()),данные),0)>0,ROW(данные)))),LEN(INDEX(данные,SUM(IF(IFERROR(FIND(тп&INDEX(UPPER(LEFT(коды,FIND(\" \",коды)-1)),ROW()),данные),0)>0,ROW(данные)))))-FIND(\"ТЕЛЕФОН\",INDEX(данные,SUM(IF(IFERROR(FIND(тп&INDEX(UPPER(LEFT(коды,FIND(\" \",коды)-1)),ROW()),данные),0)>0,ROW(данные)))))-7),\"\")","v":""}]
["Ковель (Вол.) – 03352",{"$f":"IFERROR(RIGHT(INDEX(данные,SUM(IF(IFERROR(FIND(тп&INDEX(UPPER(LEFT(коды,FIND(\" \",коды)-1)),ROW()),данные),0)>0,ROW(данные)))),LEN(INDEX(данные,SUM(IF(IFERROR(FIND(тп&INDEX(UPPER(LEFT(коды,FIND(\" \",коды)-1)),ROW()),данные),0)>0,ROW(данные)))))-FIND(\"ТЕЛЕФОН\",INDEX(данные,SUM(IF(IFERROR(FIND(тп&INDEX(UPPER(LEFT(коды,FIND(\" \",коды)-1)),ROW()),данные),0)>0,ROW(данные)))))-7),\"\")","v":""}]
["Ков'яги (Харк.) – 05753",{"$f":"IFERROR(RIGHT(INDEX(данные,SUM(IF(IFERROR(FIND(тп&INDEX(UPPER(LEFT(коды,FIND(\" \",коды)-1)),ROW()),данные),0)>0,ROW(данные)))),LEN(INDEX(данные,SUM(IF(IFERROR(FIND(тп&INDEX(UPPER(LEFT(коды,FIND(\" \",коды)-1)),ROW()),данные),0)>0,ROW(данные)))))-FIND(\"ТЕЛЕФОН\",INDEX(данные,SUM(IF(IFERROR(FIND(тп&INDEX(UPPER(LEFT(коды,FIND(\" \",коды)-1)),ROW()),данные),0)>0,ROW(данные)))))-7),\"\")","v":""}]
["Кодима (Од.) – 04867",{"$f":"IFERROR(RIGHT(INDEX(данные,SUM(IF(IFERROR(FIND(тп&INDEX(UPPER(LEFT(коды,FIND(\" \",коды)-1)),ROW()),данные),0)>0,ROW(данные)))),LEN(INDEX(данные,SUM(IF(IFERROR(FIND(тп&INDEX(UPPER(LEFT(коды,FIND(\" \",коды)-1)),ROW()),данные),0)>0,ROW(данные)))))-FIND(\"ТЕЛЕФОН\",INDEX(данные,SUM(IF(IFERROR(FIND(тп&INDEX(UPPER(LEFT(коды,FIND(\" \",коды)-1)),ROW()),данные),0)>0,ROW(данные)))))-7),\"\")","v":""}]
["Козача Лопань (Харк.) – 05763",{"$f":"IFERROR(RIGHT(INDEX(данные,SUM(IF(IFERROR(FIND(тп&INDEX(UPPER(LEFT(коды,FIND(\" \",коды)-1)),ROW()),данные),0)>0,ROW(данные)))),LEN(INDEX(данные,SUM(IF(IFERROR(FIND(тп&INDEX(UPPER(LEFT(коды,FIND(\" \",коды)-1)),ROW()),данные),0)>0,ROW(данные)))))-FIND(\"ТЕЛЕФОН\",INDEX(данные,SUM(IF(IFERROR(FIND(тп&INDEX(UPPER(LEFT(коды,FIND(\" \",коды)-1)),ROW()),данные),0)>0,ROW(данные)))))-7),\"\")","v":""}]
["Козелець (Черніг.) – 04646",{"$f":"IFERROR(RIGHT(INDEX(данные,SUM(IF(IFERROR(FIND(тп&INDEX(UPPER(LEFT(коды,FIND(\" \",коды)-1)),ROW()),данные),0)>0,ROW(данные)))),LEN(INDEX(данные,SUM(IF(IFERROR(FIND(тп&INDEX(UPPER(LEFT(коды,FIND(\" \",коды)-1)),ROW()),данные),0)>0,ROW(данные)))))-FIND(\"ТЕЛЕФОН\",INDEX(данные,SUM(IF(IFERROR(FIND(тп&INDEX(UPPER(LEFT(коды,FIND(\" \",коды)-1)),ROW()),данные),0)>0,ROW(данные)))))-7),\"\")","v":""}]
["Козельщина (Полт.) – 05342",{"$f":"IFERROR(RIGHT(INDEX(данные,SUM(IF(IFERROR(FIND(тп&INDEX(UPPER(LEFT(коды,FIND(\" \",коды)-1)),ROW()),данные),0)>0,ROW(данные)))),LEN(INDEX(данные,SUM(IF(IFERROR(FIND(тп&INDEX(UPPER(LEFT(коды,FIND(\" \",коды)-1)),ROW()),данные),0)>0,ROW(данные)))))-FIND(\"ТЕЛЕФОН\",INDEX(данные,SUM(IF(IFERROR(FIND(тп&INDEX(UPPER(LEFT(коды,FIND(\" \",коды)-1)),ROW()),данные),0)>0,ROW(данные)))))-7),\"\")","v":""}]
["Козин (Київ.) – 04472",{"$f":"IFERROR(RIGHT(INDEX(данные,SUM(IF(IFERROR(FIND(тп&INDEX(UPPER(LEFT(коды,FIND(\" \",коды)-1)),ROW()),данные),0)>0,ROW(данные)))),LEN(INDEX(данные,SUM(IF(IFERROR(FIND(тп&INDEX(UPPER(LEFT(коды,FIND(\" \",коды)-1)),ROW()),данные),0)>0,ROW(данные)))))-FIND(\"ТЕЛЕФОН\",INDEX(данные,SUM(IF(IFERROR(FIND(тп&INDEX(UPPER(LEFT(коды,FIND(\" \",коды)-1)),ROW()),данные),0)>0,ROW(данные)))))-7),\"\")","v":""}]
["Козлів (Терн.) – 03547",{"$f":"IFERROR(RIGHT(INDEX(данные,SUM(IF(IFERROR(FIND(тп&INDEX(UPPER(LEFT(коды,FIND(\" \",коды)-1)),ROW()),данные),0)>0,ROW(данные)))),LEN(INDEX(данные,SUM(IF(IFERROR(FIND(тп&INDEX(UPPER(LEFT(коды,FIND(\" \",коды)-1)),ROW()),данные),0)>0,ROW(данные)))))-FIND(\"ТЕЛЕФОН\",INDEX(данные,SUM(IF(IFERROR(FIND(тп&INDEX(UPPER(LEFT(коды,FIND(\" \",коды)-1)),ROW()),данные),0)>0,ROW(данные)))))-7),\"\")","v":""}]
["Козова (Терн.) – 03547",{"$f":"IFERROR(RIGHT(INDEX(данные,SUM(IF(IFERROR(FIND(тп&INDEX(UPPER(LEFT(коды,FIND(\" \",коды)-1)),ROW()),данные),0)>0,ROW(данные)))),LEN(INDEX(данные,SUM(IF(IFERROR(FIND(тп&INDEX(UPPER(LEFT(коды,FIND(\" \",коды)-1)),ROW()),данные),0)>0,ROW(данные)))))-FIND(\"ТЕЛЕФОН\",INDEX(данные,SUM(IF(IFERROR(FIND(тп&INDEX(UPPER(LEFT(коды,FIND(\" \",коды)-1)),ROW()),данные),0)>0,ROW(данные)))))-7),\"\")","v":""}]
["Козятин (Він.) – 04342",{"$f":"IFERROR(RIGHT(INDEX(данные,SUM(IF(IFERROR(FIND(тп&INDEX(UPPER(LEFT(коды,FIND(\" \",коды)-1)),ROW()),данные),0)>0,ROW(данные)))),LEN(INDEX(данные,SUM(IF(IFERROR(FIND(тп&INDEX(UPPER(LEFT(коды,FIND(\" \",коды)-1)),ROW()),данные),0)>0,ROW(данные)))))-FIND(\"ТЕЛЕФОН\",INDEX(данные,SUM(IF(IFERROR(FIND(тп&INDEX(UPPER(LEFT(коды,FIND(\" \",коды)-1)),ROW()),данные),0)>0,ROW(данные)))))-7),\"\")","v":""}]
["Коломак (Харк.) – 05766",{"$f":"IFERROR(RIGHT(INDEX(данные,SUM(IF(IFERROR(FIND(тп&INDEX(UPPER(LEFT(коды,FIND(\" \",коды)-1)),ROW()),данные),0)>0,ROW(данные)))),LEN(INDEX(данные,SUM(IF(IFERROR(FIND(тп&INDEX(UPPER(LEFT(коды,FIND(\" \",коды)-1)),ROW()),данные),0)>0,ROW(данные)))))-FIND(\"ТЕЛЕФОН\",INDEX(данные,SUM(IF(IFERROR(FIND(тп&INDEX(UPPER(LEFT(коды,FIND(\" \",коды)-1)),ROW()),данные),0)>0,ROW(данные)))))-7),\"\")","v":""}]
["Коломия (Ів.-Фр.) – 03433",{"$f":"IFERROR(RIGHT(INDEX(данные,SUM(IF(IFERROR(FIND(тп&INDEX(UPPER(LEFT(коды,FIND(\" \",коды)-1)),ROW()),данные),0)>0,ROW(данные)))),LEN(INDEX(данные,SUM(IF(IFERROR(FIND(тп&INDEX(UPPER(LEFT(коды,FIND(\" \",коды)-1)),ROW()),данные),0)>0,ROW(данные)))))-FIND(\"ТЕЛЕФОН\",INDEX(данные,SUM(IF(IFERROR(FIND(тп&INDEX(UPPER(LEFT(коды,FIND(\" \",коды)-1)),ROW()),данные),0)>0,ROW(данные)))))-7),\"\")","v":""}]
["Комарне (Льв.) – 03231",{"$f":"IFERROR(RIGHT(INDEX(данные,SUM(IF(IFERROR(FIND(тп&INDEX(UPPER(LEFT(коды,FIND(\" \",коды)-1)),ROW()),данные),0)>0,ROW(данные)))),LEN(INDEX(данные,SUM(IF(IFERROR(FIND(тп&INDEX(UPPER(LEFT(коды,FIND(\" \",коды)-1)),ROW()),данные),0)>0,ROW(данные)))))-FIND(\"ТЕЛЕФОН\",INDEX(данные,SUM(IF(IFERROR(FIND(тп&INDEX(UPPER(LEFT(коды,FIND(\" \",коды)-1)),ROW()),данные),0)>0,ROW(данные)))))-7),\"\")","v":""}]
["Комиш-Зоря (Зап.) – 06147",{"$f":"IFERROR(RIGHT(INDEX(данные,SUM(IF(IFERROR(FIND(тп&INDEX(UPPER(LEFT(коды,FIND(\" \",коды)-1)),ROW()),данные),0)>0,ROW(данные)))),LEN(INDEX(данные,SUM(IF(IFERROR(FIND(тп&INDEX(UPPER(LEFT(коды,FIND(\" \",коды)-1)),ROW()),данные),0)>0,ROW(данные)))))-FIND(\"ТЕЛЕФОН\",INDEX(данные,SUM(IF(IFERROR(FIND(тп&INDEX(UPPER(LEFT(коды,FIND(\" \",коды)-1)),ROW()),данные),0)>0,ROW(данные)))))-7),\"\")","v":""}]
["Комишуваха (Зап.) – 06141",{"$f":"IFERROR(RIGHT(INDEX(данные,SUM(IF(IFERROR(FIND(тп&INDEX(UPPER(LEFT(коды,FIND(\" \",коды)-1)),ROW()),данные),0)>0,ROW(данные)))),LEN(INDEX(данные,SUM(IF(IFERROR(FIND(тп&INDEX(UPPER(LEFT(коды,FIND(\" \",коды)-1)),ROW()),данные),0)>0,ROW(данные)))))-FIND(\"ТЕЛЕФОН\",INDEX(данные,SUM(IF(IFERROR(FIND(тп&INDEX(UPPER(LEFT(коды,FIND(\" \",коды)-1)),ROW()),данные),0)>0,ROW(данные)))))-7),\"\")","v":""}]
["Комінтернівське (Од.) – 04855",{"$f":"IFERROR(RIGHT(INDEX(данные,SUM(IF(IFERROR(FIND(тп&INDEX(UPPER(LEFT(коды,FIND(\" \",коды)-1)),ROW()),данные),0)>0,ROW(данные)))),LEN(INDEX(данные,SUM(IF(IFERROR(FIND(тп&INDEX(UPPER(LEFT(коды,FIND(\" \",коды)-1)),ROW()),данные),0)>0,ROW(данные)))))-FIND(\"ТЕЛЕФОН\",INDEX(данные,SUM(IF(IFERROR(FIND(тп&INDEX(UPPER(LEFT(коды,FIND(\" \",коды)-1)),ROW()),данные),0)>0,ROW(данные)))))-7),\"\")","v":""}]
["Компаніївка (Кір.) – 05240",{"$f":"IFERROR(RIGHT(INDEX(данные,SUM(IF(IFERROR(FIND(тп&INDEX(UPPER(LEFT(коды,FIND(\" \",коды)-1)),ROW()),данные),0)>0,ROW(данные)))),LEN(INDEX(данные,SUM(IF(IFERROR(FIND(тп&INDEX(UPPER(LEFT(коды,FIND(\" \",коды)-1)),ROW()),данные),0)>0,ROW(данные)))))-FIND(\"ТЕЛЕФОН\",INDEX(данные,SUM(IF(IFERROR(FIND(тп&INDEX(UPPER(LEFT(коды,FIND(\" \",коды)-1)),ROW()),данные),0)>0,ROW(данные)))))-7),\"\")","v":""}]
["Комсомольськ (Полт.) – 05348",{"$f":"IFERROR(RIGHT(INDEX(данные,SUM(IF(IFERROR(FIND(тп&INDEX(UPPER(LEFT(коды,FIND(\" \",коды)-1)),ROW()),данные),0)>0,ROW(данные)))),LEN(INDEX(данные,SUM(IF(IFERROR(FIND(тп&INDEX(UPPER(LEFT(коды,FIND(\" \",коды)-1)),ROW()),данные),0)>0,ROW(данные)))))-FIND(\"ТЕЛЕФОН\",INDEX(данные,SUM(IF(IFERROR(FIND(тп&INDEX(UPPER(LEFT(коды,FIND(\" \",коды)-1)),ROW()),данные),0)>0,ROW(данные)))))-7),\"\")","v":""}]
["Комсомольське (Дон.) – 06253",{"$f":"IFERROR(RIGHT(INDEX(данные,SUM(IF(IFERROR(FIND(тп&INDEX(UPPER(LEFT(коды,FIND(\" \",коды)-1)),ROW()),данные),0)>0,ROW(данные)))),LEN(INDEX(данные,SUM(IF(IFERROR(FIND(тп&INDEX(UPPER(LEFT(коды,FIND(\" \",коды)-1)),ROW()),данные),0)>0,ROW(данные)))))-FIND(\"ТЕЛЕФОН\",INDEX(данные,SUM(IF(IFERROR(FIND(тп&INDEX(UPPER(LEFT(коды,FIND(\" \",коды)-1)),ROW()),данные),0)>0,ROW(данные)))))-7),\"\")","v":""}]
["Комсомольське (Харк.) – 05747",{"$f":"IFERROR(RIGHT(INDEX(данные,SUM(IF(IFERROR(FIND(тп&INDEX(UPPER(LEFT(коды,FIND(\" \",коды)-1)),ROW()),данные),0)>0,ROW(данные)))),LEN(INDEX(данные,SUM(IF(IFERROR(FIND(тп&INDEX(UPPER(LEFT(коды,FIND(\" \",коды)-1)),ROW()),данные),0)>0,ROW(данные)))))-FIND(\"ТЕЛЕФОН\",INDEX(данные,SUM(IF(IFERROR(FIND(тп&INDEX(UPPER(LEFT(коды,FIND(\" \",коды)-1)),ROW()),данные),0)>0,ROW(данные)))))-7),\"\")","v":""}]
["Конотоп (Сум.) – 05447",{"$f":"IFERROR(RIGHT(INDEX(данные,SUM(IF(IFERROR(FIND(тп&INDEX(UPPER(LEFT(коды,FIND(\" \",коды)-1)),ROW()),данные),0)>0,ROW(данные)))),LEN(INDEX(данные,SUM(IF(IFERROR(FIND(тп&INDEX(UPPER(LEFT(коды,FIND(\" \",коды)-1)),ROW()),данные),0)>0,ROW(данные)))))-FIND(\"ТЕЛЕФОН\",INDEX(данные,SUM(IF(IFERROR(FIND(тп&INDEX(UPPER(LEFT(коды,FIND(\" \",коды)-1)),ROW()),данные),0)>0,ROW(данные)))))-7),\"\")","v":""}]
["Копайгород (Він.) – 04341",{"$f":"IFERROR(RIGHT(INDEX(данные,SUM(IF(IFERROR(FIND(тп&INDEX(UPPER(LEFT(коды,FIND(\" \",коды)-1)),ROW()),данные),0)>0,ROW(данные)))),LEN(INDEX(данные,SUM(IF(IFERROR(FIND(тп&INDEX(UPPER(LEFT(коды,FIND(\" \",коды)-1)),ROW()),данные),0)>0,ROW(данные)))))-FIND(\"ТЕЛЕФОН\",INDEX(данные,SUM(IF(IFERROR(FIND(тп&INDEX(UPPER(LEFT(коды,FIND(\" \",коды)-1)),ROW()),данные),0)>0,ROW(данные)))))-7),\"\")","v":""}]
["Копичинці (Терн.) – 03557",{"$f":"IFERROR(RIGHT(INDEX(данные,SUM(IF(IFERROR(FIND(тп&INDEX(UPPER(LEFT(коды,FIND(\" \",коды)-1)),ROW()),данные),0)>0,ROW(данные)))),LEN(INDEX(данные,SUM(IF(IFERROR(FIND(тп&INDEX(UPPER(LEFT(коды,FIND(\" \",коды)-1)),ROW()),данные),0)>0,ROW(данные)))))-FIND(\"ТЕЛЕФОН\",INDEX(данные,SUM(IF(IFERROR(FIND(тп&INDEX(UPPER(LEFT(коды,FIND(\" \",коды)-1)),ROW()),данные),0)>0,ROW(данные)))))-7),\"\")","v":""}]
["Кореїз (АРК) – 0654",{"$f":"IFERROR(RIGHT(INDEX(данные,SUM(IF(IFERROR(FIND(тп&INDEX(UPPER(LEFT(коды,FIND(\" \",коды)-1)),ROW()),данные),0)>0,ROW(данные)))),LEN(INDEX(данные,SUM(IF(IFERROR(FIND(тп&INDEX(UPPER(LEFT(коды,FIND(\" \",коды)-1)),ROW()),данные),0)>0,ROW(данные)))))-FIND(\"ТЕЛЕФОН\",INDEX(данные,SUM(IF(IFERROR(FIND(тп&INDEX(UPPER(LEFT(коды,FIND(\" \",коды)-1)),ROW()),данные),0)>0,ROW(данные)))))-7),\"\")","v":""}]
["Корець (Рівн.) – 03651",{"$f":"IFERROR(RIGHT(INDEX(данные,SUM(IF(IFERROR(FIND(тп&INDEX(UPPER(LEFT(коды,FIND(\" \",коды)-1)),ROW()),данные),0)>0,ROW(данные)))),LEN(INDEX(данные,SUM(IF(IFERROR(FIND(тп&INDEX(UPPER(LEFT(коды,FIND(\" \",коды)-1)),ROW()),данные),0)>0,ROW(данные)))))-FIND(\"ТЕЛЕФОН\",INDEX(данные,SUM(IF(IFERROR(FIND(тп&INDEX(UPPER(LEFT(коды,FIND(\" \",коды)-1)),ROW()),данные),0)>0,ROW(данные)))))-7),\"\")","v":""}]
["Корнин (Жит.) – 04137",{"$f":"IFERROR(RIGHT(INDEX(данные,SUM(IF(IFERROR(FIND(тп&INDEX(UPPER(LEFT(коды,FIND(\" \",коды)-1)),ROW()),данные),0)>0,ROW(данные)))),LEN(INDEX(данные,SUM(IF(IFERROR(FIND(тп&INDEX(UPPER(LEFT(коды,FIND(\" \",коды)-1)),ROW()),данные),0)>0,ROW(данные)))))-FIND(\"ТЕЛЕФОН\",INDEX(данные,SUM(IF(IFERROR(FIND(тп&INDEX(UPPER(LEFT(коды,FIND(\" \",коды)-1)),ROW()),данные),0)>0,ROW(данные)))))-7),\"\")","v":""}]
["Короп (Черніг.) – 04656",{"$f":"IFERROR(RIGHT(INDEX(данные,SUM(IF(IFERROR(FIND(тп&INDEX(UPPER(LEFT(коды,FIND(\" \",коды)-1)),ROW()),данные),0)>0,ROW(данные)))),LEN(INDEX(данные,SUM(IF(IFERROR(FIND(тп&INDEX(UPPER(LEFT(коды,FIND(\" \",коды)-1)),ROW()),данные),0)>0,ROW(данные)))))-FIND(\"ТЕЛЕФОН\",INDEX(данные,SUM(IF(IFERROR(FIND(тп&INDEX(UPPER(LEFT(коды,FIND(\" \",коды)-1)),ROW()),данные),0)>0,ROW(данные)))))-7),\"\")","v":""}]
["Коропець (Терн.) – 03555",{"$f":"IFERROR(RIGHT(INDEX(данные,SUM(IF(IFERROR(FIND(тп&INDEX(UPPER(LEFT(коды,FIND(\" \",коды)-1)),ROW()),данные),0)>0,ROW(данные)))),LEN(INDEX(данные,SUM(IF(IFERROR(FIND(тп&INDEX(UPPER(LEFT(коды,FIND(\" \",коды)-1)),ROW()),данные),0)>0,ROW(данные)))))-FIND(\"ТЕЛЕФОН\",INDEX(данные,SUM(IF(IFERROR(FIND(тп&INDEX(UPPER(LEFT(коды,FIND(\" \",коды)-1)),ROW()),данные),0)>0,ROW(данные)))))-7),\"\")","v":""}]
["Коростень (Жит.) – 04142",{"$f":"IFERROR(RIGHT(INDEX(данные,SUM(IF(IFERROR(FIND(тп&INDEX(UPPER(LEFT(коды,FIND(\" \",коды)-1)),ROW()),данные),0)>0,ROW(данные)))),LEN(INDEX(данные,SUM(IF(IFERROR(FIND(тп&INDEX(UPPER(LEFT(коды,FIND(\" \",коды)-1)),ROW()),данные),0)>0,ROW(данные)))))-FIND(\"ТЕЛЕФОН\",INDEX(данные,SUM(IF(IFERROR(FIND(тп&INDEX(UPPER(LEFT(коды,FIND(\" \",коды)-1)),ROW()),данные),0)>0,ROW(данные)))))-7),\"\")","v":""}]
["Коростишів (Жит.) – 04130",{"$f":"IFERROR(RIGHT(INDEX(данные,SUM(IF(IFERROR(FIND(тп&INDEX(UPPER(LEFT(коды,FIND(\" \",коды)-1)),ROW()),данные),0)>0,ROW(данные)))),LEN(INDEX(данные,SUM(IF(IFERROR(FIND(тп&INDEX(UPPER(LEFT(коды,FIND(\" \",коды)-1)),ROW()),данные),0)>0,ROW(данные)))))-FIND(\"ТЕЛЕФОН\",INDEX(данные,SUM(IF(IFERROR(FIND(тп&INDEX(UPPER(LEFT(коды,FIND(\" \",коды)-1)),ROW()),данные),0)>0,ROW(данные)))))-7),\"\")","v":""}]
["Коротич (Харк.) – 0572",{"$f":"IFERROR(RIGHT(INDEX(данные,SUM(IF(IFERROR(FIND(тп&INDEX(UPPER(LEFT(коды,FIND(\" \",коды)-1)),ROW()),данные),0)>0,ROW(данные)))),LEN(INDEX(данные,SUM(IF(IFERROR(FIND(тп&INDEX(UPPER(LEFT(коды,FIND(\" \",коды)-1)),ROW()),данные),0)>0,ROW(данные)))))-FIND(\"ТЕЛЕФОН\",INDEX(данные,SUM(IF(IFERROR(FIND(тп&INDEX(UPPER(LEFT(коды,FIND(\" \",коды)-1)),ROW()),данные),0)>0,ROW(данные)))))-7),\"\")","v":""}]
["Корсунь-Шевченківський (Черк.) – 04735",{"$f":"IFERROR(RIGHT(INDEX(данные,SUM(IF(IFERROR(FIND(тп&INDEX(UPPER(LEFT(коды,FIND(\" \",коды)-1)),ROW()),данные),0)>0,ROW(данные)))),LEN(INDEX(данные,SUM(IF(IFERROR(FIND(тп&INDEX(UPPER(LEFT(коды,FIND(\" \",коды)-1)),ROW()),данные),0)>0,ROW(данные)))))-FIND(\"ТЕЛЕФОН\",INDEX(данные,SUM(IF(IFERROR(FIND(тп&INDEX(UPPER(LEFT(коды,FIND(\" \",коды)-1)),ROW()),данные),0)>0,ROW(данные)))))-7),\"\")","v":""}]
["Корюківка (Черніг.) – 04657",{"$f":"IFERROR(RIGHT(INDEX(данные,SUM(IF(IFERROR(FIND(тп&INDEX(UPPER(LEFT(коды,FIND(\" \",коды)-1)),ROW()),данные),0)>0,ROW(данные)))),LEN(INDEX(данные,SUM(IF(IFERROR(FIND(тп&INDEX(UPPER(LEFT(коды,FIND(\" \",коды)-1)),ROW()),данные),0)>0,ROW(данные)))))-FIND(\"ТЕЛЕФОН\",INDEX(данные,SUM(IF(IFERROR(FIND(тп&INDEX(UPPER(LEFT(коды,FIND(\" \",коды)-1)),ROW()),данные),0)>0,ROW(данные)))))-7),\"\")","v":""}]
["Коса (Зап.) – 06153",{"$f":"IFERROR(RIGHT(INDEX(данные,SUM(IF(IFERROR(FIND(тп&INDEX(UPPER(LEFT(коды,FIND(\" \",коды)-1)),ROW()),данные),0)>0,ROW(данные)))),LEN(INDEX(данные,SUM(IF(IFERROR(FIND(тп&INDEX(UPPER(LEFT(коды,FIND(\" \",коды)-1)),ROW()),данные),0)>0,ROW(данные)))))-FIND(\"ТЕЛЕФОН\",INDEX(данные,SUM(IF(IFERROR(FIND(тп&INDEX(UPPER(LEFT(коды,FIND(\" \",коды)-1)),ROW()),данные),0)>0,ROW(данные)))))-7),\"\")","v":""}]
["Косів (Ів.-Фр.) – 03478",{"$f":"IFERROR(RIGHT(INDEX(данные,SUM(IF(IFERROR(FIND(тп&INDEX(UPPER(LEFT(коды,FIND(\" \",коды)-1)),ROW()),данные),0)>0,ROW(данные)))),LEN(INDEX(данные,SUM(IF(IFERROR(FIND(тп&INDEX(UPPER(LEFT(коды,FIND(\" \",коды)-1)),ROW()),данные),0)>0,ROW(данные)))))-FIND(\"ТЕЛЕФОН\",INDEX(данные,SUM(IF(IFERROR(FIND(тп&INDEX(UPPER(LEFT(коды,FIND(\" \",коды)-1)),ROW()),данные),0)>0,ROW(данные)))))-7),\"\")","v":""}]
["Костопіль (Рівн.) – 03657",{"$f":"IFERROR(RIGHT(INDEX(данные,SUM(IF(IFERROR(FIND(тп&INDEX(UPPER(LEFT(коды,FIND(\" \",коды)-1)),ROW()),данные),0)>0,ROW(данные)))),LEN(INDEX(данные,SUM(IF(IFERROR(FIND(тп&INDEX(UPPER(LEFT(коды,FIND(\" \",коды)-1)),ROW()),данные),0)>0,ROW(данные)))))-FIND(\"ТЕЛЕФОН\",INDEX(данные,SUM(IF(IFERROR(FIND(тп&INDEX(UPPER(LEFT(коды,FIND(\" \",коды)-1)),ROW()),данные),0)>0,ROW(данные)))))-7),\"\")","v":""}]
["Костянтинівка (Дон.) – 06272",{"$f":"IFERROR(RIGHT(INDEX(данные,SUM(IF(IFERROR(FIND(тп&INDEX(UPPER(LEFT(коды,FIND(\" \",коды)-1)),ROW()),данные),0)>0,ROW(данные)))),LEN(INDEX(данные,SUM(IF(IFERROR(FIND(тп&INDEX(UPPER(LEFT(коды,FIND(\" \",коды)-1)),ROW()),данные),0)>0,ROW(данные)))))-FIND(\"ТЕЛЕФОН\",INDEX(данные,SUM(IF(IFERROR(FIND(тп&INDEX(UPPER(LEFT(коды,FIND(\" \",коды)-1)),ROW()),данные),0)>0,ROW(данные)))))-7),\"\")","v":""}]
["Котельва (Полт.) – 05350",{"$f":"IFERROR(RIGHT(INDEX(данные,SUM(IF(IFERROR(FIND(тп&INDEX(UPPER(LEFT(коды,FIND(\" \",коды)-1)),ROW()),данные),0)>0,ROW(данные)))),LEN(INDEX(данные,SUM(IF(IFERROR(FIND(тп&INDEX(UPPER(LEFT(коды,FIND(\" \",коды)-1)),ROW()),данные),0)>0,ROW(данные)))))-FIND(\"ТЕЛЕФОН\",INDEX(данные,SUM(IF(IFERROR(FIND(тп&INDEX(UPPER(LEFT(коды,FIND(\" \",коды)-1)),ROW()),данные),0)>0,ROW(данные)))))-7),\"\")","v":""}]
["Котовськ (Од.) – 04862",{"$f":"IFERROR(RIGHT(INDEX(данные,SUM(IF(IFERROR(FIND(тп&INDEX(UPPER(LEFT(коды,FIND(\" \",коды)-1)),ROW()),данные),0)>0,ROW(данные)))),LEN(INDEX(данные,SUM(IF(IFERROR(FIND(тп&INDEX(UPPER(LEFT(коды,FIND(\" \",коды)-1)),ROW()),данные),0)>0,ROW(данные)))))-FIND(\"ТЕЛЕФОН\",INDEX(данные,SUM(IF(IFERROR(FIND(тп&INDEX(UPPER(LEFT(коды,FIND(\" \",коды)-1)),ROW()),данные),0)>0,ROW(данные)))))-7),\"\")","v":""}]
["Коцюбинське (Київ.) – 04497",{"$f":"IFERROR(RIGHT(INDEX(данные,SUM(IF(IFERROR(FIND(тп&INDEX(UPPER(LEFT(коды,FIND(\" \",коды)-1)),ROW()),данные),0)>0,ROW(данные)))),LEN(INDEX(данные,SUM(IF(IFERROR(FIND(тп&INDEX(UPPER(LEFT(коды,FIND(\" \",коды)-1)),ROW()),данные),0)>0,ROW(данные)))))-FIND(\"ТЕЛЕФОН\",INDEX(данные,SUM(IF(IFERROR(FIND(тп&INDEX(UPPER(LEFT(коды,FIND(\" \",коды)-1)),ROW()),данные),0)>0,ROW(данные)))))-7),\"\")","v":""}]
["Кочеток (Харк.) – 05746",{"$f":"IFERROR(RIGHT(INDEX(данные,SUM(IF(IFERROR(FIND(тп&INDEX(UPPER(LEFT(коды,FIND(\" \",коды)-1)),ROW()),данные),0)>0,ROW(данные)))),LEN(INDEX(данные,SUM(IF(IFERROR(FIND(тп&INDEX(UPPER(LEFT(коды,FIND(\" \",коды)-1)),ROW()),данные),0)>0,ROW(данные)))))-FIND(\"ТЕЛЕФОН\",INDEX(данные,SUM(IF(IFERROR(FIND(тп&INDEX(UPPER(LEFT(коды,FIND(\" \",коды)-1)),ROW()),данные),0)>0,ROW(данные)))))-7),\"\")","v":""}]
["Краматорськ (Дон.) – 0626",{"$f":"IFERROR(RIGHT(INDEX(данные,SUM(IF(IFERROR(FIND(тп&INDEX(UPPER(LEFT(коды,FIND(\" \",коды)-1)),ROW()),данные),0)>0,ROW(данные)))),LEN(INDEX(данные,SUM(IF(IFERROR(FIND(тп&INDEX(UPPER(LEFT(коды,FIND(\" \",коды)-1)),ROW()),данные),0)>0,ROW(данные)))))-FIND(\"ТЕЛЕФОН\",INDEX(данные,SUM(IF(IFERROR(FIND(тп&INDEX(UPPER(LEFT(коды,FIND(\" \",коды)-1)),ROW()),данные),0)>0,ROW(данные)))))-7),\"\")","v":""}]
["Краматорськ (Дон.) – 06264",{"$f":"IFERROR(RIGHT(INDEX(данные,SUM(IF(IFERROR(FIND(тп&INDEX(UPPER(LEFT(коды,FIND(\" \",коды)-1)),ROW()),данные),0)>0,ROW(данные)))),LEN(INDEX(данные,SUM(IF(IFERROR(FIND(тп&INDEX(UPPER(LEFT(коды,FIND(\" \",коды)-1)),ROW()),данные),0)>0,ROW(данные)))))-FIND(\"ТЕЛЕФОН\",INDEX(данные,SUM(IF(IFERROR(FIND(тп&INDEX(UPPER(LEFT(коды,FIND(\" \",коды)-1)),ROW()),данные),0)>0,ROW(данные)))))-7),\"\")","v":""}]
["Красилів (Хм.) – 03855",{"$f":"IFERROR(RIGHT(INDEX(данные,SUM(IF(IFERROR(FIND(тп&INDEX(UPPER(LEFT(коды,FIND(\" \",коды)-1)),ROW()),данные),0)>0,ROW(данные)))),LEN(INDEX(данные,SUM(IF(IFERROR(FIND(тп&INDEX(UPPER(LEFT(коды,FIND(\" \",коды)-1)),ROW()),данные),0)>0,ROW(данные)))))-FIND(\"ТЕЛЕФОН\",INDEX(данные,SUM(IF(IFERROR(FIND(тп&INDEX(UPPER(LEFT(коды,FIND(\" \",коды)-1)),ROW()),данные),0)>0,ROW(данные)))))-7),\"\")","v":""}]
["Красний Лиман (Дон.) – 06261",{"$f":"IFERROR(RIGHT(INDEX(данные,SUM(IF(IFERROR(FIND(тп&INDEX(UPPER(LEFT(коды,FIND(\" \",коды)-1)),ROW()),данные),0)>0,ROW(данные)))),LEN(INDEX(данные,SUM(IF(IFERROR(FIND(тп&INDEX(UPPER(LEFT(коды,FIND(\" \",коды)-1)),ROW()),данные),0)>0,ROW(данные)))))-FIND(\"ТЕЛЕФОН\",INDEX(данные,SUM(IF(IFERROR(FIND(тп&INDEX(UPPER(LEFT(коды,FIND(\" \",коды)-1)),ROW()),данные),0)>0,ROW(данные)))))-7),\"\")","v":""}]
["Красний Луч (Луг.) – 06432",{"$f":"IFERROR(RIGHT(INDEX(данные,SUM(IF(IFERROR(FIND(тп&INDEX(UPPER(LEFT(коды,FIND(\" \",коды)-1)),ROW()),данные),0)>0,ROW(данные)))),LEN(INDEX(данные,SUM(IF(IFERROR(FIND(тп&INDEX(UPPER(LEFT(коды,FIND(\" \",коды)-1)),ROW()),данные),0)>0,ROW(данные)))))-FIND(\"ТЕЛЕФОН\",INDEX(данные,SUM(IF(IFERROR(FIND(тп&INDEX(UPPER(LEFT(коды,FIND(\" \",коды)-1)),ROW()),данные),0)>0,ROW(данные)))))-7),\"\")","v":""}]
[null,{"$f":"IFERROR(RIGHT(INDEX(данные,SUM(IF(IFERROR(FIND(тп&INDEX(UPPER(LEFT(коды,FIND(\" \",коды)-1)),ROW()),данные),0)>0,ROW(данные)))),LEN(INDEX(данные,SUM(IF(IFERROR(FIND(тп&INDEX(UPPER(LEFT(коды,FIND(\" \",коды)-1)),ROW()),данные),0)>0,ROW(данные)))))-FIND(\"ТЕЛЕФОН\",INDEX(данные,SUM(IF(IFERROR(FIND(тп&INDEX(UPPER(LEFT(коды,FIND(\" \",коды)-1)),ROW()),данные),0)>0,ROW(данные)))))-7),\"\")","v":""}]
["Ладижин (Він.) – 04343",{"$f":"IFERROR(RIGHT(INDEX(данные,SUM(IF(IFERROR(FIND(тп&INDEX(UPPER(LEFT(коды,FIND(\" \",коды)-1)),ROW()),данные),0)>0,ROW(данные)))),LEN(INDEX(данные,SUM(IF(IFERROR(FIND(тп&INDEX(UPPER(LEFT(коды,FIND(\" \",коды)-1)),ROW()),данные),0)>0,ROW(данные)))))-FIND(\"ТЕЛЕФОН\",INDEX(данные,SUM(IF(IFERROR(FIND(тп&INDEX(UPPER(LEFT(коды,FIND(\" \",коды)-1)),ROW()),данные),0)>0,ROW(данные)))))-7),\"\")","v":""}]
["Лазурне (Херс.) – 05537",{"$f":"IFERROR(RIGHT(INDEX(данные,SUM(IF(IFERROR(FIND(тп&INDEX(UPPER(LEFT(коды,FIND(\" \",коды)-1)),ROW()),данные),0)>0,ROW(данные)))),LEN(INDEX(данные,SUM(IF(IFERROR(FIND(тп&INDEX(UPPER(LEFT(коды,FIND(\" \",коды)-1)),ROW()),данные),0)>0,ROW(данные)))))-FIND(\"ТЕЛЕФОН\",INDEX(данные,SUM(IF(IFERROR(FIND(тп&INDEX(UPPER(LEFT(коды,FIND(\" \",коды)-1)),ROW()),данные),0)>0,ROW(данные)))))-7),\"\")","v":""}]
["Панівці (Терн.) – 03549",{"$f":"IFERROR(RIGHT(INDEX(данные,SUM(IF(IFERROR(FIND(тп&INDEX(UPPER(LEFT(коды,FIND(\" \",коды)-1)),ROW()),данные),0)>0,ROW(данные)))),LEN(INDEX(данные,SUM(IF(IFERROR(FIND(тп&INDEX(UPPER(LEFT(коды,FIND(\" \",коды)-1)),ROW()),данные),0)>0,ROW(данные)))))-FIND(\"ТЕЛЕФОН\",INDEX(данные,SUM(IF(IFERROR(FIND(тп&INDEX(UPPER(LEFT(коды,FIND(\" \",коды)-1)),ROW()),данные),0)>0,ROW(данные)))))-7),\"\")","v":""}]
["Лебедин (Сум.) – 05445",{"$f":"IFERROR(RIGHT(INDEX(данные,SUM(IF(IFERROR(FIND(тп&INDEX(UPPER(LEFT(коды,FIND(\" \",коды)-1)),ROW()),данные),0)>0,ROW(данные)))),LEN(INDEX(данные,SUM(IF(IFERROR(FIND(тп&INDEX(UPPER(LEFT(коды,FIND(\" \",коды)-1)),ROW()),данные),0)>0,ROW(данные)))))-FIND(\"ТЕЛЕФОН\",INDEX(данные,SUM(IF(IFERROR(FIND(тп&INDEX(UPPER(LEFT(коды,FIND(\" \",коды)-1)),ROW()),данные),0)>0,ROW(данные)))))-7),\"\")","v":""}]
["Леніне (АРК) – 06557",{"$f":"IFERROR(RIGHT(INDEX(данные,SUM(IF(IFERROR(FIND(тп&INDEX(UPPER(LEFT(коды,FIND(\" \",коды)-1)),ROW()),данные),0)>0,ROW(данные)))),LEN(INDEX(данные,SUM(IF(IFERROR(FIND(тп&INDEX(UPPER(LEFT(коды,FIND(\" \",коды)-1)),ROW()),данные),0)>0,ROW(данные)))))-FIND(\"ТЕЛЕФОН\",INDEX(данные,SUM(IF(IFERROR(FIND(тп&INDEX(UPPER(LEFT(коды,FIND(\" \",коды)-1)),ROW()),данные),0)>0,ROW(данные)))))-7),\"\")","v":""}]
["Летичів (Хм.) – 03857",{"$f":"IFERROR(RIGHT(INDEX(данные,SUM(IF(IFERROR(FIND(тп&INDEX(UPPER(LEFT(коды,FIND(\" \",коды)-1)),ROW()),данные),0)>0,ROW(данные)))),LEN(INDEX(данные,SUM(IF(IFERROR(FIND(тп&INDEX(UPPER(LEFT(коды,FIND(\" \",коды)-1)),ROW()),данные),0)>0,ROW(данные)))))-FIND(\"ТЕЛЕФОН\",INDEX(данные,SUM(IF(IFERROR(FIND(тп&INDEX(UPPER(LEFT(коды,FIND(\" \",коды)-1)),ROW()),данные),0)>0,ROW(данные)))))-7),\"\")","v":""}]
["Лиман (Харк.) – 05747",{"$f":"IFERROR(RIGHT(INDEX(данные,SUM(IF(IFERROR(FIND(тп&INDEX(UPPER(LEFT(коды,FIND(\" \",коды)-1)),ROW()),данные),0)>0,ROW(данные)))),LEN(INDEX(данные,SUM(IF(IFERROR(FIND(тп&INDEX(UPPER(LEFT(коды,FIND(\" \",коды)-1)),ROW()),данные),0)>0,ROW(данные)))))-FIND(\"ТЕЛЕФОН\",INDEX(данные,SUM(IF(IFERROR(FIND(тп&INDEX(UPPER(LEFT(коды,FIND(\" \",коды)-1)),ROW()),данные),0)>0,ROW(данные)))))-7),\"\")","v":""}]
["Липова Долина (Сум.) – 05452",{"$f":"IFERROR(RIGHT(INDEX(данные,SUM(IF(IFERROR(FIND(тп&INDEX(UPPER(LEFT(коды,FIND(\" \",коды)-1)),ROW()),данные),0)>0,ROW(данные)))),LEN(INDEX(данные,SUM(IF(IFERROR(FIND(тп&INDEX(UPPER(LEFT(коды,FIND(\" \",коды)-1)),ROW()),данные),0)>0,ROW(данные)))))-FIND(\"ТЕЛЕФОН\",INDEX(данные,SUM(IF(IFERROR(FIND(тп&INDEX(UPPER(LEFT(коды,FIND(\" \",коды)-1)),ROW()),данные),0)>0,ROW(данные)))))-7),\"\")","v":""}]
["Липовець (Він.) – 04358",{"$f":"IFERROR(RIGHT(INDEX(данные,SUM(IF(IFERROR(FIND(тп&INDEX(UPPER(LEFT(коды,FIND(\" \",коды)-1)),ROW()),данные),0)>0,ROW(данные)))),LEN(INDEX(данные,SUM(IF(IFERROR(FIND(тп&INDEX(UPPER(LEFT(коды,FIND(\" \",коды)-1)),ROW()),данные),0)>0,ROW(данные)))))-FIND(\"ТЕЛЕФОН\",INDEX(данные,SUM(IF(IFERROR(FIND(тп&INDEX(UPPER(LEFT(коды,FIND(\" \",коды)-1)),ROW()),данные),0)>0,ROW(данные)))))-7),\"\")","v":""}]
["Лисичанськ (Луг.) – 06451",{"$f":"IFERROR(RIGHT(INDEX(данные,SUM(IF(IFERROR(FIND(тп&INDEX(UPPER(LEFT(коды,FIND(\" \",коды)-1)),ROW()),данные),0)>0,ROW(данные)))),LEN(INDEX(данные,SUM(IF(IFERROR(FIND(тп&INDEX(UPPER(LEFT(коды,FIND(\" \",коды)-1)),ROW()),данные),0)>0,ROW(данные)))))-FIND(\"ТЕЛЕФОН\",INDEX(данные,SUM(IF(IFERROR(FIND(тп&INDEX(UPPER(LEFT(коды,FIND(\" \",коды)-1)),ROW()),данные),0)>0,ROW(данные)))))-7),\"\")","v":""}]
["Лисянка (Черк.) – 04749",{"$f":"IFERROR(RIGHT(INDEX(данные,SUM(IF(IFERROR(FIND(тп&INDEX(UPPER(LEFT(коды,FIND(\" \",коды)-1)),ROW()),данные),0)>0,ROW(данные)))),LEN(INDEX(данные,SUM(IF(IFERROR(FIND(тп&INDEX(UPPER(LEFT(коды,FIND(\" \",коды)-1)),ROW()),данные),0)>0,ROW(данные)))))-FIND(\"ТЕЛЕФОН\",INDEX(данные,SUM(IF(IFERROR(FIND(тп&INDEX(UPPER(LEFT(коды,FIND(\" \",коды)-1)),ROW()),данные),0)>0,ROW(данные)))))-7),\"\")","v":""}]
["Лівадія (АРК) – 0654",{"$f":"IFERROR(RIGHT(INDEX(данные,SUM(IF(IFERROR(FIND(тп&INDEX(UPPER(LEFT(коды,FIND(\" \",коды)-1)),ROW()),данные),0)>0,ROW(данные)))),LEN(INDEX(данные,SUM(IF(IFERROR(FIND(тп&INDEX(UPPER(LEFT(коды,FIND(\" \",коды)-1)),ROW()),данные),0)>0,ROW(данные)))))-FIND(\"ТЕЛЕФОН\",INDEX(данные,SUM(IF(IFERROR(FIND(тп&INDEX(UPPER(LEFT(коды,FIND(\" \",коды)-1)),ROW()),данные),0)>0,ROW(данные)))))-7),\"\")","v":""}]
["Літин (Він.) – 04347",{"$f":"IFERROR(RIGHT(INDEX(данные,SUM(IF(IFERROR(FIND(тп&INDEX(UPPER(LEFT(коды,FIND(\" \",коды)-1)),ROW()),данные),0)>0,ROW(данные)))),LEN(INDEX(данные,SUM(IF(IFERROR(FIND(тп&INDEX(UPPER(LEFT(коды,FIND(\" \",коды)-1)),ROW()),данные),0)>0,ROW(данные)))))-FIND(\"ТЕЛЕФОН\",INDEX(данные,SUM(IF(IFERROR(FIND(тп&INDEX(UPPER(LEFT(коды,FIND(\" \",коды)-1)),ROW()),данные),0)>0,ROW(данные)))))-7),\"\")","v":""}]
["Лозова (Харк.) – 05745",{"$f":"IFERROR(RIGHT(INDEX(данные,SUM(IF(IFERROR(FIND(тп&INDEX(UPPER(LEFT(коды,FIND(\" \",коды)-1)),ROW()),данные),0)>0,ROW(данные)))),LEN(INDEX(данные,SUM(IF(IFERROR(FIND(тп&INDEX(UPPER(LEFT(коды,FIND(\" \",коды)-1)),ROW()),данные),0)>0,ROW(данные)))))-FIND(\"ТЕЛЕФОН\",INDEX(данные,SUM(IF(IFERROR(FIND(тп&INDEX(UPPER(LEFT(коды,FIND(\" \",коды)-1)),ROW()),данные),0)>0,ROW(данные)))))-7),\"\")","v":""}]
["Локачі (Вол.) – 03374",{"$f":"IFERROR(RIGHT(INDEX(данные,SUM(IF(IFERROR(FIND(тп&INDEX(UPPER(LEFT(коды,FIND(\" \",коды)-1)),ROW()),данные),0)>0,ROW(данные)))),LEN(INDEX(данные,SUM(IF(IFERROR(FIND(тп&INDEX(UPPER(LEFT(коды,FIND(\" \",коды)-1)),ROW()),данные),0)>0,ROW(данные)))))-FIND(\"ТЕЛЕФОН\",INDEX(данные,SUM(IF(IFERROR(FIND(тп&INDEX(UPPER(LEFT(коды,FIND(\" \",коды)-1)),ROW()),данные),0)>0,ROW(данные)))))-7),\"\")","v":""}]
["Лохвиця (Полт.) – 05356",{"$f":"IFERROR(RIGHT(INDEX(данные,SUM(IF(IFERROR(FIND(тп&INDEX(UPPER(LEFT(коды,FIND(\" \",коды)-1)),ROW()),данные),0)>0,ROW(данные)))),LEN(INDEX(данные,SUM(IF(IFERROR(FIND(тп&INDEX(UPPER(LEFT(коды,FIND(\" \",коды)-1)),ROW()),данные),0)>0,ROW(данные)))))-FIND(\"ТЕЛЕФОН\",INDEX(данные,SUM(IF(IFERROR(FIND(тп&INDEX(UPPER(LEFT(коды,FIND(\" \",коды)-1)),ROW()),данные),0)>0,ROW(данные)))))-7),\"\")","v":""}]
["Лубни (Полт.) – 05361",{"$f":"IFERROR(RIGHT(INDEX(данные,SUM(IF(IFERROR(FIND(тп&INDEX(UPPER(LEFT(коды,FIND(\" \",коды)-1)),ROW()),данные),0)>0,ROW(данные)))),LEN(INDEX(данные,SUM(IF(IFERROR(FIND(тп&INDEX(UPPER(LEFT(коды,FIND(\" \",коды)-1)),ROW()),данные),0)>0,ROW(данные)))))-FIND(\"ТЕЛЕФОН\",INDEX(данные,SUM(IF(IFERROR(FIND(тп&INDEX(UPPER(LEFT(коды,FIND(\" \",коды)-1)),ROW()),данные),0)>0,ROW(данные)))))-7),\"\")","v":""}]
["ЛУГАНСЬК – 0642",{"$f":"IFERROR(RIGHT(INDEX(данные,SUM(IF(IFERROR(FIND(тп&INDEX(UPPER(LEFT(коды,FIND(\" \",коды)-1)),ROW()),данные),0)>0,ROW(данные)))),LEN(INDEX(данные,SUM(IF(IFERROR(FIND(тп&INDEX(UPPER(LEFT(коды,FIND(\" \",коды)-1)),ROW()),данные),0)>0,ROW(данные)))))-FIND(\"ТЕЛЕФОН\",INDEX(данные,SUM(IF(IFERROR(FIND(тп&INDEX(UPPER(LEFT(коды,FIND(\" \",коды)-1)),ROW()),данные),0)>0,ROW(данные)))))-7),\"\")","v":""}]
["Лугини (Жит.) – 04161",{"$f":"IFERROR(RIGHT(INDEX(данные,SUM(IF(IFERROR(FIND(тп&INDEX(UPPER(LEFT(коды,FIND(\" \",коды)-1)),ROW()),данные),0)>0,ROW(данные)))),LEN(INDEX(данные,SUM(IF(IFERROR(FIND(тп&INDEX(UPPER(LEFT(коды,FIND(\" \",коды)-1)),ROW()),данные),0)>0,ROW(данные)))))-FIND(\"ТЕЛЕФОН\",INDEX(данные,SUM(IF(IFERROR(FIND(тп&INDEX(UPPER(LEFT(коды,FIND(\" \",коды)-1)),ROW()),данные),0)>0,ROW(данные)))))-7),\"\")","v":""}]
["Лутугине (Луг.) – 06436",{"$f":"IFERROR(RIGHT(INDEX(данные,SUM(IF(IFERROR(FIND(тп&INDEX(UPPER(LEFT(коды,FIND(\" \",коды)-1)),ROW()),данные),0)>0,ROW(данные)))),LEN(INDEX(данные,SUM(IF(IFERROR(FIND(тп&INDEX(UPPER(LEFT(коды,FIND(\" \",коды)-1)),ROW()),данные),0)>0,ROW(данные)))))-FIND(\"ТЕЛЕФОН\",INDEX(данные,SUM(IF(IFERROR(FIND(тп&INDEX(UPPER(LEFT(коды,FIND(\" \",коды)-1)),ROW()),данные),0)>0,ROW(данные)))))-7),\"\")","v":""}]
["ЛУЦЬК – 03322",{"$f":"IFERROR(RIGHT(INDEX(данные,SUM(IF(IFERROR(FIND(тп&INDEX(UPPER(LEFT(коды,FIND(\" \",коды)-1)),ROW()),данные),0)>0,ROW(данные)))),LEN(INDEX(данные,SUM(IF(IFERROR(FIND(тп&INDEX(UPPER(LEFT(коды,FIND(\" \",коды)-1)),ROW()),данные),0)>0,ROW(данные)))))-FIND(\"ТЕЛЕФОН\",INDEX(данные,SUM(IF(IFERROR(FIND(тп&INDEX(UPPER(LEFT(коды,FIND(\" \",коды)-1)),ROW()),данные),0)>0,ROW(данные)))))-7),\"\")","v":""}]
["Любар (Жит.) – 04147",{"$f":"IFERROR(RIGHT(INDEX(данные,SUM(IF(IFERROR(FIND(тп&INDEX(UPPER(LEFT(коды,FIND(\" \",коды)-1)),ROW()),данные),0)>0,ROW(данные)))),LEN(INDEX(данные,SUM(IF(IFERROR(FIND(тп&INDEX(UPPER(LEFT(коды,FIND(\" \",коды)-1)),ROW()),данные),0)>0,ROW(данные)))))-FIND(\"ТЕЛЕФОН\",INDEX(данные,SUM(IF(IFERROR(FIND(тп&INDEX(UPPER(LEFT(коды,FIND(\" \",коды)-1)),ROW()),данные),0)>0,ROW(данные)))))-7),\"\")","v":""}]
["Любашівка (Од.) – 04864",{"$f":"IFERROR(RIGHT(INDEX(данные,SUM(IF(IFERROR(FIND(тп&INDEX(UPPER(LEFT(коды,FIND(\" \",коды)-1)),ROW()),данные),0)>0,ROW(данные)))),LEN(INDEX(данные,SUM(IF(IFERROR(FIND(тп&INDEX(UPPER(LEFT(коды,FIND(\" \",коды)-1)),ROW()),данные),0)>0,ROW(данные)))))-FIND(\"ТЕЛЕФОН\",INDEX(данные,SUM(IF(IFERROR(FIND(тп&INDEX(UPPER(LEFT(коды,FIND(\" \",коды)-1)),ROW()),данные),0)>0,ROW(данные)))))-7),\"\")","v":""}]
["Любешів (Вол.) – 03362",{"$f":"IFERROR(RIGHT(INDEX(данные,SUM(IF(IFERROR(FIND(тп&INDEX(UPPER(LEFT(коды,FIND(\" \",коды)-1)),ROW()),данные),0)>0,ROW(данные)))),LEN(INDEX(данные,SUM(IF(IFERROR(FIND(тп&INDEX(UPPER(LEFT(коды,FIND(\" \",коды)-1)),ROW()),данные),0)>0,ROW(данные)))))-FIND(\"ТЕЛЕФОН\",INDEX(данные,SUM(IF(IFERROR(FIND(тп&INDEX(UPPER(LEFT(коды,FIND(\" \",коды)-1)),ROW()),данные),0)>0,ROW(данные)))))-7),\"\")","v":""}]
["Любомль (Вол.) – 03377",{"$f":"IFERROR(RIGHT(INDEX(данные,SUM(IF(IFERROR(FIND(тп&INDEX(UPPER(LEFT(коды,FIND(\" \",коды)-1)),ROW()),данные),0)>0,ROW(данные)))),LEN(INDEX(данные,SUM(IF(IFERROR(FIND(тп&INDEX(UPPER(LEFT(коды,FIND(\" \",коды)-1)),ROW()),данные),0)>0,ROW(данные)))))-FIND(\"ТЕЛЕФОН\",INDEX(данные,SUM(IF(IFERROR(FIND(тп&INDEX(UPPER(LEFT(коды,FIND(\" \",коды)-1)),ROW()),данные),0)>0,ROW(данные)))))-7),\"\")","v":""}]
["Люботин (Харк.) – 0572",{"$f":"IFERROR(RIGHT(INDEX(данные,SUM(IF(IFERROR(FIND(тп&INDEX(UPPER(LEFT(коды,FIND(\" \",коды)-1)),ROW()),данные),0)>0,ROW(данные)))),LEN(INDEX(данные,SUM(IF(IFERROR(FIND(тп&INDEX(UPPER(LEFT(коды,FIND(\" \",коды)-1)),ROW()),данные),0)>0,ROW(данные)))))-FIND(\"ТЕЛЕФОН\",INDEX(данные,SUM(IF(IFERROR(FIND(тп&INDEX(UPPER(LEFT(коды,FIND(\" \",коды)-1)),ROW()),данные),0)>0,ROW(данные)))))-7),\"\")","v":""}]
["ЛЬВІВ – 0322",{"$f":"IFERROR(RIGHT(INDEX(данные,SUM(IF(IFERROR(FIND(тп&INDEX(UPPER(LEFT(коды,FIND(\" \",коды)-1)),ROW()),данные),0)>0,ROW(данные)))),LEN(INDEX(данные,SUM(IF(IFERROR(FIND(тп&INDEX(UPPER(LEFT(коды,FIND(\" \",коды)-1)),ROW()),данные),0)>0,ROW(данные)))))-FIND(\"ТЕЛЕФОН\",INDEX(данные,SUM(IF(IFERROR(FIND(тп&INDEX(UPPER(LEFT(коды,FIND(\" \",коды)-1)),ROW()),данные),0)>0,ROW(данные)))))-7),\"\")","v":"422324"}]
[null,{"$f":"IFERROR(RIGHT(INDEX(данные,SUM(IF(IFERROR(FIND(тп&INDEX(UPPER(LEFT(коды,FIND(\" \",коды)-1)),ROW()),данные),0)>0,ROW(данные)))),LEN(INDEX(данные,SUM(IF(IFERROR(FIND(тп&INDEX(UPPER(LEFT(коды,FIND(\" \",коды)-1)),ROW()),данные),0)>0,ROW(данные)))))-FIND(\"ТЕЛЕФОН\",INDEX(данные,SUM(IF(IFERROR(FIND(тп&INDEX(UPPER(LEFT(коды,FIND(\" \",коды)-1)),ROW()),данные),0)>0,ROW(данные)))))-7),\"\")","v":""}]
["Магдалинівка (Дн.) – 05611",{"$f":"IFERROR(RIGHT(INDEX(данные,SUM(IF(IFERROR(FIND(тп&INDEX(UPPER(LEFT(коды,FIND(\" \",коды)-1)),ROW()),данные),0)>0,ROW(данные)))),LEN(INDEX(данные,SUM(IF(IFERROR(FIND(тп&INDEX(UPPER(LEFT(коды,FIND(\" \",коды)-1)),ROW()),данные),0)>0,ROW(данные)))))-FIND(\"ТЕЛЕФОН\",INDEX(данные,SUM(IF(IFERROR(FIND(тп&INDEX(UPPER(LEFT(коды,FIND(\" \",коды)-1)),ROW()),данные),0)>0,ROW(данные)))))-7),\"\")","v":""}]
["Макарів (Київ.) – 04478",{"$f":"IFERROR(RIGHT(INDEX(данные,SUM(IF(IFERROR(FIND(тп&INDEX(UPPER(LEFT(коды,FIND(\" \",коды)-1)),ROW()),данные),0)>0,ROW(данные)))),LEN(INDEX(данные,SUM(IF(IFERROR(FIND(тп&INDEX(UPPER(LEFT(коды,FIND(\" \",коды)-1)),ROW()),данные),0)>0,ROW(данные)))))-FIND(\"ТЕЛЕФОН\",INDEX(данные,SUM(IF(IFERROR(FIND(тп&INDEX(UPPER(LEFT(коды,FIND(\" \",коды)-1)),ROW()),данные),0)>0,ROW(данные)))))-7),\"\")","v":""}]
["Макіївка (Дон.) – 06232",{"$f":"IFERROR(RIGHT(INDEX(данные,SUM(IF(IFERROR(FIND(тп&INDEX(UPPER(LEFT(коды,FIND(\" \",коды)-1)),ROW()),данные),0)>0,ROW(данные)))),LEN(INDEX(данные,SUM(IF(IFERROR(FIND(тп&INDEX(UPPER(LEFT(коды,FIND(\" \",коды)-1)),ROW()),данные),0)>0,ROW(данные)))))-FIND(\"ТЕЛЕФОН\",INDEX(данные,SUM(IF(IFERROR(FIND(тп&INDEX(UPPER(LEFT(коды,FIND(\" \",коды)-1)),ROW()),данные),0)>0,ROW(данные)))))-7),\"\")","v":""}]
["Мала Виска (Кір.) – 05258",{"$f":"IFERROR(RIGHT(INDEX(данные,SUM(IF(IFERROR(FIND(тп&INDEX(UPPER(LEFT(коды,FIND(\" \",коды)-1)),ROW()),данные),0)>0,ROW(данные)))),LEN(INDEX(данные,SUM(IF(IFERROR(FIND(тп&INDEX(UPPER(LEFT(коды,FIND(\" \",коды)-1)),ROW()),данные),0)>0,ROW(данные)))))-FIND(\"ТЕЛЕФОН\",INDEX(данные,SUM(IF(IFERROR(FIND(тп&INDEX(UPPER(LEFT(коды,FIND(\" \",коды)-1)),ROW()),данные),0)>0,ROW(данные)))))-7),\"\")","v":""}]
["Мала Данилівка (Харк.) – 05763",{"$f":"IFERROR(RIGHT(INDEX(данные,SUM(IF(IFERROR(FIND(тп&INDEX(UPPER(LEFT(коды,FIND(\" \",коды)-1)),ROW()),данные),0)>0,ROW(данные)))),LEN(INDEX(данные,SUM(IF(IFERROR(FIND(тп&INDEX(UPPER(LEFT(коды,FIND(\" \",коды)-1)),ROW()),данные),0)>0,ROW(данные)))))-FIND(\"ТЕЛЕФОН\",INDEX(данные,SUM(IF(IFERROR(FIND(тп&INDEX(UPPER(LEFT(коды,FIND(\" \",коды)-1)),ROW()),данные),0)>0,ROW(данные)))))-7),\"\")","v":""}]
["Малин (Жит.) – 04133",{"$f":"IFERROR(RIGHT(INDEX(данные,SUM(IF(IFERROR(FIND(тп&INDEX(UPPER(LEFT(коды,FIND(\" \",коды)-1)),ROW()),данные),0)>0,ROW(данные)))),LEN(INDEX(данные,SUM(IF(IFERROR(FIND(тп&INDEX(UPPER(LEFT(коды,FIND(\" \",коды)-1)),ROW()),данные),0)>0,ROW(данные)))))-FIND(\"ТЕЛЕФОН\",INDEX(данные,SUM(IF(IFERROR(FIND(тп&INDEX(UPPER(LEFT(коды,FIND(\" \",коды)-1)),ROW()),данные),0)>0,ROW(данные)))))-7),\"\")","v":""}]
["Малинівка (Харк.) – 05746",{"$f":"IFERROR(RIGHT(INDEX(данные,SUM(IF(IFERROR(FIND(тп&INDEX(UPPER(LEFT(коды,FIND(\" \",коды)-1)),ROW()),данные),0)>0,ROW(данные)))),LEN(INDEX(данные,SUM(IF(IFERROR(FIND(тп&INDEX(UPPER(LEFT(коды,FIND(\" \",коды)-1)),ROW()),данные),0)>0,ROW(данные)))))-FIND(\"ТЕЛЕФОН\",INDEX(данные,SUM(IF(IFERROR(FIND(тп&INDEX(UPPER(LEFT(коды,FIND(\" \",коды)-1)),ROW()),данные),0)>0,ROW(данные)))))-7),\"\")","v":""}]
["Малокатеринівка (Зап.) – 0612",{"$f":"IFERROR(RIGHT(INDEX(данные,SUM(IF(IFERROR(FIND(тп&INDEX(UPPER(LEFT(коды,FIND(\" \",коды)-1)),ROW()),данные),0)>0,ROW(данные)))),LEN(INDEX(данные,SUM(IF(IFERROR(FIND(тп&INDEX(UPPER(LEFT(коды,FIND(\" \",коды)-1)),ROW()),данные),0)>0,ROW(данные)))))-FIND(\"ТЕЛЕФОН\",INDEX(данные,SUM(IF(IFERROR(FIND(тп&INDEX(UPPER(LEFT(коды,FIND(\" \",коды)-1)),ROW()),данные),0)>0,ROW(данные)))))-7),\"\")","v":""}]
["Маневичі (Вол.) – 03376",{"$f":"IFERROR(RIGHT(INDEX(данные,SUM(IF(IFERROR(FIND(тп&INDEX(UPPER(LEFT(коды,FIND(\" \",коды)-1)),ROW()),данные),0)>0,ROW(данные)))),LEN(INDEX(данные,SUM(IF(IFERROR(FIND(тп&INDEX(UPPER(LEFT(коды,FIND(\" \",коды)-1)),ROW()),данные),0)>0,ROW(данные)))))-FIND(\"ТЕЛЕФОН\",INDEX(данные,SUM(IF(IFERROR(FIND(тп&INDEX(UPPER(LEFT(коды,FIND(\" \",коды)-1)),ROW()),данные),0)>0,ROW(данные)))))-7),\"\")","v":""}]
["Манченки (Харк.) – 0572",{"$f":"IFERROR(RIGHT(INDEX(данные,SUM(IF(IFERROR(FIND(тп&INDEX(UPPER(LEFT(коды,FIND(\" \",коды)-1)),ROW()),данные),0)>0,ROW(данные)))),LEN(INDEX(данные,SUM(IF(IFERROR(FIND(тп&INDEX(UPPER(LEFT(коды,FIND(\" \",коды)-1)),ROW()),данные),0)>0,ROW(данные)))))-FIND(\"ТЕЛЕФОН\",INDEX(данные,SUM(IF(IFERROR(FIND(тп&INDEX(UPPER(LEFT(коды,FIND(\" \",коды)-1)),ROW()),данные),0)>0,ROW(данные)))))-7),\"\")","v":""}]
["Маньківка (Черк.) – 04748",{"$f":"IFERROR(RIGHT(INDEX(данные,SUM(IF(IFERROR(FIND(тп&INDEX(UPPER(LEFT(коды,FIND(\" \",коды)-1)),ROW()),данные),0)>0,ROW(данные)))),LEN(INDEX(данные,SUM(IF(IFERROR(FIND(тп&INDEX(UPPER(LEFT(коды,FIND(\" \",коды)-1)),ROW()),данные),0)>0,ROW(данные)))))-FIND(\"ТЕЛЕФОН\",INDEX(данные,SUM(IF(IFERROR(FIND(тп&INDEX(UPPER(LEFT(коды,FIND(\" \",коды)-1)),ROW()),данные),0)>0,ROW(данные)))))-7),\"\")","v":""}]
["Марганець (Дн.) – 05665",{"$f":"IFERROR(RIGHT(INDEX(данные,SUM(IF(IFERROR(FIND(тп&INDEX(UPPER(LEFT(коды,FIND(\" \",коды)-1)),ROW()),данные),0)>0,ROW(данные)))),LEN(INDEX(данные,SUM(IF(IFERROR(FIND(тп&INDEX(UPPER(LEFT(коды,FIND(\" \",коды)-1)),ROW()),данные),0)>0,ROW(данные)))))-FIND(\"ТЕЛЕФОН\",INDEX(данные,SUM(IF(IFERROR(FIND(тп&INDEX(UPPER(LEFT(коды,FIND(\" \",коды)-1)),ROW()),данные),0)>0,ROW(данные)))))-7),\"\")","v":""}]
["Маріуполь (Дон.) – 0629",{"$f":"IFERROR(RIGHT(INDEX(данные,SUM(IF(IFERROR(FIND(тп&INDEX(UPPER(LEFT(коды,FIND(\" \",коды)-1)),ROW()),данные),0)>0,ROW(данные)))),LEN(INDEX(данные,SUM(IF(IFERROR(FIND(тп&INDEX(UPPER(LEFT(коды,FIND(\" \",коды)-1)),ROW()),данные),0)>0,ROW(данные)))))-FIND(\"ТЕЛЕФОН\",INDEX(данные,SUM(IF(IFERROR(FIND(тп&INDEX(UPPER(LEFT(коды,FIND(\" \",коды)-1)),ROW()),данные),0)>0,ROW(данные)))))-7),\"\")","v":""}]
["Марійка (Дон.) – 06278",{"$f":"IFERROR(RIGHT(INDEX(данные,SUM(IF(IFERROR(FIND(тп&INDEX(UPPER(LEFT(коды,FIND(\" \",коды)-1)),ROW()),данные),0)>0,ROW(данные)))),LEN(INDEX(данные,SUM(IF(IFERROR(FIND(тп&INDEX(UPPER(LEFT(коды,FIND(\" \",коды)-1)),ROW()),данные),0)>0,ROW(данные)))))-FIND(\"ТЕЛЕФОН\",INDEX(данные,SUM(IF(IFERROR(FIND(тп&INDEX(UPPER(LEFT(коды,FIND(\" \",коды)-1)),ROW()),данные),0)>0,ROW(данные)))))-7),\"\")","v":""}]
["Марківка (Луг.) – 06464",{"$f":"IFERROR(RIGHT(INDEX(данные,SUM(IF(IFERROR(FIND(тп&INDEX(UPPER(LEFT(коды,FIND(\" \",коды)-1)),ROW()),данные),0)>0,ROW(данные)))),LEN(INDEX(данные,SUM(IF(IFERROR(FIND(тп&INDEX(UPPER(LEFT(коды,FIND(\" \",коды)-1)),ROW()),данные),0)>0,ROW(данные)))))-FIND(\"ТЕЛЕФОН\",INDEX(данные,SUM(IF(IFERROR(FIND(тп&INDEX(UPPER(LEFT(коды,FIND(\" \",коды)-1)),ROW()),данные),0)>0,ROW(данные)))))-7),\"\")","v":""}]
[null,{"$f":"IFERROR(RIGHT(INDEX(данные,SUM(IF(IFERROR(FIND(тп&INDEX(UPPER(LEFT(коды,FIND(\" \",коды)-1)),ROW()),данные),0)>0,ROW(данные)))),LEN(INDEX(данные,SUM(IF(IFERROR(FIND(тп&INDEX(UPPER(LEFT(коды,FIND(\" \",коды)-1)),ROW()),данные),0)>0,ROW(данные)))))-FIND(\"ТЕЛЕФОН\",INDEX(данные,SUM(IF(IFERROR(FIND(тп&INDEX(UPPER(LEFT(коды,FIND(\" \",коды)-1)),ROW()),данные),0)>0,ROW(данные)))))-7),\"\")","v":""}]
["Обухів (Київ.) – 04472",{"$f":"IFERROR(RIGHT(INDEX(данные,SUM(IF(IFERROR(FIND(тп&INDEX(UPPER(LEFT(коды,FIND(\" \",коды)-1)),ROW()),данные),0)>0,ROW(данные)))),LEN(INDEX(данные,SUM(IF(IFERROR(FIND(тп&INDEX(UPPER(LEFT(коды,FIND(\" \",коды)-1)),ROW()),данные),0)>0,ROW(данные)))))-FIND(\"ТЕЛЕФОН\",INDEX(данные,SUM(IF(IFERROR(FIND(тп&INDEX(UPPER(LEFT(коды,FIND(\" \",коды)-1)),ROW()),данные),0)>0,ROW(данные)))))-7),\"\")","v":""}]
["Овідіополь (Од.) – 04851",{"$f":"IFERROR(RIGHT(INDEX(данные,SUM(IF(IFERROR(FIND(тп&INDEX(UPPER(LEFT(коды,FIND(\" \",коды)-1)),ROW()),данные),0)>0,ROW(данные)))),LEN(INDEX(данные,SUM(IF(IFERROR(FIND(тп&INDEX(UPPER(LEFT(коды,FIND(\" \",коды)-1)),ROW()),данные),0)>0,ROW(данные)))))-FIND(\"ТЕЛЕФОН\",INDEX(данные,SUM(IF(IFERROR(FIND(тп&INDEX(UPPER(LEFT(коды,FIND(\" \",коды)-1)),ROW()),данные),0)>0,ROW(данные)))))-7),\"\")","v":""}]
["Овруч (Жит.) – 04148",{"$f":"IFERROR(RIGHT(INDEX(данные,SUM(IF(IFERROR(FIND(тп&INDEX(UPPER(LEFT(коды,FIND(\" \",коды)-1)),ROW()),данные),0)>0,ROW(данные)))),LEN(INDEX(данные,SUM(IF(IFERROR(FIND(тп&INDEX(UPPER(LEFT(коды,FIND(\" \",коды)-1)),ROW()),данные),0)>0,ROW(данные)))))-FIND(\"ТЕЛЕФОН\",INDEX(данные,SUM(IF(IFERROR(FIND(тп&INDEX(UPPER(LEFT(коды,FIND(\" \",коды)-1)),ROW()),данные),0)>0,ROW(данные)))))-7),\"\")","v":""}]
["ОДЕСА – 0482",{"$f":"IFERROR(RIGHT(INDEX(данные,SUM(IF(IFERROR(FIND(тп&INDEX(UPPER(LEFT(коды,FIND(\" \",коды)-1)),ROW()),данные),0)>0,ROW(данные)))),LEN(INDEX(данные,SUM(IF(IFERROR(FIND(тп&INDEX(UPPER(LEFT(коды,FIND(\" \",коды)-1)),ROW()),данные),0)>0,ROW(данные)))))-FIND(\"ТЕЛЕФОН\",INDEX(данные,SUM(IF(IFERROR(FIND(тп&INDEX(UPPER(LEFT(коды,FIND(\" \",коды)-1)),ROW()),данные),0)>0,ROW(данные)))))-7),\"\")","v":""}]
["Олевськ (Жит.) – 04135",{"$f":"IFERROR(RIGHT(INDEX(данные,SUM(IF(IFERROR(FIND(тп&INDEX(UPPER(LEFT(коды,FIND(\" \",коды)-1)),ROW()),данные),0)>0,ROW(данные)))),LEN(INDEX(данные,SUM(IF(IFERROR(FIND(тп&INDEX(UPPER(LEFT(коды,FIND(\" \",коды)-1)),ROW()),данные),0)>0,ROW(данные)))))-FIND(\"ТЕЛЕФОН\",INDEX(данные,SUM(IF(IFERROR(FIND(тп&INDEX(UPPER(LEFT(коды,FIND(\" \",коды)-1)),ROW()),данные),0)>0,ROW(данные)))))-7),\"\")","v":""}]
["Олександрівка (Дон.) – 06269",{"$f":"IFERROR(RIGHT(INDEX(данные,SUM(IF(IFERROR(FIND(тп&INDEX(UPPER(LEFT(коды,FIND(\" \",коды)-1)),ROW()),данные),0)>0,ROW(данные)))),LEN(INDEX(данные,SUM(IF(IFERROR(FIND(тп&INDEX(UPPER(LEFT(коды,FIND(\" \",коды)-1)),ROW()),данные),0)>0,ROW(данные)))))-FIND(\"ТЕЛЕФОН\",INDEX(данные,SUM(IF(IFERROR(FIND(тп&INDEX(UPPER(LEFT(коды,FIND(\" \",коды)-1)),ROW()),данные),0)>0,ROW(данные)))))-7),\"\")","v":""}]
["Олександрівка (Кір.) – 05242",{"$f":"IFERROR(RIGHT(INDEX(данные,SUM(IF(IFERROR(FIND(тп&INDEX(UPPER(LEFT(коды,FIND(\" \",коды)-1)),ROW()),данные),0)>0,ROW(данные)))),LEN(INDEX(данные,SUM(IF(IFERROR(FIND(тп&INDEX(UPPER(LEFT(коды,FIND(\" \",коды)-1)),ROW()),данные),0)>0,ROW(данные)))))-FIND(\"ТЕЛЕФОН\",INDEX(данные,SUM(IF(IFERROR(FIND(тп&INDEX(UPPER(LEFT(коды,FIND(\" \",коды)-1)),ROW()),данные),0)>0,ROW(данные)))))-7),\"\")","v":""}]
["Олександрія (Кір.) – 05235",{"$f":"IFERROR(RIGHT(INDEX(данные,SUM(IF(IFERROR(FIND(тп&INDEX(UPPER(LEFT(коды,FIND(\" \",коды)-1)),ROW()),данные),0)>0,ROW(данные)))),LEN(INDEX(данные,SUM(IF(IFERROR(FIND(тп&INDEX(UPPER(LEFT(коды,FIND(\" \",коды)-1)),ROW()),данные),0)>0,ROW(данные)))))-FIND(\"ТЕЛЕФОН\",INDEX(данные,SUM(IF(IFERROR(FIND(тп&INDEX(UPPER(LEFT(коды,FIND(\" \",коды)-1)),ROW()),данные),0)>0,ROW(данные)))))-7),\"\")","v":""}]
["Онуфріївка (Кір.) – 05238",{"$f":"IFERROR(RIGHT(INDEX(данные,SUM(IF(IFERROR(FIND(тп&INDEX(UPPER(LEFT(коды,FIND(\" \",коды)-1)),ROW()),данные),0)>0,ROW(данные)))),LEN(INDEX(данные,SUM(IF(IFERROR(FIND(тп&INDEX(UPPER(LEFT(коды,FIND(\" \",коды)-1)),ROW()),данные),0)>0,ROW(данные)))))-FIND(\"ТЕЛЕФОН\",INDEX(данные,SUM(IF(IFERROR(FIND(тп&INDEX(UPPER(LEFT(коды,FIND(\" \",коды)-1)),ROW()),данные),0)>0,ROW(данные)))))-7),\"\")","v":""}]
["Оратів (Він.) – 04330",{"$f":"IFERROR(RIGHT(INDEX(данные,SUM(IF(IFERROR(FIND(тп&INDEX(UPPER(LEFT(коды,FIND(\" \",коды)-1)),ROW()),данные),0)>0,ROW(данные)))),LEN(INDEX(данные,SUM(IF(IFERROR(FIND(тп&INDEX(UPPER(LEFT(коды,FIND(\" \",коды)-1)),ROW()),данные),0)>0,ROW(данные)))))-FIND(\"ТЕЛЕФОН\",INDEX(данные,SUM(IF(IFERROR(FIND(тп&INDEX(UPPER(LEFT(коды,FIND(\" \",коды)-1)),ROW()),данные),0)>0,ROW(данные)))))-7),\"\")","v":""}]
["Орджонікідзе (Дн.) – 05667",{"$f":"IFERROR(RIGHT(INDEX(данные,SUM(IF(IFERROR(FIND(тп&INDEX(UPPER(LEFT(коды,FIND(\" \",коды)-1)),ROW()),данные),0)>0,ROW(данные)))),LEN(INDEX(данные,SUM(IF(IFERROR(FIND(тп&INDEX(UPPER(LEFT(коды,FIND(\" \",коды)-1)),ROW()),данные),0)>0,ROW(данные)))))-FIND(\"ТЕЛЕФОН\",INDEX(данные,SUM(IF(IFERROR(FIND(тп&INDEX(UPPER(LEFT(коды,FIND(\" \",коды)-1)),ROW()),данные),0)>0,ROW(данные)))))-7),\"\")","v":""}]
["Орджонікідзе (АРК) – 06562",{"$f":"IFERROR(RIGHT(INDEX(данные,SUM(IF(IFERROR(FIND(тп&INDEX(UPPER(LEFT(коды,FIND(\" \",коды)-1)),ROW()),данные),0)>0,ROW(данные)))),LEN(INDEX(данные,SUM(IF(IFERROR(FIND(тп&INDEX(UPPER(LEFT(коды,FIND(\" \",коды)-1)),ROW()),данные),0)>0,ROW(данные)))))-FIND(\"ТЕЛЕФОН\",INDEX(данные,SUM(IF(IFERROR(FIND(тп&INDEX(UPPER(LEFT(коды,FIND(\" \",коды)-1)),ROW()),данные),0)>0,ROW(данные)))))-7),\"\")","v":""}]
["Ореанда (АРК) – 0654",{"$f":"IFERROR(RIGHT(INDEX(данные,SUM(IF(IFERROR(FIND(тп&INDEX(UPPER(LEFT(коды,FIND(\" \",коды)-1)),ROW()),данные),0)>0,ROW(данные)))),LEN(INDEX(данные,SUM(IF(IFERROR(FIND(тп&INDEX(UPPER(LEFT(коды,FIND(\" \",коды)-1)),ROW()),данные),0)>0,ROW(данные)))))-FIND(\"ТЕЛЕФОН\",INDEX(данные,SUM(IF(IFERROR(FIND(тп&INDEX(UPPER(LEFT(коды,FIND(\" \",коды)-1)),ROW()),данные),0)>0,ROW(данные)))))-7),\"\")","v":""}]
["Оржиця (Полт.) – 05357",{"$f":"IFERROR(RIGHT(INDEX(данные,SUM(IF(IFERROR(FIND(тп&INDEX(UPPER(LEFT(коды,FIND(\" \",коды)-1)),ROW()),данные),0)>0,ROW(данные)))),LEN(INDEX(данные,SUM(IF(IFERROR(FIND(тп&INDEX(UPPER(LEFT(коды,FIND(\" \",коды)-1)),ROW()),данные),0)>0,ROW(данные)))))-FIND(\"ТЕЛЕФОН\",INDEX(данные,SUM(IF(IFERROR(FIND(тп&INDEX(UPPER(LEFT(коды,FIND(\" \",коды)-1)),ROW()),данные),0)>0,ROW(данные)))))-7),\"\")","v":""}]
["Оріхів (Зап.) – 06141",{"$f":"IFERROR(RIGHT(INDEX(данные,SUM(IF(IFERROR(FIND(тп&INDEX(UPPER(LEFT(коды,FIND(\" \",коды)-1)),ROW()),данные),0)>0,ROW(данные)))),LEN(INDEX(данные,SUM(IF(IFERROR(FIND(тп&INDEX(UPPER(LEFT(коды,FIND(\" \",коды)-1)),ROW()),данные),0)>0,ROW(данные)))))-FIND(\"ТЕЛЕФОН\",INDEX(данные,SUM(IF(IFERROR(FIND(тп&INDEX(UPPER(LEFT(коды,FIND(\" \",коды)-1)),ROW()),данные),0)>0,ROW(данные)))))-7),\"\")","v":""}]
["Остер (Черніг.) – 04646",{"$f":"IFERROR(RIGHT(INDEX(данные,SUM(IF(IFERROR(FIND(тп&INDEX(UPPER(LEFT(коды,FIND(\" \",коды)-1)),ROW()),данные),0)>0,ROW(данные)))),LEN(INDEX(данные,SUM(IF(IFERROR(FIND(тп&INDEX(UPPER(LEFT(коды,FIND(\" \",коды)-1)),ROW()),данные),0)>0,ROW(данные)))))-FIND(\"ТЕЛЕФОН\",INDEX(данные,SUM(IF(IFERROR(FIND(тп&INDEX(UPPER(LEFT(коды,FIND(\" \",коды)-1)),ROW()),данные),0)>0,ROW(данные)))))-7),\"\")","v":""}]
["Острог (Рівн.) – 03654",{"$f":"IFERROR(RIGHT(INDEX(данные,SUM(IF(IFERROR(FIND(тп&INDEX(UPPER(LEFT(коды,FIND(\" \",коды)-1)),ROW()),данные),0)>0,ROW(данные)))),LEN(INDEX(данные,SUM(IF(IFERROR(FIND(тп&INDEX(UPPER(LEFT(коды,FIND(\" \",коды)-1)),ROW()),данные),0)>0,ROW(данные)))))-FIND(\"ТЕЛЕФОН\",INDEX(данные,SUM(IF(IFERROR(FIND(тп&INDEX(UPPER(LEFT(коды,FIND(\" \",коды)-1)),ROW()),данные),0)>0,ROW(данные)))))-7),\"\")","v":""}]
["Охтирка (Сум.) – 05446",{"$f":"IFERROR(RIGHT(INDEX(данные,SUM(IF(IFERROR(FIND(тп&INDEX(UPPER(LEFT(коды,FIND(\" \",коды)-1)),ROW()),данные),0)>0,ROW(данные)))),LEN(INDEX(данные,SUM(IF(IFERROR(FIND(тп&INDEX(UPPER(LEFT(коды,FIND(\" \",коды)-1)),ROW()),данные),0)>0,ROW(данные)))))-FIND(\"ТЕЛЕФОН\",INDEX(данные,SUM(IF(IFERROR(FIND(тп&INDEX(UPPER(LEFT(коды,FIND(\" \",коды)-1)),ROW()),данные),0)>0,ROW(данные)))))-7),\"\")","v":""}]
["Очаків (Мик.) – 05154",{"$f":"IFERROR(RIGHT(INDEX(данные,SUM(IF(IFERROR(FIND(тп&INDEX(UPPER(LEFT(коды,FIND(\" \",коды)-1)),ROW()),данные),0)>0,ROW(данные)))),LEN(INDEX(данные,SUM(IF(IFERROR(FIND(тп&INDEX(UPPER(LEFT(коды,FIND(\" \",коды)-1)),ROW()),данные),0)>0,ROW(данные)))))-FIND(\"ТЕЛЕФОН\",INDEX(данные,SUM(IF(IFERROR(FIND(тп&INDEX(UPPER(LEFT(коды,FIND(\" \",коды)-1)),ROW()),данные),0)>0,ROW(данные)))))-7),\"\")","v":""}]
[null,{"$f":"IFERROR(RIGHT(INDEX(данные,SUM(IF(IFERROR(FIND(тп&INDEX(UPPER(LEFT(коды,FIND(\" \",коды)-1)),ROW()),данные),0)>0,ROW(данные)))),LEN(INDEX(данные,SUM(IF(IFERROR(FIND(тп&INDEX(UPPER(LEFT(коды,FIND(\" \",коды)-1)),ROW()),данные),0)>0,ROW(данные)))))-FIND(\"ТЕЛЕФОН\",INDEX(данные,SUM(IF(IFERROR(FIND(тп&INDEX(UPPER(LEFT(коды,FIND(\" \",коды)-1)),ROW()),данные),0)>0,ROW(данные)))))-7),\"\")","v":""}]
["Павлоград (Дн.) – 05632",{"$f":"IFERROR(RIGHT(INDEX(данные,SUM(IF(IFERROR(FIND(тп&INDEX(UPPER(LEFT(коды,FIND(\" \",коды)-1)),ROW()),данные),0)>0,ROW(данные)))),LEN(INDEX(данные,SUM(IF(IFERROR(FIND(тп&INDEX(UPPER(LEFT(коды,FIND(\" \",коды)-1)),ROW()),данные),0)>0,ROW(данные)))))-FIND(\"ТЕЛЕФОН\",INDEX(данные,SUM(IF(IFERROR(FIND(тп&INDEX(UPPER(LEFT(коды,FIND(\" \",коды)-1)),ROW()),данные),0)>0,ROW(данные)))))-7),\"\")","v":""}]
["Панютине (Харк.) – 05745",{"$f":"IFERROR(RIGHT(INDEX(данные,SUM(IF(IFERROR(FIND(тп&INDEX(UPPER(LEFT(коды,FIND(\" \",коды)-1)),ROW()),данные),0)>0,ROW(данные)))),LEN(INDEX(данные,SUM(IF(IFERROR(FIND(тп&INDEX(UPPER(LEFT(коды,FIND(\" \",коды)-1)),ROW()),данные),0)>0,ROW(данные)))))-FIND(\"ТЕЛЕФОН\",INDEX(данные,SUM(IF(IFERROR(FIND(тп&INDEX(UPPER(LEFT(коды,FIND(\" \",коды)-1)),ROW()),данные),0)>0,ROW(данные)))))-7),\"\")","v":""}]
["Паркове (АРК) – 0654",{"$f":"IFERROR(RIGHT(INDEX(данные,SUM(IF(IFERROR(FIND(тп&INDEX(UPPER(LEFT(коды,FIND(\" \",коды)-1)),ROW()),данные),0)>0,ROW(данные)))),LEN(INDEX(данные,SUM(IF(IFERROR(FIND(тп&INDEX(UPPER(LEFT(коды,FIND(\" \",коды)-1)),ROW()),данные),0)>0,ROW(данные)))))-FIND(\"ТЕЛЕФОН\",INDEX(данные,SUM(IF(IFERROR(FIND(тп&INDEX(UPPER(LEFT(коды,FIND(\" \",коды)-1)),ROW()),данные),0)>0,ROW(данные)))))-7),\"\")","v":""}]
["Первомайськ (Луг.) – 06455",{"$f":"IFERROR(RIGHT(INDEX(данные,SUM(IF(IFERROR(FIND(тп&INDEX(UPPER(LEFT(коды,FIND(\" \",коды)-1)),ROW()),данные),0)>0,ROW(данные)))),LEN(INDEX(данные,SUM(IF(IFERROR(FIND(тп&INDEX(UPPER(LEFT(коды,FIND(\" \",коды)-1)),ROW()),данные),0)>0,ROW(данные)))))-FIND(\"ТЕЛЕФОН\",INDEX(данные,SUM(IF(IFERROR(FIND(тп&INDEX(UPPER(LEFT(коды,FIND(\" \",коды)-1)),ROW()),данные),0)>0,ROW(данные)))))-7),\"\")","v":""}]
["Первомайськ (Мик.) – 05161",{"$f":"IFERROR(RIGHT(INDEX(данные,SUM(IF(IFERROR(FIND(тп&INDEX(UPPER(LEFT(коды,FIND(\" \",коды)-1)),ROW()),данные),0)>0,ROW(данные)))),LEN(INDEX(данные,SUM(IF(IFERROR(FIND(тп&INDEX(UPPER(LEFT(коды,FIND(\" \",коды)-1)),ROW()),данные),0)>0,ROW(данные)))))-FIND(\"ТЕЛЕФОН\",INDEX(данные,SUM(IF(IFERROR(FIND(тп&INDEX(UPPER(LEFT(коды,FIND(\" \",коды)-1)),ROW()),данные),0)>0,ROW(данные)))))-7),\"\")","v":""}]
["Первомайське (АРК) – 06552",{"$f":"IFERROR(RIGHT(INDEX(данные,SUM(IF(IFERROR(FIND(тп&INDEX(UPPER(LEFT(коды,FIND(\" \",коды)-1)),ROW()),данные),0)>0,ROW(данные)))),LEN(INDEX(данные,SUM(IF(IFERROR(FIND(тп&INDEX(UPPER(LEFT(коды,FIND(\" \",коды)-1)),ROW()),данные),0)>0,ROW(данные)))))-FIND(\"ТЕЛЕФОН\",INDEX(данные,SUM(IF(IFERROR(FIND(тп&INDEX(UPPER(LEFT(коды,FIND(\" \",коды)-1)),ROW()),данные),0)>0,ROW(данные)))))-7),\"\")","v":""}]
["Первомайський (Харк.) – 05748",{"$f":"IFERROR(RIGHT(INDEX(данные,SUM(IF(IFERROR(FIND(тп&INDEX(UPPER(LEFT(коды,FIND(\" \",коды)-1)),ROW()),данные),0)>0,ROW(данные)))),LEN(INDEX(данные,SUM(IF(IFERROR(FIND(тп&INDEX(UPPER(LEFT(коды,FIND(\" \",коды)-1)),ROW()),данные),0)>0,ROW(данные)))))-FIND(\"ТЕЛЕФОН\",INDEX(данные,SUM(IF(IFERROR(FIND(тп&INDEX(UPPER(LEFT(коды,FIND(\" \",коды)-1)),ROW()),данные),0)>0,ROW(данные)))))-7),\"\")","v":""}]
["Перевальськ (Луг.) – 06441",{"$f":"IFERROR(RIGHT(INDEX(данные,SUM(IF(IFERROR(FIND(тп&INDEX(UPPER(LEFT(коды,FIND(\" \",коды)-1)),ROW()),данные),0)>0,ROW(данные)))),LEN(INDEX(данные,SUM(IF(IFERROR(FIND(тп&INDEX(UPPER(LEFT(коды,FIND(\" \",коды)-1)),ROW()),данные),0)>0,ROW(данные)))))-FIND(\"ТЕЛЕФОН\",INDEX(данные,SUM(IF(IFERROR(FIND(тп&INDEX(UPPER(LEFT(коды,FIND(\" \",коды)-1)),ROW()),данные),0)>0,ROW(данные)))))-7),\"\")","v":""}]
["Перемишляни (Льв.) – 03263",{"$f":"IFERROR(RIGHT(INDEX(данные,SUM(IF(IFERROR(FIND(тп&INDEX(UPPER(LEFT(коды,FIND(\" \",коды)-1)),ROW()),данные),0)>0,ROW(данные)))),LEN(INDEX(данные,SUM(IF(IFERROR(FIND(тп&INDEX(UPPER(LEFT(коды,FIND(\" \",коды)-1)),ROW()),данные),0)>0,ROW(данные)))))-FIND(\"ТЕЛЕФОН\",INDEX(данные,SUM(IF(IFERROR(FIND(тп&INDEX(UPPER(LEFT(коды,FIND(\" \",коды)-1)),ROW()),данные),0)>0,ROW(данные)))))-7),\"\")","v":""}]
["Пересічна (Харк.) – 05763",{"$f":"IFERROR(RIGHT(INDEX(данные,SUM(IF(IFERROR(FIND(тп&INDEX(UPPER(LEFT(коды,FIND(\" \",коды)-1)),ROW()),данные),0)>0,ROW(данные)))),LEN(INDEX(данные,SUM(IF(IFERROR(FIND(тп&INDEX(UPPER(LEFT(коды,FIND(\" \",коды)-1)),ROW()),данные),0)>0,ROW(данные)))))-FIND(\"ТЕЛЕФОН\",INDEX(данные,SUM(IF(IFERROR(FIND(тп&INDEX(UPPER(LEFT(коды,FIND(\" \",коды)-1)),ROW()),данные),0)>0,ROW(данные)))))-7),\"\")","v":""}]
["Перечин (Зак.) – 03145",{"$f":"IFERROR(RIGHT(INDEX(данные,SUM(IF(IFERROR(FIND(тп&INDEX(UPPER(LEFT(коды,FIND(\" \",коды)-1)),ROW()),данные),0)>0,ROW(данные)))),LEN(INDEX(данные,SUM(IF(IFERROR(FIND(тп&INDEX(UPPER(LEFT(коды,FIND(\" \",коды)-1)),ROW()),данные),0)>0,ROW(данные)))))-FIND(\"ТЕЛЕФОН\",INDEX(данные,SUM(IF(IFERROR(FIND(тп&INDEX(UPPER(LEFT(коды,FIND(\" \",коды)-1)),ROW()),данные),0)>0,ROW(данные)))))-7),\"\")","v":""}]
["Переяслав-Хмельницький (Київ.) – 04467",{"$f":"IFERROR(RIGHT(INDEX(данные,SUM(IF(IFERROR(FIND(тп&INDEX(UPPER(LEFT(коды,FIND(\" \",коды)-1)),ROW()),данные),0)>0,ROW(данные)))),LEN(INDEX(данные,SUM(IF(IFERROR(FIND(тп&INDEX(UPPER(LEFT(коды,FIND(\" \",коды)-1)),ROW()),данные),0)>0,ROW(данные)))))-FIND(\"ТЕЛЕФОН\",INDEX(данные,SUM(IF(IFERROR(FIND(тп&INDEX(UPPER(LEFT(коды,FIND(\" \",коды)-1)),ROW()),данные),0)>0,ROW(данные)))))-7),\"\")","v":""}]
["Першотравенськ (Дн.) – 05633",{"$f":"IFERROR(RIGHT(INDEX(данные,SUM(IF(IFERROR(FIND(тп&INDEX(UPPER(LEFT(коды,FIND(\" \",коды)-1)),ROW()),данные),0)>0,ROW(данные)))),LEN(INDEX(данные,SUM(IF(IFERROR(FIND(тп&INDEX(UPPER(LEFT(коды,FIND(\" \",коды)-1)),ROW()),данные),0)>0,ROW(данные)))))-FIND(\"ТЕЛЕФОН\",INDEX(данные,SUM(IF(IFERROR(FIND(тп&INDEX(UPPER(LEFT(коды,FIND(\" \",коды)-1)),ROW()),данные),0)>0,ROW(данные)))))-7),\"\")","v":""}]
["Першотравенськ (Жит.) – 04144",{"$f":"IFERROR(RIGHT(INDEX(данные,SUM(IF(IFERROR(FIND(тп&INDEX(UPPER(LEFT(коды,FIND(\" \",коды)-1)),ROW()),данные),0)>0,ROW(данные)))),LEN(INDEX(данные,SUM(IF(IFERROR(FIND(тп&INDEX(UPPER(LEFT(коды,FIND(\" \",коды)-1)),ROW()),данные),0)>0,ROW(данные)))))-FIND(\"ТЕЛЕФОН\",INDEX(данные,SUM(IF(IFERROR(FIND(тп&INDEX(UPPER(LEFT(коды,FIND(\" \",коды)-1)),ROW()),данные),0)>0,ROW(данные)))))-7),\"\")","v":""}]
["Першотравневе (Дон.) – 06297",{"$f":"IFERROR(RIGHT(INDEX(данные,SUM(IF(IFERROR(FIND(тп&INDEX(UPPER(LEFT(коды,FIND(\" \",коды)-1)),ROW()),данные),0)>0,ROW(данные)))),LEN(INDEX(данные,SUM(IF(IFERROR(FIND(тп&INDEX(UPPER(LEFT(коды,FIND(\" \",коды)-1)),ROW()),данные),0)>0,ROW(данные)))))-FIND(\"ТЕЛЕФОН\",INDEX(данные,SUM(IF(IFERROR(FIND(тп&INDEX(UPPER(LEFT(коды,FIND(\" \",коды)-1)),ROW()),данные),0)>0,ROW(данные)))))-7),\"\")","v":""}]
["Першотравневе (Жит.) – 04148",{"$f":"IFERROR(RIGHT(INDEX(данные,SUM(IF(IFERROR(FIND(тп&INDEX(UPPER(LEFT(коды,FIND(\" \",коды)-1)),ROW()),данные),0)>0,ROW(данные)))),LEN(INDEX(данные,SUM(IF(IFERROR(FIND(тп&INDEX(UPPER(LEFT(коды,FIND(\" \",коды)-1)),ROW()),данные),0)>0,ROW(данные)))))-FIND(\"ТЕЛЕФОН\",INDEX(данные,SUM(IF(IFERROR(FIND(тп&INDEX(UPPER(LEFT(коды,FIND(\" \",коды)-1)),ROW()),данные),0)>0,ROW(данные)))))-7),\"\")","v":""}]
["Петриківка (Дн.) – 05634",{"$f":"IFERROR(RIGHT(INDEX(данные,SUM(IF(IFERROR(FIND(тп&INDEX(UPPER(LEFT(коды,FIND(\" \",коды)-1)),ROW()),данные),0)>0,ROW(данные)))),LEN(INDEX(данные,SUM(IF(IFERROR(FIND(тп&INDEX(UPPER(LEFT(коды,FIND(\" \",коды)-1)),ROW()),данные),0)>0,ROW(данные)))))-FIND(\"ТЕЛЕФОН\",INDEX(данные,SUM(IF(IFERROR(FIND(тп&INDEX(UPPER(LEFT(коды,FIND(\" \",коды)-1)),ROW()),данные),0)>0,ROW(данные)))))-7),\"\")","v":""}]
["Петрове (Кір.) – 05237",{"$f":"IFERROR(RIGHT(INDEX(данные,SUM(IF(IFERROR(FIND(тп&INDEX(UPPER(LEFT(коды,FIND(\" \",коды)-1)),ROW()),данные),0)>0,ROW(данные)))),LEN(INDEX(данные,SUM(IF(IFERROR(FIND(тп&INDEX(UPPER(LEFT(коды,FIND(\" \",коды)-1)),ROW()),данные),0)>0,ROW(данные)))))-FIND(\"ТЕЛЕФОН\",INDEX(данные,SUM(IF(IFERROR(FIND(тп&INDEX(UPPER(LEFT(коды,FIND(\" \",коды)-1)),ROW()),данные),0)>0,ROW(данные)))))-7),\"\")","v":""}]
["Петропавлівка (Дн.) – 05631",{"$f":"IFERROR(RIGHT(INDEX(данные,SUM(IF(IFERROR(FIND(тп&INDEX(UPPER(LEFT(коды,FIND(\" \",коды)-1)),ROW()),данные),0)>0,ROW(данные)))),LEN(INDEX(данные,SUM(IF(IFERROR(FIND(тп&INDEX(UPPER(LEFT(коды,FIND(\" \",коды)-1)),ROW()),данные),0)>0,ROW(данные)))))-FIND(\"ТЕЛЕФОН\",INDEX(данные,SUM(IF(IFERROR(FIND(тп&INDEX(UPPER(LEFT(коды,FIND(\" \",коды)-1)),ROW()),данные),0)>0,ROW(данные)))))-7),\"\")","v":""}]
["Печеніги (Харк.) – 05765",{"$f":"IFERROR(RIGHT(INDEX(данные,SUM(IF(IFERROR(FIND(тп&INDEX(UPPER(LEFT(коды,FIND(\" \",коды)-1)),ROW()),данные),0)>0,ROW(данные)))),LEN(INDEX(данные,SUM(IF(IFERROR(FIND(тп&INDEX(UPPER(LEFT(коды,FIND(\" \",коды)-1)),ROW()),данные),0)>0,ROW(данные)))))-FIND(\"ТЕЛЕФОН\",INDEX(данные,SUM(IF(IFERROR(FIND(тп&INDEX(UPPER(LEFT(коды,FIND(\" \",коды)-1)),ROW()),данные),0)>0,ROW(данные)))))-7),\"\")","v":""}]
["Пирятин (Полт.) – 05358",{"$f":"IFERROR(RIGHT(INDEX(данные,SUM(IF(IFERROR(FIND(тп&INDEX(UPPER(LEFT(коды,FIND(\" \",коды)-1)),ROW()),данные),0)>0,ROW(данные)))),LEN(INDEX(данные,SUM(IF(IFERROR(FIND(тп&INDEX(UPPER(LEFT(коды,FIND(\" \",коды)-1)),ROW()),данные),0)>0,ROW(данные)))))-FIND(\"ТЕЛЕФОН\",INDEX(данные,SUM(IF(IFERROR(FIND(тп&INDEX(UPPER(LEFT(коды,FIND(\" \",коды)-1)),ROW()),данные),0)>0,ROW(данные)))))-7),\"\")","v":""}]
["Південне (Харк.) – 0572",{"$f":"IFERROR(RIGHT(INDEX(данные,SUM(IF(IFERROR(FIND(тп&INDEX(UPPER(LEFT(коды,FIND(\" \",коды)-1)),ROW()),данные),0)>0,ROW(данные)))),LEN(INDEX(данные,SUM(IF(IFERROR(FIND(тп&INDEX(UPPER(LEFT(коды,FIND(\" \",коды)-1)),ROW()),данные),0)>0,ROW(данные)))))-FIND(\"ТЕЛЕФОН\",INDEX(данные,SUM(IF(IFERROR(FIND(тп&INDEX(UPPER(LEFT(коды,FIND(\" \",коды)-1)),ROW()),данные),0)>0,ROW(данные)))))-7),\"\")","v":""}]
["Підволочиськ (Терн.) – 03543",{"$f":"IFERROR(RIGHT(INDEX(данные,SUM(IF(IFERROR(FIND(тп&INDEX(UPPER(LEFT(коды,FIND(\" \",коды)-1)),ROW()),данные),0)>0,ROW(данные)))),LEN(INDEX(данные,SUM(IF(IFERROR(FIND(тп&INDEX(UPPER(LEFT(коды,FIND(\" \",коды)-1)),ROW()),данные),0)>0,ROW(данные)))))-FIND(\"ТЕЛЕФОН\",INDEX(данные,SUM(IF(IFERROR(FIND(тп&INDEX(UPPER(LEFT(коды,FIND(\" \",коды)-1)),ROW()),данные),0)>0,ROW(данные)))))-7),\"\")","v":""}]
["Підгайці (Терн.) – 03542",{"$f":"IFERROR(RIGHT(INDEX(данные,SUM(IF(IFERROR(FIND(тп&INDEX(UPPER(LEFT(коды,FIND(\" \",коды)-1)),ROW()),данные),0)>0,ROW(данные)))),LEN(INDEX(данные,SUM(IF(IFERROR(FIND(тп&INDEX(UPPER(LEFT(коды,FIND(\" \",коды)-1)),ROW()),данные),0)>0,ROW(данные)))))-FIND(\"ТЕЛЕФОН\",INDEX(данные,SUM(IF(IFERROR(FIND(тп&INDEX(UPPER(LEFT(коды,FIND(\" \",коды)-1)),ROW()),данные),0)>0,ROW(данные)))))-7),\"\")","v":""}]
["Пісківка (Київ.) – 04477",{"$f":"IFERROR(RIGHT(INDEX(данные,SUM(IF(IFERROR(FIND(тп&INDEX(UPPER(LEFT(коды,FIND(\" \",коды)-1)),ROW()),данные),0)>0,ROW(данные)))),LEN(INDEX(данные,SUM(IF(IFERROR(FIND(тп&INDEX(UPPER(LEFT(коды,FIND(\" \",коды)-1)),ROW()),данные),0)>0,ROW(данные)))))-FIND(\"ТЕЛЕФОН\",INDEX(данные,SUM(IF(IFERROR(FIND(тп&INDEX(UPPER(LEFT(коды,FIND(\" \",коды)-1)),ROW()),данные),0)>0,ROW(данные)))))-7),\"\")","v":""}]
["Пісочин (Харк.) – 0572",{"$f":"IFERROR(RIGHT(INDEX(данные,SUM(IF(IFERROR(FIND(тп&INDEX(UPPER(LEFT(коды,FIND(\" \",коды)-1)),ROW()),данные),0)>0,ROW(данные)))),LEN(INDEX(данные,SUM(IF(IFERROR(FIND(тп&INDEX(UPPER(LEFT(коды,FIND(\" \",коды)-1)),ROW()),данные),0)>0,ROW(данные)))))-FIND(\"ТЕЛЕФОН\",INDEX(данные,SUM(IF(IFERROR(FIND(тп&INDEX(UPPER(LEFT(коды,FIND(\" \",коды)-1)),ROW()),данные),0)>0,ROW(данные)))))-7),\"\")","v":""}]
[null,{"$f":"IFERROR(RIGHT(INDEX(данные,SUM(IF(IFERROR(FIND(тп&INDEX(UPPER(LEFT(коды,FIND(\" \",коды)-1)),ROW()),данные),0)>0,ROW(данные)))),LEN(INDEX(данные,SUM(IF(IFERROR(FIND(тп&INDEX(UPPER(LEFT(коды,FIND(\" \",коды)-1)),ROW()),данные),0)>0,ROW(данные)))))-FIND(\"ТЕЛЕФОН\",INDEX(данные,SUM(IF(IFERROR(FIND(тп&INDEX(UPPER(LEFT(коды,FIND(\" \",коды)-1)),ROW()),данные),0)>0,ROW(данные)))))-7),\"\")","v":""}]
["Рава-Руська (Льв.) – 03252",{"$f":"IFERROR(RIGHT(INDEX(данные,SUM(IF(IFERROR(FIND(тп&INDEX(UPPER(LEFT(коды,FIND(\" \",коды)-1)),ROW()),данные),0)>0,ROW(данные)))),LEN(INDEX(данные,SUM(IF(IFERROR(FIND(тп&INDEX(UPPER(LEFT(коды,FIND(\" \",коды)-1)),ROW()),данные),0)>0,ROW(данные)))))-FIND(\"ТЕЛЕФОН\",INDEX(данные,SUM(IF(IFERROR(FIND(тп&INDEX(UPPER(LEFT(коды,FIND(\" \",коды)-1)),ROW()),данные),0)>0,ROW(данные)))))-7),\"\")","v":""}]
["Радехів (Льв.) – 03255",{"$f":"IFERROR(RIGHT(INDEX(данные,SUM(IF(IFERROR(FIND(тп&INDEX(UPPER(LEFT(коды,FIND(\" \",коды)-1)),ROW()),данные),0)>0,ROW(данные)))),LEN(INDEX(данные,SUM(IF(IFERROR(FIND(тп&INDEX(UPPER(LEFT(коды,FIND(\" \",коды)-1)),ROW()),данные),0)>0,ROW(данные)))))-FIND(\"ТЕЛЕФОН\",INDEX(данные,SUM(IF(IFERROR(FIND(тп&INDEX(UPPER(LEFT(коды,FIND(\" \",коды)-1)),ROW()),данные),0)>0,ROW(данные)))))-7),\"\")","v":""}]
["Радзивілов (Жит.) – 04131",{"$f":"IFERROR(RIGHT(INDEX(данные,SUM(IF(IFERROR(FIND(тп&INDEX(UPPER(LEFT(коды,FIND(\" \",коды)-1)),ROW()),данные),0)>0,ROW(данные)))),LEN(INDEX(данные,SUM(IF(IFERROR(FIND(тп&INDEX(UPPER(LEFT(коды,FIND(\" \",коды)-1)),ROW()),данные),0)>0,ROW(данные)))))-FIND(\"ТЕЛЕФОН\",INDEX(данные,SUM(IF(IFERROR(FIND(тп&INDEX(UPPER(LEFT(коды,FIND(\" \",коды)-1)),ROW()),данные),0)>0,ROW(данные)))))-7),\"\")","v":""}]
["Радивилів (Рівн.) – 03633",{"$f":"IFERROR(RIGHT(INDEX(данные,SUM(IF(IFERROR(FIND(тп&INDEX(UPPER(LEFT(коды,FIND(\" \",коды)-1)),ROW()),данные),0)>0,ROW(данные)))),LEN(INDEX(данные,SUM(IF(IFERROR(FIND(тп&INDEX(UPPER(LEFT(коды,FIND(\" \",коды)-1)),ROW()),данные),0)>0,ROW(данные)))))-FIND(\"ТЕЛЕФОН\",INDEX(данные,SUM(IF(IFERROR(FIND(тп&INDEX(UPPER(LEFT(коды,FIND(\" \",коды)-1)),ROW()),данные),0)>0,ROW(данные)))))-7),\"\")","v":""}]
["Радомишль (Жит.) – 04132",{"$f":"IFERROR(RIGHT(INDEX(данные,SUM(IF(IFERROR(FIND(тп&INDEX(UPPER(LEFT(коды,FIND(\" \",коды)-1)),ROW()),данные),0)>0,ROW(данные)))),LEN(INDEX(данные,SUM(IF(IFERROR(FIND(тп&INDEX(UPPER(LEFT(коды,FIND(\" \",коды)-1)),ROW()),данные),0)>0,ROW(данные)))))-FIND(\"ТЕЛЕФОН\",INDEX(данные,SUM(IF(IFERROR(FIND(тп&INDEX(UPPER(LEFT(коды,FIND(\" \",коды)-1)),ROW()),данные),0)>0,ROW(данные)))))-7),\"\")","v":""}]
["Ратне (Вол.) – 03366",{"$f":"IFERROR(RIGHT(INDEX(данные,SUM(IF(IFERROR(FIND(тп&INDEX(UPPER(LEFT(коды,FIND(\" \",коды)-1)),ROW()),данные),0)>0,ROW(данные)))),LEN(INDEX(данные,SUM(IF(IFERROR(FIND(тп&INDEX(UPPER(LEFT(коды,FIND(\" \",коды)-1)),ROW()),данные),0)>0,ROW(данные)))))-FIND(\"ТЕЛЕФОН\",INDEX(данные,SUM(IF(IFERROR(FIND(тп&INDEX(UPPER(LEFT(коды,FIND(\" \",коды)-1)),ROW()),данные),0)>0,ROW(данные)))))-7),\"\")","v":""}]
["Рахів (Зак.) – 03132",{"$f":"IFERROR(RIGHT(INDEX(данные,SUM(IF(IFERROR(FIND(тп&INDEX(UPPER(LEFT(коды,FIND(\" \",коды)-1)),ROW()),данные),0)>0,ROW(данные)))),LEN(INDEX(данные,SUM(IF(IFERROR(FIND(тп&INDEX(UPPER(LEFT(коды,FIND(\" \",коды)-1)),ROW()),данные),0)>0,ROW(данные)))))-FIND(\"ТЕЛЕФОН\",INDEX(данные,SUM(IF(IFERROR(FIND(тп&INDEX(UPPER(LEFT(коды,FIND(\" \",коды)-1)),ROW()),данные),0)>0,ROW(данные)))))-7),\"\")","v":""}]
["Рені (Од.) – 04840",{"$f":"IFERROR(RIGHT(INDEX(данные,SUM(IF(IFERROR(FIND(тп&INDEX(UPPER(LEFT(коды,FIND(\" \",коды)-1)),ROW()),данные),0)>0,ROW(данные)))),LEN(INDEX(данные,SUM(IF(IFERROR(FIND(тп&INDEX(UPPER(LEFT(коды,FIND(\" \",коды)-1)),ROW()),данные),0)>0,ROW(данные)))))-FIND(\"ТЕЛЕФОН\",INDEX(данные,SUM(IF(IFERROR(FIND(тп&INDEX(UPPER(LEFT(коды,FIND(\" \",коды)-1)),ROW()),данные),0)>0,ROW(данные)))))-7),\"\")","v":""}]
["Решетилівка (Полт.) – 05363",{"$f":"IFERROR(RIGHT(INDEX(данные,SUM(IF(IFERROR(FIND(тп&INDEX(UPPER(LEFT(коды,FIND(\" \",коды)-1)),ROW()),данные),0)>0,ROW(данные)))),LEN(INDEX(данные,SUM(IF(IFERROR(FIND(тп&INDEX(UPPER(LEFT(коды,FIND(\" \",коды)-1)),ROW()),данные),0)>0,ROW(данные)))))-FIND(\"ТЕЛЕФОН\",INDEX(данные,SUM(IF(IFERROR(FIND(тп&INDEX(UPPER(LEFT(коды,FIND(\" \",коды)-1)),ROW()),данные),0)>0,ROW(данные)))))-7),\"\")","v":""}]
["Ржищів (Київ.) – 04473",{"$f":"IFERROR(RIGHT(INDEX(данные,SUM(IF(IFERROR(FIND(тп&INDEX(UPPER(LEFT(коды,FIND(\" \",коды)-1)),ROW()),данные),0)>0,ROW(данные)))),LEN(INDEX(данные,SUM(IF(IFERROR(FIND(тп&INDEX(UPPER(LEFT(коды,FIND(\" \",коды)-1)),ROW()),данные),0)>0,ROW(данные)))))-FIND(\"ТЕЛЕФОН\",INDEX(данные,SUM(IF(IFERROR(FIND(тп&INDEX(UPPER(LEFT(коды,FIND(\" \",коды)-1)),ROW()),данные),0)>0,ROW(данные)))))-7),\"\")","v":""}]
["РІВНЕ – 0362, 03622",{"$f":"IFERROR(RIGHT(INDEX(данные,SUM(IF(IFERROR(FIND(тп&INDEX(UPPER(LEFT(коды,FIND(\" \",коды)-1)),ROW()),данные),0)>0,ROW(данные)))),LEN(INDEX(данные,SUM(IF(IFERROR(FIND(тп&INDEX(UPPER(LEFT(коды,FIND(\" \",коды)-1)),ROW()),данные),0)>0,ROW(данные)))))-FIND(\"ТЕЛЕФОН\",INDEX(данные,SUM(IF(IFERROR(FIND(тп&INDEX(UPPER(LEFT(коды,FIND(\" \",коды)-1)),ROW()),данные),0)>0,ROW(данные)))))-7),\"\")","v":""}]
["Ріпки (Черніг.) – 04641",{"$f":"IFERROR(RIGHT(INDEX(данные,SUM(IF(IFERROR(FIND(тп&INDEX(UPPER(LEFT(коды,FIND(\" \",коды)-1)),ROW()),данные),0)>0,ROW(данные)))),LEN(INDEX(данные,SUM(IF(IFERROR(FIND(тп&INDEX(UPPER(LEFT(коды,FIND(\" \",коды)-1)),ROW()),данные),0)>0,ROW(данные)))))-FIND(\"ТЕЛЕФОН\",INDEX(данные,SUM(IF(IFERROR(FIND(тп&INDEX(UPPER(LEFT(коды,FIND(\" \",коды)-1)),ROW()),данные),0)>0,ROW(данные)))))-7),\"\")","v":""}]
["Ровеньки (Луг.) – 06433",{"$f":"IFERROR(RIGHT(INDEX(данные,SUM(IF(IFERROR(FIND(тп&INDEX(UPPER(LEFT(коды,FIND(\" \",коды)-1)),ROW()),данные),0)>0,ROW(данные)))),LEN(INDEX(данные,SUM(IF(IFERROR(FIND(тп&INDEX(UPPER(LEFT(коды,FIND(\" \",коды)-1)),ROW()),данные),0)>0,ROW(данные)))))-FIND(\"ТЕЛЕФОН\",INDEX(данные,SUM(IF(IFERROR(FIND(тп&INDEX(UPPER(LEFT(коды,FIND(\" \",коды)-1)),ROW()),данные),0)>0,ROW(данные)))))-7),\"\")","v":""}]
["Рогань (Харк.) – 0572",{"$f":"IFERROR(RIGHT(INDEX(данные,SUM(IF(IFERROR(FIND(тп&INDEX(UPPER(LEFT(коды,FIND(\" \",коды)-1)),ROW()),данные),0)>0,ROW(данные)))),LEN(INDEX(данные,SUM(IF(IFERROR(FIND(тп&INDEX(UPPER(LEFT(коды,FIND(\" \",коды)-1)),ROW()),данные),0)>0,ROW(данные)))))-FIND(\"ТЕЛЕФОН\",INDEX(данные,SUM(IF(IFERROR(FIND(тп&INDEX(UPPER(LEFT(коды,FIND(\" \",коды)-1)),ROW()),данные),0)>0,ROW(данные)))))-7),\"\")","v":""}]
["Рогатин (Ів.-Фр.) – 03435",{"$f":"IFERROR(RIGHT(INDEX(данные,SUM(IF(IFERROR(FIND(тп&INDEX(UPPER(LEFT(коды,FIND(\" \",коды)-1)),ROW()),данные),0)>0,ROW(данные)))),LEN(INDEX(данные,SUM(IF(IFERROR(FIND(тп&INDEX(UPPER(LEFT(коды,FIND(\" \",коды)-1)),ROW()),данные),0)>0,ROW(данные)))))-FIND(\"ТЕЛЕФОН\",INDEX(данные,SUM(IF(IFERROR(FIND(тп&INDEX(UPPER(LEFT(коды,FIND(\" \",коды)-1)),ROW()),данные),0)>0,ROW(данные)))))-7),\"\")","v":""}]
["Рожище (Вол.) – 03368",{"$f":"IFERROR(RIGHT(INDEX(данные,SUM(IF(IFERROR(FIND(тп&INDEX(UPPER(LEFT(коды,FIND(\" \",коды)-1)),ROW()),данные),0)>0,ROW(данные)))),LEN(INDEX(данные,SUM(IF(IFERROR(FIND(тп&INDEX(UPPER(LEFT(коды,FIND(\" \",коды)-1)),ROW()),данные),0)>0,ROW(данные)))))-FIND(\"ТЕЛЕФОН\",INDEX(данные,SUM(IF(IFERROR(FIND(тп&INDEX(UPPER(LEFT(коды,FIND(\" \",коды)-1)),ROW()),данные),0)>0,ROW(данные)))))-7),\"\")","v":""}]
["Рожнятів (Ів.-Фр.) – 03474",{"$f":"IFERROR(RIGHT(INDEX(данные,SUM(IF(IFERROR(FIND(тп&INDEX(UPPER(LEFT(коды,FIND(\" \",коды)-1)),ROW()),данные),0)>0,ROW(данные)))),LEN(INDEX(данные,SUM(IF(IFERROR(FIND(тп&INDEX(UPPER(LEFT(коды,FIND(\" \",коды)-1)),ROW()),данные),0)>0,ROW(данные)))))-FIND(\"ТЕЛЕФОН\",INDEX(данные,SUM(IF(IFERROR(FIND(тп&INDEX(UPPER(LEFT(коды,FIND(\" \",коды)-1)),ROW()),данные),0)>0,ROW(данные)))))-7),\"\")","v":""}]
["Роздільна (Од.) – 04853",{"$f":"IFERROR(RIGHT(INDEX(данные,SUM(IF(IFERROR(FIND(тп&INDEX(UPPER(LEFT(коды,FIND(\" \",коды)-1)),ROW()),данные),0)>0,ROW(данные)))),LEN(INDEX(данные,SUM(IF(IFERROR(FIND(тп&INDEX(UPPER(LEFT(коды,FIND(\" \",коды)-1)),ROW()),данные),0)>0,ROW(данные)))))-FIND(\"ТЕЛЕФОН\",INDEX(данные,SUM(IF(IFERROR(FIND(тп&INDEX(UPPER(LEFT(коды,FIND(\" \",коды)-1)),ROW()),данные),0)>0,ROW(данные)))))-7),\"\")","v":""}]
["Роздол (Льв.) – 03241",{"$f":"IFERROR(RIGHT(INDEX(данные,SUM(IF(IFERROR(FIND(тп&INDEX(UPPER(LEFT(коды,FIND(\" \",коды)-1)),ROW()),данные),0)>0,ROW(данные)))),LEN(INDEX(данные,SUM(IF(IFERROR(FIND(тп&INDEX(UPPER(LEFT(коды,FIND(\" \",коды)-1)),ROW()),данные),0)>0,ROW(данные)))))-FIND(\"ТЕЛЕФОН\",INDEX(данные,SUM(IF(IFERROR(FIND(тп&INDEX(UPPER(LEFT(коды,FIND(\" \",коды)-1)),ROW()),данные),0)>0,ROW(данные)))))-7),\"\")","v":""}]
["Роздольне (АРК) – 06553",{"$f":"IFERROR(RIGHT(INDEX(данные,SUM(IF(IFERROR(FIND(тп&INDEX(UPPER(LEFT(коды,FIND(\" \",коды)-1)),ROW()),данные),0)>0,ROW(данные)))),LEN(INDEX(данные,SUM(IF(IFERROR(FIND(тп&INDEX(UPPER(LEFT(коды,FIND(\" \",коды)-1)),ROW()),данные),0)>0,ROW(данные)))))-FIND(\"ТЕЛЕФОН\",INDEX(данные,SUM(IF(IFERROR(FIND(тп&INDEX(UPPER(LEFT(коды,FIND(\" \",коды)-1)),ROW()),данные),0)>0,ROW(данные)))))-7),\"\")","v":""}]
["Розівка (Зап.) – 06162",{"$f":"IFERROR(RIGHT(INDEX(данные,SUM(IF(IFERROR(FIND(тп&INDEX(UPPER(LEFT(коды,FIND(\" \",коды)-1)),ROW()),данные),0)>0,ROW(данные)))),LEN(INDEX(данные,SUM(IF(IFERROR(FIND(тп&INDEX(UPPER(LEFT(коды,FIND(\" \",коды)-1)),ROW()),данные),0)>0,ROW(данные)))))-FIND(\"ТЕЛЕФОН\",INDEX(данные,SUM(IF(IFERROR(FIND(тп&INDEX(UPPER(LEFT(коды,FIND(\" \",коды)-1)),ROW()),данные),0)>0,ROW(данные)))))-7),\"\")","v":""}]
["Рокитне (Київ.) – 04462",{"$f":"IFERROR(RIGHT(INDEX(данные,SUM(IF(IFERROR(FIND(тп&INDEX(UPPER(LEFT(коды,FIND(\" \",коды)-1)),ROW()),данные),0)>0,ROW(данные)))),LEN(INDEX(данные,SUM(IF(IFERROR(FIND(тп&INDEX(UPPER(LEFT(коды,FIND(\" \",коды)-1)),ROW()),данные),0)>0,ROW(данные)))))-FIND(\"ТЕЛЕФОН\",INDEX(данные,SUM(IF(IFERROR(FIND(тп&INDEX(UPPER(LEFT(коды,FIND(\" \",коды)-1)),ROW()),данные),0)>0,ROW(данные)))))-7),\"\")","v":""}]
["Рокитне (Рівн.) – 03635",{"$f":"IFERROR(RIGHT(INDEX(данные,SUM(IF(IFERROR(FIND(тп&INDEX(UPPER(LEFT(коды,FIND(\" \",коды)-1)),ROW()),данные),0)>0,ROW(данные)))),LEN(INDEX(данные,SUM(IF(IFERROR(FIND(тп&INDEX(UPPER(LEFT(коды,FIND(\" \",коды)-1)),ROW()),данные),0)>0,ROW(данные)))))-FIND(\"ТЕЛЕФОН\",INDEX(данные,SUM(IF(IFERROR(FIND(тп&INDEX(UPPER(LEFT(коды,FIND(\" \",коды)-1)),ROW()),данные),0)>0,ROW(данные)))))-7),\"\")","v":""}]
["Ромни (Сум.) – 05448",{"$f":"IFERROR(RIGHT(INDEX(данные,SUM(IF(IFERROR(FIND(тп&INDEX(UPPER(LEFT(коды,FIND(\" \",коды)-1)),ROW()),данные),0)>0,ROW(данные)))),LEN(INDEX(данные,SUM(IF(IFERROR(FIND(тп&INDEX(UPPER(LEFT(коды,FIND(\" \",коды)-1)),ROW()),данные),0)>0,ROW(данные)))))-FIND(\"ТЕЛЕФОН\",INDEX(данные,SUM(IF(IFERROR(FIND(тп&INDEX(UPPER(LEFT(коды,FIND(\" \",коды)-1)),ROW()),данные),0)>0,ROW(данные)))))-7),\"\")","v":""}]
["Рубіжне (Луг.) – 06453",{"$f":"IFERROR(RIGHT(INDEX(данные,SUM(IF(IFERROR(FIND(тп&INDEX(UPPER(LEFT(коды,FIND(\" \",коды)-1)),ROW()),данные),0)>0,ROW(данные)))),LEN(INDEX(данные,SUM(IF(IFERROR(FIND(тп&INDEX(UPPER(LEFT(коды,FIND(\" \",коды)-1)),ROW()),данные),0)>0,ROW(данные)))))-FIND(\"ТЕЛЕФОН\",INDEX(данные,SUM(IF(IFERROR(FIND(тп&INDEX(UPPER(LEFT(коды,FIND(\" \",коды)-1)),ROW()),данные),0)>0,ROW(данные)))))-7),\"\")","v":""}]
["Рудниця (Він.) – 04349",{"$f":"IFERROR(RIGHT(INDEX(данные,SUM(IF(IFERROR(FIND(тп&INDEX(UPPER(LEFT(коды,FIND(\" \",коды)-1)),ROW()),данные),0)>0,ROW(данные)))),LEN(INDEX(данные,SUM(IF(IFERROR(FIND(тп&INDEX(UPPER(LEFT(коды,FIND(\" \",коды)-1)),ROW()),данные),0)>0,ROW(данные)))))-FIND(\"ТЕЛЕФОН\",INDEX(данные,SUM(IF(IFERROR(FIND(тп&INDEX(UPPER(LEFT(коды,FIND(\" \",коды)-1)),ROW()),данные),0)>0,ROW(данные)))))-7),\"\")","v":""}]
["Ружин (Жит.) – 04138",{"$f":"IFERROR(RIGHT(INDEX(данные,SUM(IF(IFERROR(FIND(тп&INDEX(UPPER(LEFT(коды,FIND(\" \",коды)-1)),ROW()),данные),0)>0,ROW(данные)))),LEN(INDEX(данные,SUM(IF(IFERROR(FIND(тп&INDEX(UPPER(LEFT(коды,FIND(\" \",коды)-1)),ROW()),данные),0)>0,ROW(данные)))))-FIND(\"ТЕЛЕФОН\",INDEX(данные,SUM(IF(IFERROR(FIND(тп&INDEX(UPPER(LEFT(коды,FIND(\" \",коды)-1)),ROW()),данные),0)>0,ROW(данные)))))-7),\"\")","v":""}]
[null,{"$f":"IFERROR(RIGHT(INDEX(данные,SUM(IF(IFERROR(FIND(тп&INDEX(UPPER(LEFT(коды,FIND(\" \",коды)-1)),ROW()),данные),0)>0,ROW(данные)))),LEN(INDEX(данные,SUM(IF(IFERROR(FIND(тп&INDEX(UPPER(LEFT(коды,FIND(\" \",коды)-1)),ROW()),данные),0)>0,ROW(данные)))))-FIND(\"ТЕЛЕФОН\",INDEX(данные,SUM(IF(IFERROR(FIND(тп&INDEX(UPPER(LEFT(коды,FIND(\" \",коды)-1)),ROW()),данные),0)>0,ROW(данные)))))-7),\"\")","v":""}]
["Савинці (Харк.) – 05749",{"$f":"IFERROR(RIGHT(INDEX(данные,SUM(IF(IFERROR(FIND(тп&INDEX(UPPER(LEFT(коды,FIND(\" \",коды)-1)),ROW()),данные),0)>0,ROW(данные)))),LEN(INDEX(данные,SUM(IF(IFERROR(FIND(тп&INDEX(UPPER(LEFT(коды,FIND(\" \",коды)-1)),ROW()),данные),0)>0,ROW(данные)))))-FIND(\"ТЕЛЕФОН\",INDEX(данные,SUM(IF(IFERROR(FIND(тп&INDEX(UPPER(LEFT(коды,FIND(\" \",коды)-1)),ROW()),данные),0)>0,ROW(данные)))))-7),\"\")","v":""}]
["Саврань (Од.) – 04865",{"$f":"IFERROR(RIGHT(INDEX(данные,SUM(IF(IFERROR(FIND(тп&INDEX(UPPER(LEFT(коды,FIND(\" \",коды)-1)),ROW()),данные),0)>0,ROW(данные)))),LEN(INDEX(данные,SUM(IF(IFERROR(FIND(тп&INDEX(UPPER(LEFT(коды,FIND(\" \",коды)-1)),ROW()),данные),0)>0,ROW(данные)))))-FIND(\"ТЕЛЕФОН\",INDEX(данные,SUM(IF(IFERROR(FIND(тп&INDEX(UPPER(LEFT(коды,FIND(\" \",коды)-1)),ROW()),данные),0)>0,ROW(данные)))))-7),\"\")","v":""}]
["Саки (АРК) – 06563",{"$f":"IFERROR(RIGHT(INDEX(данные,SUM(IF(IFERROR(FIND(тп&INDEX(UPPER(LEFT(коды,FIND(\" \",коды)-1)),ROW()),данные),0)>0,ROW(данные)))),LEN(INDEX(данные,SUM(IF(IFERROR(FIND(тп&INDEX(UPPER(LEFT(коды,FIND(\" \",коды)-1)),ROW()),данные),0)>0,ROW(данные)))))-FIND(\"ТЕЛЕФОН\",INDEX(данные,SUM(IF(IFERROR(FIND(тп&INDEX(UPPER(LEFT(коды,FIND(\" \",коды)-1)),ROW()),данные),0)>0,ROW(данные)))))-7),\"\")","v":""}]
["Самбір (Льв.) – 03236",{"$f":"IFERROR(RIGHT(INDEX(данные,SUM(IF(IFERROR(FIND(тп&INDEX(UPPER(LEFT(коды,FIND(\" \",коды)-1)),ROW()),данные),0)>0,ROW(данные)))),LEN(INDEX(данные,SUM(IF(IFERROR(FIND(тп&INDEX(UPPER(LEFT(коды,FIND(\" \",коды)-1)),ROW()),данные),0)>0,ROW(данные)))))-FIND(\"ТЕЛЕФОН\",INDEX(данные,SUM(IF(IFERROR(FIND(тп&INDEX(UPPER(LEFT(коды,FIND(\" \",коды)-1)),ROW()),данные),0)>0,ROW(данные)))))-7),\"\")","v":""}]
["Санаторне (АРК) – 0654",{"$f":"IFERROR(RIGHT(INDEX(данные,SUM(IF(IFERROR(FIND(тп&INDEX(UPPER(LEFT(коды,FIND(\" \",коды)-1)),ROW()),данные),0)>0,ROW(данные)))),LEN(INDEX(данные,SUM(IF(IFERROR(FIND(тп&INDEX(UPPER(LEFT(коды,FIND(\" \",коды)-1)),ROW()),данные),0)>0,ROW(данные)))))-FIND(\"ТЕЛЕФОН\",INDEX(данные,SUM(IF(IFERROR(FIND(тп&INDEX(UPPER(LEFT(коды,FIND(\" \",коды)-1)),ROW()),данные),0)>0,ROW(данные)))))-7),\"\")","v":""}]
["Сарата (Од.) – 04848",{"$f":"IFERROR(RIGHT(INDEX(данные,SUM(IF(IFERROR(FIND(тп&INDEX(UPPER(LEFT(коды,FIND(\" \",коды)-1)),ROW()),данные),0)>0,ROW(данные)))),LEN(INDEX(данные,SUM(IF(IFERROR(FIND(тп&INDEX(UPPER(LEFT(коды,FIND(\" \",коды)-1)),ROW()),данные),0)>0,ROW(данные)))))-FIND(\"ТЕЛЕФОН\",INDEX(данные,SUM(IF(IFERROR(FIND(тп&INDEX(UPPER(LEFT(коды,FIND(\" \",коды)-1)),ROW()),данные),0)>0,ROW(данные)))))-7),\"\")","v":""}]
["Сарни (Рівн.) – 036552",{"$f":"IFERROR(RIGHT(INDEX(данные,SUM(IF(IFERROR(FIND(тп&INDEX(UPPER(LEFT(коды,FIND(\" \",коды)-1)),ROW()),данные),0)>0,ROW(данные)))),LEN(INDEX(данные,SUM(IF(IFERROR(FIND(тп&INDEX(UPPER(LEFT(коды,FIND(\" \",коды)-1)),ROW()),данные),0)>0,ROW(данные)))))-FIND(\"ТЕЛЕФОН\",INDEX(данные,SUM(IF(IFERROR(FIND(тп&INDEX(UPPER(LEFT(коды,FIND(\" \",коды)-1)),ROW()),данные),0)>0,ROW(данные)))))-7),\"\")","v":""}]
["Сахновщина (Харк.) – 05762",{"$f":"IFERROR(RIGHT(INDEX(данные,SUM(IF(IFERROR(FIND(тп&INDEX(UPPER(LEFT(коды,FIND(\" \",коды)-1)),ROW()),данные),0)>0,ROW(данные)))),LEN(INDEX(данные,SUM(IF(IFERROR(FIND(тп&INDEX(UPPER(LEFT(коды,FIND(\" \",коды)-1)),ROW()),данные),0)>0,ROW(данные)))))-FIND(\"ТЕЛЕФОН\",INDEX(данные,SUM(IF(IFERROR(FIND(тп&INDEX(UPPER(LEFT(коды,FIND(\" \",коды)-1)),ROW()),данные),0)>0,ROW(данные)))))-7),\"\")","v":""}]
["Свалява (Зак.) – 03133",{"$f":"IFERROR(RIGHT(INDEX(данные,SUM(IF(IFERROR(FIND(тп&INDEX(UPPER(LEFT(коды,FIND(\" \",коды)-1)),ROW()),данные),0)>0,ROW(данные)))),LEN(INDEX(данные,SUM(IF(IFERROR(FIND(тп&INDEX(UPPER(LEFT(коды,FIND(\" \",коды)-1)),ROW()),данные),0)>0,ROW(данные)))))-FIND(\"ТЕЛЕФОН\",INDEX(данные,SUM(IF(IFERROR(FIND(тп&INDEX(UPPER(LEFT(коды,FIND(\" \",коды)-1)),ROW()),данные),0)>0,ROW(данные)))))-7),\"\")","v":""}]
["Сватове (Луг.) – 06471",{"$f":"IFERROR(RIGHT(INDEX(данные,SUM(IF(IFERROR(FIND(тп&INDEX(UPPER(LEFT(коды,FIND(\" \",коды)-1)),ROW()),данные),0)>0,ROW(данные)))),LEN(INDEX(данные,SUM(IF(IFERROR(FIND(тп&INDEX(UPPER(LEFT(коды,FIND(\" \",коды)-1)),ROW()),данные),0)>0,ROW(данные)))))-FIND(\"ТЕЛЕФОН\",INDEX(данные,SUM(IF(IFERROR(FIND(тп&INDEX(UPPER(LEFT(коды,FIND(\" \",коды)-1)),ROW()),данные),0)>0,ROW(данные)))))-7),\"\")","v":""}]
["Свердловськ (Луг.) – 06434",{"$f":"IFERROR(RIGHT(INDEX(данные,SUM(IF(IFERROR(FIND(тп&INDEX(UPPER(LEFT(коды,FIND(\" \",коды)-1)),ROW()),данные),0)>0,ROW(данные)))),LEN(INDEX(данные,SUM(IF(IFERROR(FIND(тп&INDEX(UPPER(LEFT(коды,FIND(\" \",коды)-1)),ROW()),данные),0)>0,ROW(данные)))))-FIND(\"ТЕЛЕФОН\",INDEX(данные,SUM(IF(IFERROR(FIND(тп&INDEX(UPPER(LEFT(коды,FIND(\" \",коды)-1)),ROW()),данные),0)>0,ROW(данные)))))-7),\"\")","v":""}]
["Світловодськ (Кір.) – 05236",{"$f":"IFERROR(RIGHT(INDEX(данные,SUM(IF(IFERROR(FIND(тп&INDEX(UPPER(LEFT(коды,FIND(\" \",коды)-1)),ROW()),данные),0)>0,ROW(данные)))),LEN(INDEX(данные,SUM(IF(IFERROR(FIND(тп&INDEX(UPPER(LEFT(коды,FIND(\" \",коды)-1)),ROW()),данные),0)>0,ROW(данные)))))-FIND(\"ТЕЛЕФОН\",INDEX(данные,SUM(IF(IFERROR(FIND(тп&INDEX(UPPER(LEFT(коды,FIND(\" \",коды)-1)),ROW()),данные),0)>0,ROW(данные)))))-7),\"\")","v":""}]
["СЕВАСТОПОЛЬ – 0692",{"$f":"IFERROR(RIGHT(INDEX(данные,SUM(IF(IFERROR(FIND(тп&INDEX(UPPER(LEFT(коды,FIND(\" \",коды)-1)),ROW()),данные),0)>0,ROW(данные)))),LEN(INDEX(данные,SUM(IF(IFERROR(FIND(тп&INDEX(UPPER(LEFT(коды,FIND(\" \",коды)-1)),ROW()),данные),0)>0,ROW(данные)))))-FIND(\"ТЕЛЕФОН\",INDEX(данные,SUM(IF(IFERROR(FIND(тп&INDEX(UPPER(LEFT(коды,FIND(\" \",коды)-1)),ROW()),данные),0)>0,ROW(данные)))))-7),\"\")","v":""}]
["Селидове (Дон.) – 06237",{"$f":"IFERROR(RIGHT(INDEX(данные,SUM(IF(IFERROR(FIND(тп&INDEX(UPPER(LEFT(коды,FIND(\" \",коды)-1)),ROW()),данные),0)>0,ROW(данные)))),LEN(INDEX(данные,SUM(IF(IFERROR(FIND(тп&INDEX(UPPER(LEFT(коды,FIND(\" \",коды)-1)),ROW()),данные),0)>0,ROW(данные)))))-FIND(\"ТЕЛЕФОН\",INDEX(данные,SUM(IF(IFERROR(FIND(тп&INDEX(UPPER(LEFT(коды,FIND(\" \",коды)-1)),ROW()),данные),0)>0,ROW(данные)))))-7),\"\")","v":""}]
["Семенівка (Полт.) – 05341",{"$f":"IFERROR(RIGHT(INDEX(данные,SUM(IF(IFERROR(FIND(тп&INDEX(UPPER(LEFT(коды,FIND(\" \",коды)-1)),ROW()),данные),0)>0,ROW(данные)))),LEN(INDEX(данные,SUM(IF(IFERROR(FIND(тп&INDEX(UPPER(LEFT(коды,FIND(\" \",коды)-1)),ROW()),данные),0)>0,ROW(данные)))))-FIND(\"ТЕЛЕФОН\",INDEX(данные,SUM(IF(IFERROR(FIND(тп&INDEX(UPPER(LEFT(коды,FIND(\" \",коды)-1)),ROW()),данные),0)>0,ROW(данные)))))-7),\"\")","v":""}]
["Семенівка (Черніг.) – 04659",{"$f":"IFERROR(RIGHT(INDEX(данные,SUM(IF(IFERROR(FIND(тп&INDEX(UPPER(LEFT(коды,FIND(\" \",коды)-1)),ROW()),данные),0)>0,ROW(данные)))),LEN(INDEX(данные,SUM(IF(IFERROR(FIND(тп&INDEX(UPPER(LEFT(коды,FIND(\" \",коды)-1)),ROW()),данные),0)>0,ROW(данные)))))-FIND(\"ТЕЛЕФОН\",INDEX(данные,SUM(IF(IFERROR(FIND(тп&INDEX(UPPER(LEFT(коды,FIND(\" \",коды)-1)),ROW()),данные),0)>0,ROW(данные)))))-7),\"\")","v":""}]
["Середина-Буда (Сум.) – 05451",{"$f":"IFERROR(RIGHT(INDEX(данные,SUM(IF(IFERROR(FIND(тп&INDEX(UPPER(LEFT(коды,FIND(\" \",коды)-1)),ROW()),данные),0)>0,ROW(данные)))),LEN(INDEX(данные,SUM(IF(IFERROR(FIND(тп&INDEX(UPPER(LEFT(коды,FIND(\" \",коды)-1)),ROW()),данные),0)>0,ROW(данные)))))-FIND(\"ТЕЛЕФОН\",INDEX(данные,SUM(IF(IFERROR(FIND(тп&INDEX(UPPER(LEFT(коды,FIND(\" \",коды)-1)),ROW()),данные),0)>0,ROW(данные)))))-7),\"\")","v":""}]
["Сєверодонецьк (Луг.) – 06452",{"$f":"IFERROR(RIGHT(INDEX(данные,SUM(IF(IFERROR(FIND(тп&INDEX(UPPER(LEFT(коды,FIND(\" \",коды)-1)),ROW()),данные),0)>0,ROW(данные)))),LEN(INDEX(данные,SUM(IF(IFERROR(FIND(тп&INDEX(UPPER(LEFT(коды,FIND(\" \",коды)-1)),ROW()),данные),0)>0,ROW(данные)))))-FIND(\"ТЕЛЕФОН\",INDEX(данные,SUM(IF(IFERROR(FIND(тп&INDEX(UPPER(LEFT(коды,FIND(\" \",коды)-1)),ROW()),данные),0)>0,ROW(данные)))))-7),\"\")","v":""}]
["Синельникове (Дн.) – 05615",{"$f":"IFERROR(RIGHT(INDEX(данные,SUM(IF(IFERROR(FIND(тп&INDEX(UPPER(LEFT(коды,FIND(\" \",коды)-1)),ROW()),данные),0)>0,ROW(данные)))),LEN(INDEX(данные,SUM(IF(IFERROR(FIND(тп&INDEX(UPPER(LEFT(коды,FIND(\" \",коды)-1)),ROW()),данные),0)>0,ROW(данные)))))-FIND(\"ТЕЛЕФОН\",INDEX(данные,SUM(IF(IFERROR(FIND(тп&INDEX(UPPER(LEFT(коды,FIND(\" \",коды)-1)),ROW()),данные),0)>0,ROW(данные)))))-7),\"\")","v":""}]
["Сімеїз (АРК) – 0654",{"$f":"IFERROR(RIGHT(INDEX(данные,SUM(IF(IFERROR(FIND(тп&INDEX(UPPER(LEFT(коды,FIND(\" \",коды)-1)),ROW()),данные),0)>0,ROW(данные)))),LEN(INDEX(данные,SUM(IF(IFERROR(FIND(тп&INDEX(UPPER(LEFT(коды,FIND(\" \",коды)-1)),ROW()),данные),0)>0,ROW(данные)))))-FIND(\"ТЕЛЕФОН\",INDEX(данные,SUM(IF(IFERROR(FIND(тп&INDEX(UPPER(LEFT(коды,FIND(\" \",коды)-1)),ROW()),данные),0)>0,ROW(данные)))))-7),\"\")","v":""}]
["СІМФЕРОПОЛЬ – 0652",{"$f":"IFERROR(RIGHT(INDEX(данные,SUM(IF(IFERROR(FIND(тп&INDEX(UPPER(LEFT(коды,FIND(\" \",коды)-1)),ROW()),данные),0)>0,ROW(данные)))),LEN(INDEX(данные,SUM(IF(IFERROR(FIND(тп&INDEX(UPPER(LEFT(коды,FIND(\" \",коды)-1)),ROW()),данные),0)>0,ROW(данные)))))-FIND(\"ТЕЛЕФОН\",INDEX(данные,SUM(IF(IFERROR(FIND(тп&INDEX(UPPER(LEFT(коды,FIND(\" \",коды)-1)),ROW()),данные),0)>0,ROW(данные)))))-7),\"\")","v":""}]
["Скадовськ (Херс.) – 05537",{"$f":"IFERROR(RIGHT(INDEX(данные,SUM(IF(IFERROR(FIND(тп&INDEX(UPPER(LEFT(коды,FIND(\" \",коды)-1)),ROW()),данные),0)>0,ROW(данные)))),LEN(INDEX(данные,SUM(IF(IFERROR(FIND(тп&INDEX(UPPER(LEFT(коды,FIND(\" \",коды)-1)),ROW()),данные),0)>0,ROW(данные)))))-FIND(\"ТЕЛЕФОН\",INDEX(данные,SUM(IF(IFERROR(FIND(тп&INDEX(UPPER(LEFT(коды,FIND(\" \",коды)-1)),ROW()),данные),0)>0,ROW(данные)))))-7),\"\")","v":""}]
["Скала-Подільська (Терн.) – 03541",{"$f":"IFERROR(RIGHT(INDEX(данные,SUM(IF(IFERROR(FIND(тп&INDEX(UPPER(LEFT(коды,FIND(\" \",коды)-1)),ROW()),данные),0)>0,ROW(данные)))),LEN(INDEX(данные,SUM(IF(IFERROR(FIND(тп&INDEX(UPPER(LEFT(коды,FIND(\" \",коды)-1)),ROW()),данные),0)>0,ROW(данные)))))-FIND(\"ТЕЛЕФОН\",INDEX(данные,SUM(IF(IFERROR(FIND(тп&INDEX(UPPER(LEFT(коды,FIND(\" \",коды)-1)),ROW()),данные),0)>0,ROW(данные)))))-7),\"\")","v":""}]
["Скалат (Терн.) – 03543",{"$f":"IFERROR(RIGHT(INDEX(данные,SUM(IF(IFERROR(FIND(тп&INDEX(UPPER(LEFT(коды,FIND(\" \",коды)-1)),ROW()),данные),0)>0,ROW(данные)))),LEN(INDEX(данные,SUM(IF(IFERROR(FIND(тп&INDEX(UPPER(LEFT(коды,FIND(\" \",коды)-1)),ROW()),данные),0)>0,ROW(данные)))))-FIND(\"ТЕЛЕФОН\",INDEX(данные,SUM(IF(IFERROR(FIND(тп&INDEX(UPPER(LEFT(коды,FIND(\" \",коды)-1)),ROW()),данные),0)>0,ROW(данные)))))-7),\"\")","v":""}]
["Сквира (Київ.) – 04468",{"$f":"IFERROR(RIGHT(INDEX(данные,SUM(IF(IFERROR(FIND(тп&INDEX(UPPER(LEFT(коды,FIND(\" \",коды)-1)),ROW()),данные),0)>0,ROW(данные)))),LEN(INDEX(данные,SUM(IF(IFERROR(FIND(тп&INDEX(UPPER(LEFT(коды,FIND(\" \",коды)-1)),ROW()),данные),0)>0,ROW(данные)))))-FIND(\"ТЕЛЕФОН\",INDEX(данные,SUM(IF(IFERROR(FIND(тп&INDEX(UPPER(LEFT(коды,FIND(\" \",коды)-1)),ROW()),данные),0)>0,ROW(данные)))))-7),\"\")","v":""}]
["Сколе (Льв.) – 03251",{"$f":"IFERROR(RIGHT(INDEX(данные,SUM(IF(IFERROR(FIND(тп&INDEX(UPPER(LEFT(коды,FIND(\" \",коды)-1)),ROW()),данные),0)>0,ROW(данные)))),LEN(INDEX(данные,SUM(IF(IFERROR(FIND(тп&INDEX(UPPER(LEFT(коды,FIND(\" \",коды)-1)),ROW()),данные),0)>0,ROW(данные)))))-FIND(\"ТЕЛЕФОН\",INDEX(данные,SUM(IF(IFERROR(FIND(тп&INDEX(UPPER(LEFT(коды,FIND(\" \",коды)-1)),ROW()),данные),0)>0,ROW(данные)))))-7),\"\")","v":""}]
["Славське (Льв.) – 03251",{"$f":"IFERROR(RIGHT(INDEX(данные,SUM(IF(IFERROR(FIND(тп&INDEX(UPPER(LEFT(коды,FIND(\" \",коды)-1)),ROW()),данные),0)>0,ROW(данные)))),LEN(INDEX(данные,SUM(IF(IFERROR(FIND(тп&INDEX(UPPER(LEFT(коды,FIND(\" \",коды)-1)),ROW()),данные),0)>0,ROW(данные)))))-FIND(\"ТЕЛЕФОН\",INDEX(данные,SUM(IF(IFERROR(FIND(тп&INDEX(UPPER(LEFT(коды,FIND(\" \",коды)-1)),ROW()),данные),0)>0,ROW(данные)))))-7),\"\")","v":""}]
["Славута (Хм.) – 03842",{"$f":"IFERROR(RIGHT(INDEX(данные,SUM(IF(IFERROR(FIND(тп&INDEX(UPPER(LEFT(коды,FIND(\" \",коды)-1)),ROW()),данные),0)>0,ROW(данные)))),LEN(INDEX(данные,SUM(IF(IFERROR(FIND(тп&INDEX(UPPER(LEFT(коды,FIND(\" \",коды)-1)),ROW()),данные),0)>0,ROW(данные)))))-FIND(\"ТЕЛЕФОН\",INDEX(данные,SUM(IF(IFERROR(FIND(тп&INDEX(UPPER(LEFT(коды,FIND(\" \",коды)-1)),ROW()),данные),0)>0,ROW(данные)))))-7),\"\")","v":""}]
["Славутич (Київ.) – 04479",{"$f":"IFERROR(RIGHT(INDEX(данные,SUM(IF(IFERROR(FIND(тп&INDEX(UPPER(LEFT(коды,FIND(\" \",коды)-1)),ROW()),данные),0)>0,ROW(данные)))),LEN(INDEX(данные,SUM(IF(IFERROR(FIND(тп&INDEX(UPPER(LEFT(коды,FIND(\" \",коды)-1)),ROW()),данные),0)>0,ROW(данные)))))-FIND(\"ТЕЛЕФОН\",INDEX(данные,SUM(IF(IFERROR(FIND(тп&INDEX(UPPER(LEFT(коды,FIND(\" \",коды)-1)),ROW()),данные),0)>0,ROW(данные)))))-7),\"\")","v":""}]
["Слатине (Харк.) – 05763",{"$f":"IFERROR(RIGHT(INDEX(данные,SUM(IF(IFERROR(FIND(тп&INDEX(UPPER(LEFT(коды,FIND(\" \",коды)-1)),ROW()),данные),0)>0,ROW(данные)))),LEN(INDEX(данные,SUM(IF(IFERROR(FIND(тп&INDEX(UPPER(LEFT(коды,FIND(\" \",коды)-1)),ROW()),данные),0)>0,ROW(данные)))))-FIND(\"ТЕЛЕФОН\",INDEX(данные,SUM(IF(IFERROR(FIND(тп&INDEX(UPPER(LEFT(коды,FIND(\" \",коды)-1)),ROW()),данные),0)>0,ROW(данные)))))-7),\"\")","v":""}]
["Слов'яногірськ (Дон.) – 06262",{"$f":"IFERROR(RIGHT(INDEX(данные,SUM(IF(IFERROR(FIND(тп&INDEX(UPPER(LEFT(коды,FIND(\" \",коды)-1)),ROW()),данные),0)>0,ROW(данные)))),LEN(INDEX(данные,SUM(IF(IFERROR(FIND(тп&INDEX(UPPER(LEFT(коды,FIND(\" \",коды)-1)),ROW()),данные),0)>0,ROW(данные)))))-FIND(\"ТЕЛЕФОН\",INDEX(данные,SUM(IF(IFERROR(FIND(тп&INDEX(UPPER(LEFT(коды,FIND(\" \",коды)-1)),ROW()),данные),0)>0,ROW(данные)))))-7),\"\")","v":""}]
["Спов'яносербськ (Луг.) – 06473",{"$f":"IFERROR(RIGHT(INDEX(данные,SUM(IF(IFERROR(FIND(тп&INDEX(UPPER(LEFT(коды,FIND(\" \",коды)-1)),ROW()),данные),0)>0,ROW(данные)))),LEN(INDEX(данные,SUM(IF(IFERROR(FIND(тп&INDEX(UPPER(LEFT(коды,FIND(\" \",коды)-1)),ROW()),данные),0)>0,ROW(данные)))))-FIND(\"ТЕЛЕФОН\",INDEX(данные,SUM(IF(IFERROR(FIND(тп&INDEX(UPPER(LEFT(коды,FIND(\" \",коды)-1)),ROW()),данные),0)>0,ROW(данные)))))-7),\"\")","v":""}]
["Слов'янськ (Дон.) – 06262",{"$f":"IFERROR(RIGHT(INDEX(данные,SUM(IF(IFERROR(FIND(тп&INDEX(UPPER(LEFT(коды,FIND(\" \",коды)-1)),ROW()),данные),0)>0,ROW(данные)))),LEN(INDEX(данные,SUM(IF(IFERROR(FIND(тп&INDEX(UPPER(LEFT(коды,FIND(\" \",коды)-1)),ROW()),данные),0)>0,ROW(данные)))))-FIND(\"ТЕЛЕФОН\",INDEX(данные,SUM(IF(IFERROR(FIND(тп&INDEX(UPPER(LEFT(коды,FIND(\" \",коды)-1)),ROW()),данные),0)>0,ROW(данные)))))-7),\"\")","v":""}]
["Сміла (Черк.) – 04733",{"$f":"IFERROR(RIGHT(INDEX(данные,SUM(IF(IFERROR(FIND(тп&INDEX(UPPER(LEFT(коды,FIND(\" \",коды)-1)),ROW()),данные),0)>0,ROW(данные)))),LEN(INDEX(данные,SUM(IF(IFERROR(FIND(тп&INDEX(UPPER(LEFT(коды,FIND(\" \",коды)-1)),ROW()),данные),0)>0,ROW(данные)))))-FIND(\"ТЕЛЕФОН\",INDEX(данные,SUM(IF(IFERROR(FIND(тп&INDEX(UPPER(LEFT(коды,FIND(\" \",коды)-1)),ROW()),данные),0)>0,ROW(данные)))))-7),\"\")","v":""}]
["Снігурівка (Мик.) – 05162",{"$f":"IFERROR(RIGHT(INDEX(данные,SUM(IF(IFERROR(FIND(тп&INDEX(UPPER(LEFT(коды,FIND(\" \",коды)-1)),ROW()),данные),0)>0,ROW(данные)))),LEN(INDEX(данные,SUM(IF(IFERROR(FIND(тп&INDEX(UPPER(LEFT(коды,FIND(\" \",коды)-1)),ROW()),данные),0)>0,ROW(данные)))))-FIND(\"ТЕЛЕФОН\",INDEX(данные,SUM(IF(IFERROR(FIND(тп&INDEX(UPPER(LEFT(коды,FIND(\" \",коды)-1)),ROW()),данные),0)>0,ROW(данные)))))-7),\"\")","v":""}]
["Сніжне (Дон.) – 06256",{"$f":"IFERROR(RIGHT(INDEX(данные,SUM(IF(IFERROR(FIND(тп&INDEX(UPPER(LEFT(коды,FIND(\" \",коды)-1)),ROW()),данные),0)>0,ROW(данные)))),LEN(INDEX(данные,SUM(IF(IFERROR(FIND(тп&INDEX(UPPER(LEFT(коды,FIND(\" \",коды)-1)),ROW()),данные),0)>0,ROW(данные)))))-FIND(\"ТЕЛЕФОН\",INDEX(данные,SUM(IF(IFERROR(FIND(тп&INDEX(UPPER(LEFT(коды,FIND(\" \",коды)-1)),ROW()),данные),0)>0,ROW(данные)))))-7),\"\")","v":""}]
["Снятин (Ів.-Фр.) – 03476",{"$f":"IFERROR(RIGHT(INDEX(данные,SUM(IF(IFERROR(FIND(тп&INDEX(UPPER(LEFT(коды,FIND(\" \",коды)-1)),ROW()),данные),0)>0,ROW(данные)))),LEN(INDEX(данные,SUM(IF(IFERROR(FIND(тп&INDEX(UPPER(LEFT(коды,FIND(\" \",коды)-1)),ROW()),данные),0)>0,ROW(данные)))))-FIND(\"ТЕЛЕФОН\",INDEX(данные,SUM(IF(IFERROR(FIND(тп&INDEX(UPPER(LEFT(коды,FIND(\" \",коды)-1)),ROW()),данные),0)>0,ROW(данные)))))-7),\"\")","v":""}]
["Совєтський (АРК) – 06551",{"$f":"IFERROR(RIGHT(INDEX(данные,SUM(IF(IFERROR(FIND(тп&INDEX(UPPER(LEFT(коды,FIND(\" \",коды)-1)),ROW()),данные),0)>0,ROW(данные)))),LEN(INDEX(данные,SUM(IF(IFERROR(FIND(тп&INDEX(UPPER(LEFT(коды,FIND(\" \",коды)-1)),ROW()),данные),0)>0,ROW(данные)))))-FIND(\"ТЕЛЕФОН\",INDEX(данные,SUM(IF(IFERROR(FIND(тп&INDEX(UPPER(LEFT(коды,FIND(\" \",коды)-1)),ROW()),данные),0)>0,ROW(данные)))))-7),\"\")","v":""}]
["Совєтське (АРК) – 0654",{"$f":"IFERROR(RIGHT(INDEX(данные,SUM(IF(IFERROR(FIND(тп&INDEX(UPPER(LEFT(коды,FIND(\" \",коды)-1)),ROW()),данные),0)>0,ROW(данные)))),LEN(INDEX(данные,SUM(IF(IFERROR(FIND(тп&INDEX(UPPER(LEFT(коды,FIND(\" \",коды)-1)),ROW()),данные),0)>0,ROW(данные)))))-FIND(\"ТЕЛЕФОН\",INDEX(данные,SUM(IF(IFERROR(FIND(тп&INDEX(UPPER(LEFT(коды,FIND(\" \",коды)-1)),ROW()),данные),0)>0,ROW(данные)))))-7),\"\")","v":""}]
["Сокаль (Льв.) – 03257",{"$f":"IFERROR(RIGHT(INDEX(данные,SUM(IF(IFERROR(FIND(тп&INDEX(UPPER(LEFT(коды,FIND(\" \",коды)-1)),ROW()),данные),0)>0,ROW(данные)))),LEN(INDEX(данные,SUM(IF(IFERROR(FIND(тп&INDEX(UPPER(LEFT(коды,FIND(\" \",коды)-1)),ROW()),данные),0)>0,ROW(данные)))))-FIND(\"ТЕЛЕФОН\",INDEX(данные,SUM(IF(IFERROR(FIND(тп&INDEX(UPPER(LEFT(коды,FIND(\" \",коды)-1)),ROW()),данные),0)>0,ROW(данные)))))-7),\"\")","v":""}]
["Сокиряни (Чернів.) – 03739",{"$f":"IFERROR(RIGHT(INDEX(данные,SUM(IF(IFERROR(FIND(тп&INDEX(UPPER(LEFT(коды,FIND(\" \",коды)-1)),ROW()),данные),0)>0,ROW(данные)))),LEN(INDEX(данные,SUM(IF(IFERROR(FIND(тп&INDEX(UPPER(LEFT(коды,FIND(\" \",коды)-1)),ROW()),данные),0)>0,ROW(данные)))))-FIND(\"ТЕЛЕФОН\",INDEX(данные,SUM(IF(IFERROR(FIND(тп&INDEX(UPPER(LEFT(коды,FIND(\" \",коды)-1)),ROW()),данные),0)>0,ROW(данные)))))-7),\"\")","v":""}]
["Солоне (Дн.) – 05616",{"$f":"IFERROR(RIGHT(INDEX(данные,SUM(IF(IFERROR(FIND(тп&INDEX(UPPER(LEFT(коды,FIND(\" \",коды)-1)),ROW()),данные),0)>0,ROW(данные)))),LEN(INDEX(данные,SUM(IF(IFERROR(FIND(тп&INDEX(UPPER(LEFT(коды,FIND(\" \",коды)-1)),ROW()),данные),0)>0,ROW(данные)))))-FIND(\"ТЕЛЕФОН\",INDEX(данные,SUM(IF(IFERROR(FIND(тп&INDEX(UPPER(LEFT(коды,FIND(\" \",коды)-1)),ROW()),данные),0)>0,ROW(данные)))))-7),\"\")","v":""}]
["Солоницівка (Харк.) – 05763",{"$f":"IFERROR(RIGHT(INDEX(данные,SUM(IF(IFERROR(FIND(тп&INDEX(UPPER(LEFT(коды,FIND(\" \",коды)-1)),ROW()),данные),0)>0,ROW(данные)))),LEN(INDEX(данные,SUM(IF(IFERROR(FIND(тп&INDEX(UPPER(LEFT(коды,FIND(\" \",коды)-1)),ROW()),данные),0)>0,ROW(данные)))))-FIND(\"ТЕЛЕФОН\",INDEX(данные,SUM(IF(IFERROR(FIND(тп&INDEX(UPPER(LEFT(коды,FIND(\" \",коды)-1)),ROW()),данные),0)>0,ROW(данные)))))-7),\"\")","v":""}]
["Сосниця (Черніг.) – 04655",{"$f":"IFERROR(RIGHT(INDEX(данные,SUM(IF(IFERROR(FIND(тп&INDEX(UPPER(LEFT(коды,FIND(\" \",коды)-1)),ROW()),данные),0)>0,ROW(данные)))),LEN(INDEX(данные,SUM(IF(IFERROR(FIND(тп&INDEX(UPPER(LEFT(коды,FIND(\" \",коды)-1)),ROW()),данные),0)>0,ROW(данные)))))-FIND(\"ТЕЛЕФОН\",INDEX(данные,SUM(IF(IFERROR(FIND(тп&INDEX(UPPER(LEFT(коды,FIND(\" \",коды)-1)),ROW()),данные),0)>0,ROW(данные)))))-7),\"\")","v":""}]
["Софіївка (Дн.) – 05650",{"$f":"IFERROR(RIGHT(INDEX(данные,SUM(IF(IFERROR(FIND(тп&INDEX(UPPER(LEFT(коды,FIND(\" \",коды)-1)),ROW()),данные),0)>0,ROW(данные)))),LEN(INDEX(данные,SUM(IF(IFERROR(FIND(тп&INDEX(UPPER(LEFT(коды,FIND(\" \",коды)-1)),ROW()),данные),0)>0,ROW(данные)))))-FIND(\"ТЕЛЕФОН\",INDEX(данные,SUM(IF(IFERROR(FIND(тп&INDEX(UPPER(LEFT(коды,FIND(\" \",коды)-1)),ROW()),данные),0)>0,ROW(данные)))))-7),\"\")","v":""}]
["Срібне (Черніг.) – 04639",{"$f":"IFERROR(RIGHT(INDEX(данные,SUM(IF(IFERROR(FIND(тп&INDEX(UPPER(LEFT(коды,FIND(\" \",коды)-1)),ROW()),данные),0)>0,ROW(данные)))),LEN(INDEX(данные,SUM(IF(IFERROR(FIND(тп&INDEX(UPPER(LEFT(коды,FIND(\" \",коды)-1)),ROW()),данные),0)>0,ROW(данные)))))-FIND(\"ТЕЛЕФОН\",INDEX(данные,SUM(IF(IFERROR(FIND(тп&INDEX(UPPER(LEFT(коды,FIND(\" \",коды)-1)),ROW()),данные),0)>0,ROW(данные)))))-7),\"\")","v":""}]
["Ставище (Київ.) – 04464",{"$f":"IFERROR(RIGHT(INDEX(данные,SUM(IF(IFERROR(FIND(тп&INDEX(UPPER(LEFT(коды,FIND(\" \",коды)-1)),ROW()),данные),0)>0,ROW(данные)))),LEN(INDEX(данные,SUM(IF(IFERROR(FIND(тп&INDEX(UPPER(LEFT(коды,FIND(\" \",коды)-1)),ROW()),данные),0)>0,ROW(данные)))))-FIND(\"ТЕЛЕФОН\",INDEX(данные,SUM(IF(IFERROR(FIND(тп&INDEX(UPPER(LEFT(коды,FIND(\" \",коды)-1)),ROW()),данные),0)>0,ROW(данные)))))-7),\"\")","v":""}]
["Станичне-Луганське (Луг.) – 06472",{"$f":"IFERROR(RIGHT(INDEX(данные,SUM(IF(IFERROR(FIND(тп&INDEX(UPPER(LEFT(коды,FIND(\" \",коды)-1)),ROW()),данные),0)>0,ROW(данные)))),LEN(INDEX(данные,SUM(IF(IFERROR(FIND(тп&INDEX(UPPER(LEFT(коды,FIND(\" \",коды)-1)),ROW()),данные),0)>0,ROW(данные)))))-FIND(\"ТЕЛЕФОН\",INDEX(данные,SUM(IF(IFERROR(FIND(тп&INDEX(UPPER(LEFT(коды,FIND(\" \",коды)-1)),ROW()),данные),0)>0,ROW(данные)))))-7),\"\")","v":""}]
["Стара Вижівка (Вол.) – 03346",{"$f":"IFERROR(RIGHT(INDEX(данные,SUM(IF(IFERROR(FIND(тп&INDEX(UPPER(LEFT(коды,FIND(\" \",коды)-1)),ROW()),данные),0)>0,ROW(данные)))),LEN(INDEX(данные,SUM(IF(IFERROR(FIND(тп&INDEX(UPPER(LEFT(коды,FIND(\" \",коды)-1)),ROW()),данные),0)>0,ROW(данные)))))-FIND(\"ТЕЛЕФОН\",INDEX(данные,SUM(IF(IFERROR(FIND(тп&INDEX(UPPER(LEFT(коды,FIND(\" \",коды)-1)),ROW()),данные),0)>0,ROW(данные)))))-7),\"\")","v":""}]
["Стара Синява (Хм.) – 03850",{"$f":"IFERROR(RIGHT(INDEX(данные,SUM(IF(IFERROR(FIND(тп&INDEX(UPPER(LEFT(коды,FIND(\" \",коды)-1)),ROW()),данные),0)>0,ROW(данные)))),LEN(INDEX(данные,SUM(IF(IFERROR(FIND(тп&INDEX(UPPER(LEFT(коды,FIND(\" \",коды)-1)),ROW()),данные),0)>0,ROW(данные)))))-FIND(\"ТЕЛЕФОН\",INDEX(данные,SUM(IF(IFERROR(FIND(тп&INDEX(UPPER(LEFT(коды,FIND(\" \",коды)-1)),ROW()),данные),0)>0,ROW(данные)))))-7),\"\")","v":""}]
["Старий Крим (АРК) – 06555",{"$f":"IFERROR(RIGHT(INDEX(данные,SUM(IF(IFERROR(FIND(тп&INDEX(UPPER(LEFT(коды,FIND(\" \",коды)-1)),ROW()),данные),0)>0,ROW(данные)))),LEN(INDEX(данные,SUM(IF(IFERROR(FIND(тп&INDEX(UPPER(LEFT(коды,FIND(\" \",коды)-1)),ROW()),данные),0)>0,ROW(данные)))))-FIND(\"ТЕЛЕФОН\",INDEX(данные,SUM(IF(IFERROR(FIND(тп&INDEX(UPPER(LEFT(коды,FIND(\" \",коды)-1)),ROW()),данные),0)>0,ROW(данные)))))-7),\"\")","v":""}]
["Старий Мерчик (Харк.) – 05753",{"$f":"IFERROR(RIGHT(INDEX(данные,SUM(IF(IFERROR(FIND(тп&INDEX(UPPER(LEFT(коды,FIND(\" \",коды)-1)),ROW()),данные),0)>0,ROW(данные)))),LEN(INDEX(данные,SUM(IF(IFERROR(FIND(тп&INDEX(UPPER(LEFT(коды,FIND(\" \",коды)-1)),ROW()),данные),0)>0,ROW(данные)))))-FIND(\"ТЕЛЕФОН\",INDEX(данные,SUM(IF(IFERROR(FIND(тп&INDEX(UPPER(LEFT(коды,FIND(\" \",коды)-1)),ROW()),данные),0)>0,ROW(данные)))))-7),\"\")","v":""}]
["Старий Салтів (Харк.) – 05741",{"$f":"IFERROR(RIGHT(INDEX(данные,SUM(IF(IFERROR(FIND(тп&INDEX(UPPER(LEFT(коды,FIND(\" \",коды)-1)),ROW()),данные),0)>0,ROW(данные)))),LEN(INDEX(данные,SUM(IF(IFERROR(FIND(тп&INDEX(UPPER(LEFT(коды,FIND(\" \",коды)-1)),ROW()),данные),0)>0,ROW(данные)))))-FIND(\"ТЕЛЕФОН\",INDEX(данные,SUM(IF(IFERROR(FIND(тп&INDEX(UPPER(LEFT(коды,FIND(\" \",коды)-1)),ROW()),данные),0)>0,ROW(данные)))))-7),\"\")","v":""}]
["Старий Самбір (Льв.) – 03238",{"$f":"IFERROR(RIGHT(INDEX(данные,SUM(IF(IFERROR(FIND(тп&INDEX(UPPER(LEFT(коды,FIND(\" \",коды)-1)),ROW()),данные),0)>0,ROW(данные)))),LEN(INDEX(данные,SUM(IF(IFERROR(FIND(тп&INDEX(UPPER(LEFT(коды,FIND(\" \",коды)-1)),ROW()),данные),0)>0,ROW(данные)))))-FIND(\"ТЕЛЕФОН\",INDEX(данные,SUM(IF(IFERROR(FIND(тп&INDEX(UPPER(LEFT(коды,FIND(\" \",коды)-1)),ROW()),данные),0)>0,ROW(данные)))))-7),\"\")","v":""}]
["Старобешеве (Дон.) – 06253",{"$f":"IFERROR(RIGHT(INDEX(данные,SUM(IF(IFERROR(FIND(тп&INDEX(UPPER(LEFT(коды,FIND(\" \",коды)-1)),ROW()),данные),0)>0,ROW(данные)))),LEN(INDEX(данные,SUM(IF(IFERROR(FIND(тп&INDEX(UPPER(LEFT(коды,FIND(\" \",коды)-1)),ROW()),данные),0)>0,ROW(данные)))))-FIND(\"ТЕЛЕФОН\",INDEX(данные,SUM(IF(IFERROR(FIND(тп&INDEX(UPPER(LEFT(коды,FIND(\" \",коды)-1)),ROW()),данные),0)>0,ROW(данные)))))-7),\"\")","v":""}]
["Старобільськ (Луг.) – 06461",{"$f":"IFERROR(RIGHT(INDEX(данные,SUM(IF(IFERROR(FIND(тп&INDEX(UPPER(LEFT(коды,FIND(\" \",коды)-1)),ROW()),данные),0)>0,ROW(данные)))),LEN(INDEX(данные,SUM(IF(IFERROR(FIND(тп&INDEX(UPPER(LEFT(коды,FIND(\" \",коды)-1)),ROW()),данные),0)>0,ROW(данные)))))-FIND(\"ТЕЛЕФОН\",INDEX(данные,SUM(IF(IFERROR(FIND(тп&INDEX(UPPER(LEFT(коды,FIND(\" \",коды)-1)),ROW()),данные),0)>0,ROW(данные)))))-7),\"\")","v":""}]
["Старокостянтинів (Хм.) – 03854",{"$f":"IFERROR(RIGHT(INDEX(данные,SUM(IF(IFERROR(FIND(тп&INDEX(UPPER(LEFT(коды,FIND(\" \",коды)-1)),ROW()),данные),0)>0,ROW(данные)))),LEN(INDEX(данные,SUM(IF(IFERROR(FIND(тп&INDEX(UPPER(LEFT(коды,FIND(\" \",коды)-1)),ROW()),данные),0)>0,ROW(данные)))))-FIND(\"ТЕЛЕФОН\",INDEX(данные,SUM(IF(IFERROR(FIND(тп&INDEX(UPPER(LEFT(коды,FIND(\" \",коды)-1)),ROW()),данные),0)>0,ROW(данные)))))-7),\"\")","v":""}]
["Стаханов (Луг.) – 06444",{"$f":"IFERROR(RIGHT(INDEX(данные,SUM(IF(IFERROR(FIND(тп&INDEX(UPPER(LEFT(коды,FIND(\" \",коды)-1)),ROW()),данные),0)>0,ROW(данные)))),LEN(INDEX(данные,SUM(IF(IFERROR(FIND(тп&INDEX(UPPER(LEFT(коды,FIND(\" \",коды)-1)),ROW()),данные),0)>0,ROW(данные)))))-FIND(\"ТЕЛЕФОН\",INDEX(данные,SUM(IF(IFERROR(FIND(тп&INDEX(UPPER(LEFT(коды,FIND(\" \",коды)-1)),ROW()),данные),0)>0,ROW(данные)))))-7),\"\")","v":""}]
["Сторожинець (Чернів.) – 03735",{"$f":"IFERROR(RIGHT(INDEX(данные,SUM(IF(IFERROR(FIND(тп&INDEX(UPPER(LEFT(коды,FIND(\" \",коды)-1)),ROW()),данные),0)>0,ROW(данные)))),LEN(INDEX(данные,SUM(IF(IFERROR(FIND(тп&INDEX(UPPER(LEFT(коды,FIND(\" \",коды)-1)),ROW()),данные),0)>0,ROW(данные)))))-FIND(\"ТЕЛЕФОН\",INDEX(данные,SUM(IF(IFERROR(FIND(тп&INDEX(UPPER(LEFT(коды,FIND(\" \",коды)-1)),ROW()),данные),0)>0,ROW(данные)))))-7),\"\")","v":""}]
["Стрижавка (Він.) – 0432",{"$f":"IFERROR(RIGHT(INDEX(данные,SUM(IF(IFERROR(FIND(тп&INDEX(UPPER(LEFT(коды,FIND(\" \",коды)-1)),ROW()),данные),0)>0,ROW(данные)))),LEN(INDEX(данные,SUM(IF(IFERROR(FIND(тп&INDEX(UPPER(LEFT(коды,FIND(\" \",коды)-1)),ROW()),данные),0)>0,ROW(данные)))))-FIND(\"ТЕЛЕФОН\",INDEX(данные,SUM(IF(IFERROR(FIND(тп&INDEX(UPPER(LEFT(коды,FIND(\" \",коды)-1)),ROW()),данные),0)>0,ROW(данные)))))-7),\"\")","v":""}]
["Стрий (Льв.) – 03245",{"$f":"IFERROR(RIGHT(INDEX(данные,SUM(IF(IFERROR(FIND(тп&INDEX(UPPER(LEFT(коды,FIND(\" \",коды)-1)),ROW()),данные),0)>0,ROW(данные)))),LEN(INDEX(данные,SUM(IF(IFERROR(FIND(тп&INDEX(UPPER(LEFT(коды,FIND(\" \",коды)-1)),ROW()),данные),0)>0,ROW(данные)))))-FIND(\"ТЕЛЕФОН\",INDEX(данные,SUM(IF(IFERROR(FIND(тп&INDEX(UPPER(LEFT(коды,FIND(\" \",коды)-1)),ROW()),данные),0)>0,ROW(данные)))))-7),\"\")","v":""}]
["Судак (АРК) – 06566",{"$f":"IFERROR(RIGHT(INDEX(данные,SUM(IF(IFERROR(FIND(тп&INDEX(UPPER(LEFT(коды,FIND(\" \",коды)-1)),ROW()),данные),0)>0,ROW(данные)))),LEN(INDEX(данные,SUM(IF(IFERROR(FIND(тп&INDEX(UPPER(LEFT(коды,FIND(\" \",коды)-1)),ROW()),данные),0)>0,ROW(данные)))))-FIND(\"ТЕЛЕФОН\",INDEX(данные,SUM(IF(IFERROR(FIND(тп&INDEX(UPPER(LEFT(коды,FIND(\" \",коды)-1)),ROW()),данные),0)>0,ROW(данные)))))-7),\"\")","v":""}]
["СУМИ – 0542",{"$f":"IFERROR(RIGHT(INDEX(данные,SUM(IF(IFERROR(FIND(тп&INDEX(UPPER(LEFT(коды,FIND(\" \",коды)-1)),ROW()),данные),0)>0,ROW(данные)))),LEN(INDEX(данные,SUM(IF(IFERROR(FIND(тп&INDEX(UPPER(LEFT(коды,FIND(\" \",коды)-1)),ROW()),данные),0)>0,ROW(данные)))))-FIND(\"ТЕЛЕФОН\",INDEX(данные,SUM(IF(IFERROR(FIND(тп&INDEX(UPPER(LEFT(коды,FIND(\" \",коды)-1)),ROW()),данные),0)>0,ROW(данные)))))-7),\"\")","v":""}]
["Сутиски (Він.) – 04355",{"$f":"IFERROR(RIGHT(INDEX(данные,SUM(IF(IFERROR(FIND(тп&INDEX(UPPER(LEFT(коды,FIND(\" \",коды)-1)),ROW()),данные),0)>0,ROW(данные)))),LEN(INDEX(данные,SUM(IF(IFERROR(FIND(тп&INDEX(UPPER(LEFT(коды,FIND(\" \",коды)-1)),ROW()),данные),0)>0,ROW(данные)))))-FIND(\"ТЕЛЕФОН\",INDEX(данные,SUM(IF(IFERROR(FIND(тп&INDEX(UPPER(LEFT(коды,FIND(\" \",коды)-1)),ROW()),данные),0)>0,ROW(данные)))))-7),\"\")","v":""}]
[null,{"$f":"IFERROR(RIGHT(INDEX(данные,SUM(IF(IFERROR(FIND(тп&INDEX(UPPER(LEFT(коды,FIND(\" \",коды)-1)),ROW()),данные),0)>0,ROW(данные)))),LEN(INDEX(данные,SUM(IF(IFERROR(FIND(тп&INDEX(UPPER(LEFT(коды,FIND(\" \",коды)-1)),ROW()),данные),0)>0,ROW(данные)))))-FIND(\"ТЕЛЕФОН\",INDEX(данные,SUM(IF(IFERROR(FIND(тп&INDEX(UPPER(LEFT(коды,FIND(\" \",коды)-1)),ROW()),данные),0)>0,ROW(данные)))))-7),\"\")","v":""}]
["Талалаївка (Черніг.) – 04634",{"$f":"IFERROR(RIGHT(INDEX(данные,SUM(IF(IFERROR(FIND(тп&INDEX(UPPER(LEFT(коды,FIND(\" \",коды)-1)),ROW()),данные),0)>0,ROW(данные)))),LEN(INDEX(данные,SUM(IF(IFERROR(FIND(тп&INDEX(UPPER(LEFT(коды,FIND(\" \",коды)-1)),ROW()),данные),0)>0,ROW(данные)))))-FIND(\"ТЕЛЕФОН\",INDEX(данные,SUM(IF(IFERROR(FIND(тп&INDEX(UPPER(LEFT(коды,FIND(\" \",коды)-1)),ROW()),данные),0)>0,ROW(данные)))))-7),\"\")","v":""}]
["Тальне (Черк.) – 04731",{"$f":"IFERROR(RIGHT(INDEX(данные,SUM(IF(IFERROR(FIND(тп&INDEX(UPPER(LEFT(коды,FIND(\" \",коды)-1)),ROW()),данные),0)>0,ROW(данные)))),LEN(INDEX(данные,SUM(IF(IFERROR(FIND(тп&INDEX(UPPER(LEFT(коды,FIND(\" \",коды)-1)),ROW()),данные),0)>0,ROW(данные)))))-FIND(\"ТЕЛЕФОН\",INDEX(данные,SUM(IF(IFERROR(FIND(тп&INDEX(UPPER(LEFT(коды,FIND(\" \",коды)-1)),ROW()),данные),0)>0,ROW(данные)))))-7),\"\")","v":""}]
["Тараща (Київ.) – 04466",{"$f":"IFERROR(RIGHT(INDEX(данные,SUM(IF(IFERROR(FIND(тп&INDEX(UPPER(LEFT(коды,FIND(\" \",коды)-1)),ROW()),данные),0)>0,ROW(данные)))),LEN(INDEX(данные,SUM(IF(IFERROR(FIND(тп&INDEX(UPPER(LEFT(коды,FIND(\" \",коды)-1)),ROW()),данные),0)>0,ROW(данные)))))-FIND(\"ТЕЛЕФОН\",INDEX(данные,SUM(IF(IFERROR(FIND(тп&INDEX(UPPER(LEFT(коды,FIND(\" \",коды)-1)),ROW()),данные),0)>0,ROW(данные)))))-7),\"\")","v":""}]
["Тарутине (Од.) – 04847",{"$f":"IFERROR(RIGHT(INDEX(данные,SUM(IF(IFERROR(FIND(тп&INDEX(UPPER(LEFT(коды,FIND(\" \",коды)-1)),ROW()),данные),0)>0,ROW(данные)))),LEN(INDEX(данные,SUM(IF(IFERROR(FIND(тп&INDEX(UPPER(LEFT(коды,FIND(\" \",коды)-1)),ROW()),данные),0)>0,ROW(данные)))))-FIND(\"ТЕЛЕФОН\",INDEX(данные,SUM(IF(IFERROR(FIND(тп&INDEX(UPPER(LEFT(коды,FIND(\" \",коды)-1)),ROW()),данные),0)>0,ROW(данные)))))-7),\"\")","v":""}]
["Татарбунари (Од.) – 04844",{"$f":"IFERROR(RIGHT(INDEX(данные,SUM(IF(IFERROR(FIND(тп&INDEX(UPPER(LEFT(коды,FIND(\" \",коды)-1)),ROW()),данные),0)>0,ROW(данные)))),LEN(INDEX(данные,SUM(IF(IFERROR(FIND(тп&INDEX(UPPER(LEFT(коды,FIND(\" \",коды)-1)),ROW()),данные),0)>0,ROW(данные)))))-FIND(\"ТЕЛЕФОН\",INDEX(данные,SUM(IF(IFERROR(FIND(тп&INDEX(UPPER(LEFT(коды,FIND(\" \",коды)-1)),ROW()),данные),0)>0,ROW(данные)))))-7),\"\")","v":""}]
["Тельманове (Дон.) – 06279",{"$f":"IFERROR(RIGHT(INDEX(данные,SUM(IF(IFERROR(FIND(тп&INDEX(UPPER(LEFT(коды,FIND(\" \",коды)-1)),ROW()),данные),0)>0,ROW(данные)))),LEN(INDEX(данные,SUM(IF(IFERROR(FIND(тп&INDEX(UPPER(LEFT(коды,FIND(\" \",коды)-1)),ROW()),данные),0)>0,ROW(данные)))))-FIND(\"ТЕЛЕФОН\",INDEX(данные,SUM(IF(IFERROR(FIND(тп&INDEX(UPPER(LEFT(коды,FIND(\" \",коды)-1)),ROW()),данные),0)>0,ROW(данные)))))-7),\"\")","v":""}]
["Теофіполь (Хм.) – 03844",{"$f":"IFERROR(RIGHT(INDEX(данные,SUM(IF(IFERROR(FIND(тп&INDEX(UPPER(LEFT(коды,FIND(\" \",коды)-1)),ROW()),данные),0)>0,ROW(данные)))),LEN(INDEX(данные,SUM(IF(IFERROR(FIND(тп&INDEX(UPPER(LEFT(коды,FIND(\" \",коды)-1)),ROW()),данные),0)>0,ROW(данные)))))-FIND(\"ТЕЛЕФОН\",INDEX(данные,SUM(IF(IFERROR(FIND(тп&INDEX(UPPER(LEFT(коды,FIND(\" \",коды)-1)),ROW()),данные),0)>0,ROW(данные)))))-7),\"\")","v":""}]
["Теплик (Він.) – 04353",{"$f":"IFERROR(RIGHT(INDEX(данные,SUM(IF(IFERROR(FIND(тп&INDEX(UPPER(LEFT(коды,FIND(\" \",коды)-1)),ROW()),данные),0)>0,ROW(данные)))),LEN(INDEX(данные,SUM(IF(IFERROR(FIND(тп&INDEX(UPPER(LEFT(коды,FIND(\" \",коды)-1)),ROW()),данные),0)>0,ROW(данные)))))-FIND(\"ТЕЛЕФОН\",INDEX(данные,SUM(IF(IFERROR(FIND(тп&INDEX(UPPER(LEFT(коды,FIND(\" \",коды)-1)),ROW()),данные),0)>0,ROW(данные)))))-7),\"\")","v":""}]
["Теребовля (Терн.) – 03551",{"$f":"IFERROR(RIGHT(INDEX(данные,SUM(IF(IFERROR(FIND(тп&INDEX(UPPER(LEFT(коды,FIND(\" \",коды)-1)),ROW()),данные),0)>0,ROW(данные)))),LEN(INDEX(данные,SUM(IF(IFERROR(FIND(тп&INDEX(UPPER(LEFT(коды,FIND(\" \",коды)-1)),ROW()),данные),0)>0,ROW(данные)))))-FIND(\"ТЕЛЕФОН\",INDEX(данные,SUM(IF(IFERROR(FIND(тп&INDEX(UPPER(LEFT(коды,FIND(\" \",коды)-1)),ROW()),данные),0)>0,ROW(данные)))))-7),\"\")","v":""}]
["ТЕРНОПІЛЬ – 0352",{"$f":"IFERROR(RIGHT(INDEX(данные,SUM(IF(IFERROR(FIND(тп&INDEX(UPPER(LEFT(коды,FIND(\" \",коды)-1)),ROW()),данные),0)>0,ROW(данные)))),LEN(INDEX(данные,SUM(IF(IFERROR(FIND(тп&INDEX(UPPER(LEFT(коды,FIND(\" \",коды)-1)),ROW()),данные),0)>0,ROW(данные)))))-FIND(\"ТЕЛЕФОН\",INDEX(данные,SUM(IF(IFERROR(FIND(тп&INDEX(UPPER(LEFT(коды,FIND(\" \",коды)-1)),ROW()),данные),0)>0,ROW(данные)))))-7),\"\")","v":""}]
["Тернувате (Зап.) – 06144",{"$f":"IFERROR(RIGHT(INDEX(данные,SUM(IF(IFERROR(FIND(тп&INDEX(UPPER(LEFT(коды,FIND(\" \",коды)-1)),ROW()),данные),0)>0,ROW(данные)))),LEN(INDEX(данные,SUM(IF(IFERROR(FIND(тп&INDEX(UPPER(LEFT(коды,FIND(\" \",коды)-1)),ROW()),данные),0)>0,ROW(данные)))))-FIND(\"ТЕЛЕФОН\",INDEX(данные,SUM(IF(IFERROR(FIND(тп&INDEX(UPPER(LEFT(коды,FIND(\" \",коды)-1)),ROW()),данные),0)>0,ROW(данные)))))-7),\"\")","v":""}]
["Тетіїв (Київ.) – 04460",{"$f":"IFERROR(RIGHT(INDEX(данные,SUM(IF(IFERROR(FIND(тп&INDEX(UPPER(LEFT(коды,FIND(\" \",коды)-1)),ROW()),данные),0)>0,ROW(данные)))),LEN(INDEX(данные,SUM(IF(IFERROR(FIND(тп&INDEX(UPPER(LEFT(коды,FIND(\" \",коды)-1)),ROW()),данные),0)>0,ROW(данные)))))-FIND(\"ТЕЛЕФОН\",INDEX(данные,SUM(IF(IFERROR(FIND(тп&INDEX(UPPER(LEFT(коды,FIND(\" \",коды)-1)),ROW()),данные),0)>0,ROW(данные)))))-7),\"\")","v":""}]
["Тиврів (Він.) – 04355",{"$f":"IFERROR(RIGHT(INDEX(данные,SUM(IF(IFERROR(FIND(тп&INDEX(UPPER(LEFT(коды,FIND(\" \",коды)-1)),ROW()),данные),0)>0,ROW(данные)))),LEN(INDEX(данные,SUM(IF(IFERROR(FIND(тп&INDEX(UPPER(LEFT(коды,FIND(\" \",коды)-1)),ROW()),данные),0)>0,ROW(данные)))))-FIND(\"ТЕЛЕФОН\",INDEX(данные,SUM(IF(IFERROR(FIND(тп&INDEX(UPPER(LEFT(коды,FIND(\" \",коды)-1)),ROW()),данные),0)>0,ROW(данные)))))-7),\"\")","v":""}]
["Тисмениця (Ів.-Фр.) – 03436",{"$f":"IFERROR(RIGHT(INDEX(данные,SUM(IF(IFERROR(FIND(тп&INDEX(UPPER(LEFT(коды,FIND(\" \",коды)-1)),ROW()),данные),0)>0,ROW(данные)))),LEN(INDEX(данные,SUM(IF(IFERROR(FIND(тп&INDEX(UPPER(LEFT(коды,FIND(\" \",коды)-1)),ROW()),данные),0)>0,ROW(данные)))))-FIND(\"ТЕЛЕФОН\",INDEX(данные,SUM(IF(IFERROR(FIND(тп&INDEX(UPPER(LEFT(коды,FIND(\" \",коды)-1)),ROW()),данные),0)>0,ROW(данные)))))-7),\"\")","v":""}]
["Тлумач (Ів.-Фр.) – 03479",{"$f":"IFERROR(RIGHT(INDEX(данные,SUM(IF(IFERROR(FIND(тп&INDEX(UPPER(LEFT(коды,FIND(\" \",коды)-1)),ROW()),данные),0)>0,ROW(данные)))),LEN(INDEX(данные,SUM(IF(IFERROR(FIND(тп&INDEX(UPPER(LEFT(коды,FIND(\" \",коды)-1)),ROW()),данные),0)>0,ROW(данные)))))-FIND(\"ТЕЛЕФОН\",INDEX(данные,SUM(IF(IFERROR(FIND(тп&INDEX(UPPER(LEFT(коды,FIND(\" \",коды)-1)),ROW()),данные),0)>0,ROW(данные)))))-7),\"\")","v":""}]
["Токмак (Зап.) – 06178",{"$f":"IFERROR(RIGHT(INDEX(данные,SUM(IF(IFERROR(FIND(тп&INDEX(UPPER(LEFT(коды,FIND(\" \",коды)-1)),ROW()),данные),0)>0,ROW(данные)))),LEN(INDEX(данные,SUM(IF(IFERROR(FIND(тп&INDEX(UPPER(LEFT(коды,FIND(\" \",коды)-1)),ROW()),данные),0)>0,ROW(данные)))))-FIND(\"ТЕЛЕФОН\",INDEX(данные,SUM(IF(IFERROR(FIND(тп&INDEX(UPPER(LEFT(коды,FIND(\" \",коды)-1)),ROW()),данные),0)>0,ROW(данные)))))-7),\"\")","v":""}]
["Томаківка (Дн.) – 05668",{"$f":"IFERROR(RIGHT(INDEX(данные,SUM(IF(IFERROR(FIND(тп&INDEX(UPPER(LEFT(коды,FIND(\" \",коды)-1)),ROW()),данные),0)>0,ROW(данные)))),LEN(INDEX(данные,SUM(IF(IFERROR(FIND(тп&INDEX(UPPER(LEFT(коды,FIND(\" \",коды)-1)),ROW()),данные),0)>0,ROW(данные)))))-FIND(\"ТЕЛЕФОН\",INDEX(данные,SUM(IF(IFERROR(FIND(тп&INDEX(UPPER(LEFT(коды,FIND(\" \",коды)-1)),ROW()),данные),0)>0,ROW(данные)))))-7),\"\")","v":""}]
["Томашпіль (Він.) – 04348",{"$f":"IFERROR(RIGHT(INDEX(данные,SUM(IF(IFERROR(FIND(тп&INDEX(UPPER(LEFT(коды,FIND(\" \",коды)-1)),ROW()),данные),0)>0,ROW(данные)))),LEN(INDEX(данные,SUM(IF(IFERROR(FIND(тп&INDEX(UPPER(LEFT(коды,FIND(\" \",коды)-1)),ROW()),данные),0)>0,ROW(данные)))))-FIND(\"ТЕЛЕФОН\",INDEX(данные,SUM(IF(IFERROR(FIND(тп&INDEX(UPPER(LEFT(коды,FIND(\" \",коды)-1)),ROW()),данные),0)>0,ROW(данные)))))-7),\"\")","v":""}]
["Торез (Дон.) – 06254",{"$f":"IFERROR(RIGHT(INDEX(данные,SUM(IF(IFERROR(FIND(тп&INDEX(UPPER(LEFT(коды,FIND(\" \",коды)-1)),ROW()),данные),0)>0,ROW(данные)))),LEN(INDEX(данные,SUM(IF(IFERROR(FIND(тп&INDEX(UPPER(LEFT(коды,FIND(\" \",коды)-1)),ROW()),данные),0)>0,ROW(данные)))))-FIND(\"ТЕЛЕФОН\",INDEX(данные,SUM(IF(IFERROR(FIND(тп&INDEX(UPPER(LEFT(коды,FIND(\" \",коды)-1)),ROW()),данные),0)>0,ROW(данные)))))-7),\"\")","v":""}]
["Троїцьке (Луг.) – 06456",{"$f":"IFERROR(RIGHT(INDEX(данные,SUM(IF(IFERROR(FIND(тп&INDEX(UPPER(LEFT(коды,FIND(\" \",коды)-1)),ROW()),данные),0)>0,ROW(данные)))),LEN(INDEX(данные,SUM(IF(IFERROR(FIND(тп&INDEX(UPPER(LEFT(коды,FIND(\" \",коды)-1)),ROW()),данные),0)>0,ROW(данные)))))-FIND(\"ТЕЛЕФОН\",INDEX(данные,SUM(IF(IFERROR(FIND(тп&INDEX(UPPER(LEFT(коды,FIND(\" \",коды)-1)),ROW()),данные),0)>0,ROW(данные)))))-7),\"\")","v":""}]
["Тростянець (Він.) – 04343",{"$f":"IFERROR(RIGHT(INDEX(данные,SUM(IF(IFERROR(FIND(тп&INDEX(UPPER(LEFT(коды,FIND(\" \",коды)-1)),ROW()),данные),0)>0,ROW(данные)))),LEN(INDEX(данные,SUM(IF(IFERROR(FIND(тп&INDEX(UPPER(LEFT(коды,FIND(\" \",коды)-1)),ROW()),данные),0)>0,ROW(данные)))))-FIND(\"ТЕЛЕФОН\",INDEX(данные,SUM(IF(IFERROR(FIND(тп&INDEX(UPPER(LEFT(коды,FIND(\" \",коды)-1)),ROW()),данные),0)>0,ROW(данные)))))-7),\"\")","v":""}]
["Тростянець (Сум.) – 05458",{"$f":"IFERROR(RIGHT(INDEX(данные,SUM(IF(IFERROR(FIND(тп&INDEX(UPPER(LEFT(коды,FIND(\" \",коды)-1)),ROW()),данные),0)>0,ROW(данные)))),LEN(INDEX(данные,SUM(IF(IFERROR(FIND(тп&INDEX(UPPER(LEFT(коды,FIND(\" \",коды)-1)),ROW()),данные),0)>0,ROW(данные)))))-FIND(\"ТЕЛЕФОН\",INDEX(данные,SUM(IF(IFERROR(FIND(тп&INDEX(UPPER(LEFT(коды,FIND(\" \",коды)-1)),ROW()),данные),0)>0,ROW(данные)))))-7),\"\")","v":""}]
["Трускавець (Льв.) – 03247",{"$f":"IFERROR(RIGHT(INDEX(данные,SUM(IF(IFERROR(FIND(тп&INDEX(UPPER(LEFT(коды,FIND(\" \",коды)-1)),ROW()),данные),0)>0,ROW(данные)))),LEN(INDEX(данные,SUM(IF(IFERROR(FIND(тп&INDEX(UPPER(LEFT(коды,FIND(\" \",коды)-1)),ROW()),данные),0)>0,ROW(данные)))))-FIND(\"ТЕЛЕФОН\",INDEX(данные,SUM(IF(IFERROR(FIND(тп&INDEX(UPPER(LEFT(коды,FIND(\" \",коды)-1)),ROW()),данные),0)>0,ROW(данные)))))-7),\"\")","v":""}]
["Тульчин (Він.) – 04335",{"$f":"IFERROR(RIGHT(INDEX(данные,SUM(IF(IFERROR(FIND(тп&INDEX(UPPER(LEFT(коды,FIND(\" \",коды)-1)),ROW()),данные),0)>0,ROW(данные)))),LEN(INDEX(данные,SUM(IF(IFERROR(FIND(тп&INDEX(UPPER(LEFT(коды,FIND(\" \",коды)-1)),ROW()),данные),0)>0,ROW(данные)))))-FIND(\"ТЕЛЕФОН\",INDEX(данные,SUM(IF(IFERROR(FIND(тп&INDEX(UPPER(LEFT(коды,FIND(\" \",коды)-1)),ROW()),данные),0)>0,ROW(данные)))))-7),\"\")","v":""}]
["Турбів (Він.) – 04358",{"$f":"IFERROR(RIGHT(INDEX(данные,SUM(IF(IFERROR(FIND(тп&INDEX(UPPER(LEFT(коды,FIND(\" \",коды)-1)),ROW()),данные),0)>0,ROW(данные)))),LEN(INDEX(данные,SUM(IF(IFERROR(FIND(тп&INDEX(UPPER(LEFT(коды,FIND(\" \",коды)-1)),ROW()),данные),0)>0,ROW(данные)))))-FIND(\"ТЕЛЕФОН\",INDEX(данные,SUM(IF(IFERROR(FIND(тп&INDEX(UPPER(LEFT(коды,FIND(\" \",коды)-1)),ROW()),данные),0)>0,ROW(данные)))))-7),\"\")","v":""}]
["Турійськ (Вол.) – 03363",{"$f":"IFERROR(RIGHT(INDEX(данные,SUM(IF(IFERROR(FIND(тп&INDEX(UPPER(LEFT(коды,FIND(\" \",коды)-1)),ROW()),данные),0)>0,ROW(данные)))),LEN(INDEX(данные,SUM(IF(IFERROR(FIND(тп&INDEX(UPPER(LEFT(коды,FIND(\" \",коды)-1)),ROW()),данные),0)>0,ROW(данные)))))-FIND(\"ТЕЛЕФОН\",INDEX(данные,SUM(IF(IFERROR(FIND(тп&INDEX(UPPER(LEFT(коды,FIND(\" \",коды)-1)),ROW()),данные),0)>0,ROW(данные)))))-7),\"\")","v":""}]
["Турка (Льв.) – 03269",{"$f":"IFERROR(RIGHT(INDEX(данные,SUM(IF(IFERROR(FIND(тп&INDEX(UPPER(LEFT(коды,FIND(\" \",коды)-1)),ROW()),данные),0)>0,ROW(данные)))),LEN(INDEX(данные,SUM(IF(IFERROR(FIND(тп&INDEX(UPPER(LEFT(коды,FIND(\" \",коды)-1)),ROW()),данные),0)>0,ROW(данные)))))-FIND(\"ТЕЛЕФОН\",INDEX(данные,SUM(IF(IFERROR(FIND(тп&INDEX(UPPER(LEFT(коды,FIND(\" \",коды)-1)),ROW()),данные),0)>0,ROW(данные)))))-7),\"\")","v":""}]
["Тячів (Зак.) – 03134",{"$f":"IFERROR(RIGHT(INDEX(данные,SUM(IF(IFERROR(FIND(тп&INDEX(UPPER(LEFT(коды,FIND(\" \",коды)-1)),ROW()),данные),0)>0,ROW(данные)))),LEN(INDEX(данные,SUM(IF(IFERROR(FIND(тп&INDEX(UPPER(LEFT(коды,FIND(\" \",коды)-1)),ROW()),данные),0)>0,ROW(данные)))))-FIND(\"ТЕЛЕФОН\",INDEX(данные,SUM(IF(IFERROR(FIND(тп&INDEX(UPPER(LEFT(коды,FIND(\" \",коды)-1)),ROW()),данные),0)>0,ROW(данные)))))-7),\"\")","v":""}]
[null,{"$f":"IFERROR(RIGHT(INDEX(данные,SUM(IF(IFERROR(FIND(тп&INDEX(UPPER(LEFT(коды,FIND(\" \",коды)-1)),ROW()),данные),0)>0,ROW(данные)))),LEN(INDEX(данные,SUM(IF(IFERROR(FIND(тп&INDEX(UPPER(LEFT(коды,FIND(\" \",коды)-1)),ROW()),данные),0)>0,ROW(данные)))))-FIND(\"ТЕЛЕФОН\",INDEX(данные,SUM(IF(IFERROR(FIND(тп&INDEX(UPPER(LEFT(коды,FIND(\" \",коды)-1)),ROW()),данные),0)>0,ROW(данные)))))-7),\"\")","v":""}]
["Ужгород 11312, 03122",{"$f":"IFERROR(RIGHT(INDEX(данные,SUM(IF(IFERROR(FIND(тп&INDEX(UPPER(LEFT(коды,FIND(\" \",коды)-1)),ROW()),данные),0)>0,ROW(данные)))),LEN(INDEX(данные,SUM(IF(IFERROR(FIND(тп&INDEX(UPPER(LEFT(коды,FIND(\" \",коды)-1)),ROW()),данные),0)>0,ROW(данные)))))-FIND(\"ТЕЛЕФОН\",INDEX(данные,SUM(IF(IFERROR(FIND(тп&INDEX(UPPER(LEFT(коды,FIND(\" \",коды)-1)),ROW()),данные),0)>0,ROW(данные)))))-7),\"\")","v":"32481"}]
["Узин (Київ.) – 04463",{"$f":"IFERROR(RIGHT(INDEX(данные,SUM(IF(IFERROR(FIND(тп&INDEX(UPPER(LEFT(коды,FIND(\" \",коды)-1)),ROW()),данные),0)>0,ROW(данные)))),LEN(INDEX(данные,SUM(IF(IFERROR(FIND(тп&INDEX(UPPER(LEFT(коды,FIND(\" \",коды)-1)),ROW()),данные),0)>0,ROW(данные)))))-FIND(\"ТЕЛЕФОН\",INDEX(данные,SUM(IF(IFERROR(FIND(тп&INDEX(UPPER(LEFT(коды,FIND(\" \",коды)-1)),ROW()),данные),0)>0,ROW(данные)))))-7),\"\")","v":""}]
["Українка (Київ.) – 04472",{"$f":"IFERROR(RIGHT(INDEX(данные,SUM(IF(IFERROR(FIND(тп&INDEX(UPPER(LEFT(коды,FIND(\" \",коды)-1)),ROW()),данные),0)>0,ROW(данные)))),LEN(INDEX(данные,SUM(IF(IFERROR(FIND(тп&INDEX(UPPER(LEFT(коды,FIND(\" \",коды)-1)),ROW()),данные),0)>0,ROW(данные)))))-FIND(\"ТЕЛЕФОН\",INDEX(данные,SUM(IF(IFERROR(FIND(тп&INDEX(UPPER(LEFT(коды,FIND(\" \",коды)-1)),ROW()),данные),0)>0,ROW(данные)))))-7),\"\")","v":""}]
["Ульяновка (Кір.) – 05259",{"$f":"IFERROR(RIGHT(INDEX(данные,SUM(IF(IFERROR(FIND(тп&INDEX(UPPER(LEFT(коды,FIND(\" \",коды)-1)),ROW()),данные),0)>0,ROW(данные)))),LEN(INDEX(данные,SUM(IF(IFERROR(FIND(тп&INDEX(UPPER(LEFT(коды,FIND(\" \",коды)-1)),ROW()),данные),0)>0,ROW(данные)))))-FIND(\"ТЕЛЕФОН\",INDEX(данные,SUM(IF(IFERROR(FIND(тп&INDEX(UPPER(LEFT(коды,FIND(\" \",коды)-1)),ROW()),данные),0)>0,ROW(данные)))))-7),\"\")","v":""}]
["Умань (Черк.) – 04744",{"$f":"IFERROR(RIGHT(INDEX(данные,SUM(IF(IFERROR(FIND(тп&INDEX(UPPER(LEFT(коды,FIND(\" \",коды)-1)),ROW()),данные),0)>0,ROW(данные)))),LEN(INDEX(данные,SUM(IF(IFERROR(FIND(тп&INDEX(UPPER(LEFT(коды,FIND(\" \",коды)-1)),ROW()),данные),0)>0,ROW(данные)))))-FIND(\"ТЕЛЕФОН\",INDEX(данные,SUM(IF(IFERROR(FIND(тп&INDEX(UPPER(LEFT(коды,FIND(\" \",коды)-1)),ROW()),данные),0)>0,ROW(данные)))))-7),\"\")","v":""}]
["Устинівка (Кір.) – 05239",{"$f":"IFERROR(RIGHT(INDEX(данные,SUM(IF(IFERROR(FIND(тп&INDEX(UPPER(LEFT(коды,FIND(\" \",коды)-1)),ROW()),данные),0)>0,ROW(данные)))),LEN(INDEX(данные,SUM(IF(IFERROR(FIND(тп&INDEX(UPPER(LEFT(коды,FIND(\" \",коды)-1)),ROW()),данные),0)>0,ROW(данные)))))-FIND(\"ТЕЛЕФОН\",INDEX(данные,SUM(IF(IFERROR(FIND(тп&INDEX(UPPER(LEFT(коды,FIND(\" \",коды)-1)),ROW()),данные),0)>0,ROW(данные)))))-7),\"\")","v":""}]
["Утківка (Харк.) – 0572",{"$f":"IFERROR(RIGHT(INDEX(данные,SUM(IF(IFERROR(FIND(тп&INDEX(UPPER(LEFT(коды,FIND(\" \",коды)-1)),ROW()),данные),0)>0,ROW(данные)))),LEN(INDEX(данные,SUM(IF(IFERROR(FIND(тп&INDEX(UPPER(LEFT(коды,FIND(\" \",коды)-1)),ROW()),данные),0)>0,ROW(данные)))))-FIND(\"ТЕЛЕФОН\",INDEX(данные,SUM(IF(IFERROR(FIND(тп&INDEX(UPPER(LEFT(коды,FIND(\" \",коды)-1)),ROW()),данные),0)>0,ROW(данные)))))-7),\"\")","v":""}]
[null,{"$f":"IFERROR(RIGHT(INDEX(данные,SUM(IF(IFERROR(FIND(тп&INDEX(UPPER(LEFT(коды,FIND(\" \",коды)-1)),ROW()),данные),0)>0,ROW(данные)))),LEN(INDEX(данные,SUM(IF(IFERROR(FIND(тп&INDEX(UPPER(LEFT(коды,FIND(\" \",коды)-1)),ROW()),данные),0)>0,ROW(данные)))))-FIND(\"ТЕЛЕФОН\",INDEX(данные,SUM(IF(IFERROR(FIND(тп&INDEX(UPPER(LEFT(коды,FIND(\" \",коды)-1)),ROW()),данные),0)>0,ROW(данные)))))-7),\"\")","v":""}]
["Фастів (Київ.) – 04465",{"$f":"IFERROR(RIGHT(INDEX(данные,SUM(IF(IFERROR(FIND(тп&INDEX(UPPER(LEFT(коды,FIND(\" \",коды)-1)),ROW()),данные),0)>0,ROW(данные)))),LEN(INDEX(данные,SUM(IF(IFERROR(FIND(тп&INDEX(UPPER(LEFT(коды,FIND(\" \",коды)-1)),ROW()),данные),0)>0,ROW(данные)))))-FIND(\"ТЕЛЕФОН\",INDEX(данные,SUM(IF(IFERROR(FIND(тп&INDEX(UPPER(LEFT(коды,FIND(\" \",коды)-1)),ROW()),данные),0)>0,ROW(данные)))))-7),\"\")","v":""}]
["Феодосія (АРК) – 06562",{"$f":"IFERROR(RIGHT(INDEX(данные,SUM(IF(IFERROR(FIND(тп&INDEX(UPPER(LEFT(коды,FIND(\" \",коды)-1)),ROW()),данные),0)>0,ROW(данные)))),LEN(INDEX(данные,SUM(IF(IFERROR(FIND(тп&INDEX(UPPER(LEFT(коды,FIND(\" \",коды)-1)),ROW()),данные),0)>0,ROW(данные)))))-FIND(\"ТЕЛЕФОН\",INDEX(данные,SUM(IF(IFERROR(FIND(тп&INDEX(UPPER(LEFT(коды,FIND(\" \",коды)-1)),ROW()),данные),0)>0,ROW(данные)))))-7),\"\")","v":""}]
["Форос (АРК) – 0654",{"$f":"IFERROR(RIGHT(INDEX(данные,SUM(IF(IFERROR(FIND(тп&INDEX(UPPER(LEFT(коды,FIND(\" \",коды)-1)),ROW()),данные),0)>0,ROW(данные)))),LEN(INDEX(данные,SUM(IF(IFERROR(FIND(тп&INDEX(UPPER(LEFT(коды,FIND(\" \",коды)-1)),ROW()),данные),0)>0,ROW(данные)))))-FIND(\"ТЕЛЕФОН\",INDEX(данные,SUM(IF(IFERROR(FIND(тп&INDEX(UPPER(LEFT(коды,FIND(\" \",коды)-1)),ROW()),данные),0)>0,ROW(данные)))))-7),\"\")","v":""}]
["Фрунзенське (АРК) – 06560",{"$f":"IFERROR(RIGHT(INDEX(данные,SUM(IF(IFERROR(FIND(тп&INDEX(UPPER(LEFT(коды,FIND(\" \",коды)-1)),ROW()),данные),0)>0,ROW(данные)))),LEN(INDEX(данные,SUM(IF(IFERROR(FIND(тп&INDEX(UPPER(LEFT(коды,FIND(\" \",коды)-1)),ROW()),данные),0)>0,ROW(данные)))))-FIND(\"ТЕЛЕФОН\",INDEX(данные,SUM(IF(IFERROR(FIND(тп&INDEX(UPPER(LEFT(коды,FIND(\" \",коды)-1)),ROW()),данные),0)>0,ROW(данные)))))-7),\"\")","v":""}]
["Фрунзівка (Од.) – 04860",{"$f":"IFERROR(RIGHT(INDEX(данные,SUM(IF(IFERROR(FIND(тп&INDEX(UPPER(LEFT(коды,FIND(\" \",коды)-1)),ROW()),данные),0)>0,ROW(данные)))),LEN(INDEX(данные,SUM(IF(IFERROR(FIND(тп&INDEX(UPPER(LEFT(коды,FIND(\" \",коды)-1)),ROW()),данные),0)>0,ROW(данные)))))-FIND(\"ТЕЛЕФОН\",INDEX(данные,SUM(IF(IFERROR(FIND(тп&INDEX(UPPER(LEFT(коды,FIND(\" \",коды)-1)),ROW()),данные),0)>0,ROW(данные)))))-7),\"\")","v":""}]
[null,{"$f":"IFERROR(RIGHT(INDEX(данные,SUM(IF(IFERROR(FIND(тп&INDEX(UPPER(LEFT(коды,FIND(\" \",коды)-1)),ROW()),данные),0)>0,ROW(данные)))),LEN(INDEX(данные,SUM(IF(IFERROR(FIND(тп&INDEX(UPPER(LEFT(коды,FIND(\" \",коды)-1)),ROW()),данные),0)>0,ROW(данные)))))-FIND(\"ТЕЛЕФОН\",INDEX(данные,SUM(IF(IFERROR(FIND(тп&INDEX(UPPER(LEFT(коды,FIND(\" \",коды)-1)),ROW()),данные),0)>0,ROW(данные)))))-7),\"\")","v":""}]
["ХАРКІВ – 0572",{"$f":"IFERROR(RIGHT(INDEX(данные,SUM(IF(IFERROR(FIND(тп&INDEX(UPPER(LEFT(коды,FIND(\" \",коды)-1)),ROW()),данные),0)>0,ROW(данные)))),LEN(INDEX(данные,SUM(IF(IFERROR(FIND(тп&INDEX(UPPER(LEFT(коды,FIND(\" \",коды)-1)),ROW()),данные),0)>0,ROW(данные)))))-FIND(\"ТЕЛЕФОН\",INDEX(данные,SUM(IF(IFERROR(FIND(тп&INDEX(UPPER(LEFT(коды,FIND(\" \",коды)-1)),ROW()),данные),0)>0,ROW(данные)))))-7),\"\")","v":""}]
["Харцизьк (Дон.) – 06257",{"$f":"IFERROR(RIGHT(INDEX(данные,SUM(IF(IFERROR(FIND(тп&INDEX(UPPER(LEFT(коды,FIND(\" \",коды)-1)),ROW()),данные),0)>0,ROW(данные)))),LEN(INDEX(данные,SUM(IF(IFERROR(FIND(тп&INDEX(UPPER(LEFT(коды,FIND(\" \",коды)-1)),ROW()),данные),0)>0,ROW(данные)))))-FIND(\"ТЕЛЕФОН\",INDEX(данные,SUM(IF(IFERROR(FIND(тп&INDEX(UPPER(LEFT(коды,FIND(\" \",коды)-1)),ROW()),данные),0)>0,ROW(данные)))))-7),\"\")","v":""}]
["ХЕРСОН 0552",{"$f":"IFERROR(RIGHT(INDEX(данные,SUM(IF(IFERROR(FIND(тп&INDEX(UPPER(LEFT(коды,FIND(\" \",коды)-1)),ROW()),данные),0)>0,ROW(данные)))),LEN(INDEX(данные,SUM(IF(IFERROR(FIND(тп&INDEX(UPPER(LEFT(коды,FIND(\" \",коды)-1)),ROW()),данные),0)>0,ROW(данные)))))-FIND(\"ТЕЛЕФОН\",INDEX(данные,SUM(IF(IFERROR(FIND(тп&INDEX(UPPER(LEFT(коды,FIND(\" \",коды)-1)),ROW()),данные),0)>0,ROW(данные)))))-7),\"\")","v":""}]
["ХМЕЛЬНИЦЬКИЙ – 0382, 03822",{"$f":"IFERROR(RIGHT(INDEX(данные,SUM(IF(IFERROR(FIND(тп&INDEX(UPPER(LEFT(коды,FIND(\" \",коды)-1)),ROW()),данные),0)>0,ROW(данные)))),LEN(INDEX(данные,SUM(IF(IFERROR(FIND(тп&INDEX(UPPER(LEFT(коды,FIND(\" \",коды)-1)),ROW()),данные),0)>0,ROW(данные)))))-FIND(\"ТЕЛЕФОН\",INDEX(данные,SUM(IF(IFERROR(FIND(тп&INDEX(UPPER(LEFT(коды,FIND(\" \",коды)-1)),ROW()),данные),0)>0,ROW(данные)))))-7),\"\")","v":"727515"}]
["Хмільник (Він.) – 043388",{"$f":"IFERROR(RIGHT(INDEX(данные,SUM(IF(IFERROR(FIND(тп&INDEX(UPPER(LEFT(коды,FIND(\" \",коды)-1)),ROW()),данные),0)>0,ROW(данные)))),LEN(INDEX(данные,SUM(IF(IFERROR(FIND(тп&INDEX(UPPER(LEFT(коды,FIND(\" \",коды)-1)),ROW()),данные),0)>0,ROW(данные)))))-FIND(\"ТЕЛЕФОН\",INDEX(данные,SUM(IF(IFERROR(FIND(тп&INDEX(UPPER(LEFT(коды,FIND(\" \",коды)-1)),ROW()),данные),0)>0,ROW(данные)))))-7),\"\")","v":""}]
["Хорол (Полт.) – 05362",{"$f":"IFERROR(RIGHT(INDEX(данные,SUM(IF(IFERROR(FIND(тп&INDEX(UPPER(LEFT(коды,FIND(\" \",коды)-1)),ROW()),данные),0)>0,ROW(данные)))),LEN(INDEX(данные,SUM(IF(IFERROR(FIND(тп&INDEX(UPPER(LEFT(коды,FIND(\" \",коды)-1)),ROW()),данные),0)>0,ROW(данные)))))-FIND(\"ТЕЛЕФОН\",INDEX(данные,SUM(IF(IFERROR(FIND(тп&INDEX(UPPER(LEFT(коды,FIND(\" \",коды)-1)),ROW()),данные),0)>0,ROW(данные)))))-7),\"\")","v":""}]
["Хоростків (Терн.) – 03557",{"$f":"IFERROR(RIGHT(INDEX(данные,SUM(IF(IFERROR(FIND(тп&INDEX(UPPER(LEFT(коды,FIND(\" \",коды)-1)),ROW()),данные),0)>0,ROW(данные)))),LEN(INDEX(данные,SUM(IF(IFERROR(FIND(тп&INDEX(UPPER(LEFT(коды,FIND(\" \",коды)-1)),ROW()),данные),0)>0,ROW(данные)))))-FIND(\"ТЕЛЕФОН\",INDEX(данные,SUM(IF(IFERROR(FIND(тп&INDEX(UPPER(LEFT(коды,FIND(\" \",коды)-1)),ROW()),данные),0)>0,ROW(данные)))))-7),\"\")","v":""}]
["Хорошеве (Харк.) – 0572",{"$f":"IFERROR(RIGHT(INDEX(данные,SUM(IF(IFERROR(FIND(тп&INDEX(UPPER(LEFT(коды,FIND(\" \",коды)-1)),ROW()),данные),0)>0,ROW(данные)))),LEN(INDEX(данные,SUM(IF(IFERROR(FIND(тп&INDEX(UPPER(LEFT(коды,FIND(\" \",коды)-1)),ROW()),данные),0)>0,ROW(данные)))))-FIND(\"ТЕЛЕФОН\",INDEX(данные,SUM(IF(IFERROR(FIND(тп&INDEX(UPPER(LEFT(коды,FIND(\" \",коды)-1)),ROW()),данные),0)>0,ROW(данные)))))-7),\"\")","v":""}]
["Хотінь (Сум.) – 0542",{"$f":"IFERROR(RIGHT(INDEX(данные,SUM(IF(IFERROR(FIND(тп&INDEX(UPPER(LEFT(коды,FIND(\" \",коды)-1)),ROW()),данные),0)>0,ROW(данные)))),LEN(INDEX(данные,SUM(IF(IFERROR(FIND(тп&INDEX(UPPER(LEFT(коды,FIND(\" \",коды)-1)),ROW()),данные),0)>0,ROW(данные)))))-FIND(\"ТЕЛЕФОН\",INDEX(данные,SUM(IF(IFERROR(FIND(тп&INDEX(UPPER(LEFT(коды,FIND(\" \",коды)-1)),ROW()),данные),0)>0,ROW(данные)))))-7),\"\")","v":""}]
["Хотин (Чернів.) – 037312",{"$f":"IFERROR(RIGHT(INDEX(данные,SUM(IF(IFERROR(FIND(тп&INDEX(UPPER(LEFT(коды,FIND(\" \",коды)-1)),ROW()),данные),0)>0,ROW(данные)))),LEN(INDEX(данные,SUM(IF(IFERROR(FIND(тп&INDEX(UPPER(LEFT(коды,FIND(\" \",коды)-1)),ROW()),данные),0)>0,ROW(данные)))))-FIND(\"ТЕЛЕФОН\",INDEX(данные,SUM(IF(IFERROR(FIND(тп&INDEX(UPPER(LEFT(коды,FIND(\" \",коды)-1)),ROW()),данные),0)>0,ROW(данные)))))-7),\"\")","v":""}]
["Христинівка (Черк.) – 04745",{"$f":"IFERROR(RIGHT(INDEX(данные,SUM(IF(IFERROR(FIND(тп&INDEX(UPPER(LEFT(коды,FIND(\" \",коды)-1)),ROW()),данные),0)>0,ROW(данные)))),LEN(INDEX(данные,SUM(IF(IFERROR(FIND(тп&INDEX(UPPER(LEFT(коды,FIND(\" \",коды)-1)),ROW()),данные),0)>0,ROW(данные)))))-FIND(\"ТЕЛЕФОН\",INDEX(данные,SUM(IF(IFERROR(FIND(тп&INDEX(UPPER(LEFT(коды,FIND(\" \",коды)-1)),ROW()),данные),0)>0,ROW(данные)))))-7),\"\")","v":""}]
["Хуст (Зак.) – 03142",{"$f":"IFERROR(RIGHT(INDEX(данные,SUM(IF(IFERROR(FIND(тп&INDEX(UPPER(LEFT(коды,FIND(\" \",коды)-1)),ROW()),данные),0)>0,ROW(данные)))),LEN(INDEX(данные,SUM(IF(IFERROR(FIND(тп&INDEX(UPPER(LEFT(коды,FIND(\" \",коды)-1)),ROW()),данные),0)>0,ROW(данные)))))-FIND(\"ТЕЛЕФОН\",INDEX(данные,SUM(IF(IFERROR(FIND(тп&INDEX(UPPER(LEFT(коды,FIND(\" \",коды)-1)),ROW()),данные),0)>0,ROW(данные)))))-7),\"\")","v":""}]
[null,{"$f":"IFERROR(RIGHT(INDEX(данные,SUM(IF(IFERROR(FIND(тп&INDEX(UPPER(LEFT(коды,FIND(\" \",коды)-1)),ROW()),данные),0)>0,ROW(данные)))),LEN(INDEX(данные,SUM(IF(IFERROR(FIND(тп&INDEX(UPPER(LEFT(коды,FIND(\" \",коды)-1)),ROW()),данные),0)>0,ROW(данные)))))-FIND(\"ТЕЛЕФОН\",INDEX(данные,SUM(IF(IFERROR(FIND(тп&INDEX(UPPER(LEFT(коды,FIND(\" \",коды)-1)),ROW()),данные),0)>0,ROW(данные)))))-7),\"\")","v":""}]
["Царичанка (Дн.) – 05610",{"$f":"IFERROR(RIGHT(INDEX(данные,SUM(IF(IFERROR(FIND(тп&INDEX(UPPER(LEFT(коды,FIND(\" \",коды)-1)),ROW()),данные),0)>0,ROW(данные)))),LEN(INDEX(данные,SUM(IF(IFERROR(FIND(тп&INDEX(UPPER(LEFT(коды,FIND(\" \",коды)-1)),ROW()),данные),0)>0,ROW(данные)))))-FIND(\"ТЕЛЕФОН\",INDEX(данные,SUM(IF(IFERROR(FIND(тп&INDEX(UPPER(LEFT(коды,FIND(\" \",коды)-1)),ROW()),данные),0)>0,ROW(данные)))))-7),\"\")","v":""}]
["Цумань (Вол.) – 03348",{"$f":"IFERROR(RIGHT(INDEX(данные,SUM(IF(IFERROR(FIND(тп&INDEX(UPPER(LEFT(коды,FIND(\" \",коды)-1)),ROW()),данные),0)>0,ROW(данные)))),LEN(INDEX(данные,SUM(IF(IFERROR(FIND(тп&INDEX(UPPER(LEFT(коды,FIND(\" \",коды)-1)),ROW()),данные),0)>0,ROW(данные)))))-FIND(\"ТЕЛЕФОН\",INDEX(данные,SUM(IF(IFERROR(FIND(тп&INDEX(UPPER(LEFT(коды,FIND(\" \",коды)-1)),ROW()),данные),0)>0,ROW(данные)))))-7),\"\")","v":""}]
["Цюрупинськ (Херс.) – 05542",{"$f":"IFERROR(RIGHT(INDEX(данные,SUM(IF(IFERROR(FIND(тп&INDEX(UPPER(LEFT(коды,FIND(\" \",коды)-1)),ROW()),данные),0)>0,ROW(данные)))),LEN(INDEX(данные,SUM(IF(IFERROR(FIND(тп&INDEX(UPPER(LEFT(коды,FIND(\" \",коды)-1)),ROW()),данные),0)>0,ROW(данные)))))-FIND(\"ТЕЛЕФОН\",INDEX(данные,SUM(IF(IFERROR(FIND(тп&INDEX(UPPER(LEFT(коды,FIND(\" \",коды)-1)),ROW()),данные),0)>0,ROW(данные)))))-7),\"\")","v":""}]
[null,{"$f":"IFERROR(RIGHT(INDEX(данные,SUM(IF(IFERROR(FIND(тп&INDEX(UPPER(LEFT(коды,FIND(\" \",коды)-1)),ROW()),данные),0)>0,ROW(данные)))),LEN(INDEX(данные,SUM(IF(IFERROR(FIND(тп&INDEX(UPPER(LEFT(коды,FIND(\" \",коды)-1)),ROW()),данные),0)>0,ROW(данные)))))-FIND(\"ТЕЛЕФОН\",INDEX(данные,SUM(IF(IFERROR(FIND(тп&INDEX(UPPER(LEFT(коды,FIND(\" \",коды)-1)),ROW()),данные),0)>0,ROW(данные)))))-7),\"\")","v":""}]
["Чапаєве (Харк.) – 05755",{"$f":"IFERROR(RIGHT(INDEX(данные,SUM(IF(IFERROR(FIND(тп&INDEX(UPPER(LEFT(коды,FIND(\" \",коды)-1)),ROW()),данные),0)>0,ROW(данные)))),LEN(INDEX(данные,SUM(IF(IFERROR(FIND(тп&INDEX(UPPER(LEFT(коды,FIND(\" \",коды)-1)),ROW()),данные),0)>0,ROW(данные)))))-FIND(\"ТЕЛЕФОН\",INDEX(данные,SUM(IF(IFERROR(FIND(тп&INDEX(UPPER(LEFT(коды,FIND(\" \",коды)-1)),ROW()),данные),0)>0,ROW(данные)))))-7),\"\")","v":""}]
["Чаплинка (Херс.) – 05538",{"$f":"IFERROR(RIGHT(INDEX(данные,SUM(IF(IFERROR(FIND(тп&INDEX(UPPER(LEFT(коды,FIND(\" \",коды)-1)),ROW()),данные),0)>0,ROW(данные)))),LEN(INDEX(данные,SUM(IF(IFERROR(FIND(тп&INDEX(UPPER(LEFT(коды,FIND(\" \",коды)-1)),ROW()),данные),0)>0,ROW(данные)))))-FIND(\"ТЕЛЕФОН\",INDEX(данные,SUM(IF(IFERROR(FIND(тп&INDEX(UPPER(LEFT(коды,FIND(\" \",коды)-1)),ROW()),данные),0)>0,ROW(данные)))))-7),\"\")","v":""}]
["Чемерівці (Хм.) – 03859",{"$f":"IFERROR(RIGHT(INDEX(данные,SUM(IF(IFERROR(FIND(тп&INDEX(UPPER(LEFT(коды,FIND(\" \",коды)-1)),ROW()),данные),0)>0,ROW(данные)))),LEN(INDEX(данные,SUM(IF(IFERROR(FIND(тп&INDEX(UPPER(LEFT(коды,FIND(\" \",коды)-1)),ROW()),данные),0)>0,ROW(данные)))))-FIND(\"ТЕЛЕФОН\",INDEX(данные,SUM(IF(IFERROR(FIND(тп&INDEX(UPPER(LEFT(коды,FIND(\" \",коды)-1)),ROW()),данные),0)>0,ROW(данные)))))-7),\"\")","v":""}]
["Червоне (Жит.) – 04136",{"$f":"IFERROR(RIGHT(INDEX(данные,SUM(IF(IFERROR(FIND(тп&INDEX(UPPER(LEFT(коды,FIND(\" \",коды)-1)),ROW()),данные),0)>0,ROW(данные)))),LEN(INDEX(данные,SUM(IF(IFERROR(FIND(тп&INDEX(UPPER(LEFT(коды,FIND(\" \",коды)-1)),ROW()),данные),0)>0,ROW(данные)))))-FIND(\"ТЕЛЕФОН\",INDEX(данные,SUM(IF(IFERROR(FIND(тп&INDEX(UPPER(LEFT(коды,FIND(\" \",коды)-1)),ROW()),данные),0)>0,ROW(данные)))))-7),\"\")","v":""}]
["Червоноград (Льв.) – 03249",{"$f":"IFERROR(RIGHT(INDEX(данные,SUM(IF(IFERROR(FIND(тп&INDEX(UPPER(LEFT(коды,FIND(\" \",коды)-1)),ROW()),данные),0)>0,ROW(данные)))),LEN(INDEX(данные,SUM(IF(IFERROR(FIND(тп&INDEX(UPPER(LEFT(коды,FIND(\" \",коды)-1)),ROW()),данные),0)>0,ROW(данные)))))-FIND(\"ТЕЛЕФОН\",INDEX(данные,SUM(IF(IFERROR(FIND(тп&INDEX(UPPER(LEFT(коды,FIND(\" \",коды)-1)),ROW()),данные),0)>0,ROW(данные)))))-7),\"\")","v":""}]
["Червонозаводське (Полт.) – 05356",{"$f":"IFERROR(RIGHT(INDEX(данные,SUM(IF(IFERROR(FIND(тп&INDEX(UPPER(LEFT(коды,FIND(\" \",коды)-1)),ROW()),данные),0)>0,ROW(данные)))),LEN(INDEX(данные,SUM(IF(IFERROR(FIND(тп&INDEX(UPPER(LEFT(коды,FIND(\" \",коды)-1)),ROW()),данные),0)>0,ROW(данные)))))-FIND(\"ТЕЛЕФОН\",INDEX(данные,SUM(IF(IFERROR(FIND(тп&INDEX(UPPER(LEFT(коды,FIND(\" \",коды)-1)),ROW()),данные),0)>0,ROW(данные)))))-7),\"\")","v":""}]
["ЧЕРКАСИ – 0472",{"$f":"IFERROR(RIGHT(INDEX(данные,SUM(IF(IFERROR(FIND(тп&INDEX(UPPER(LEFT(коды,FIND(\" \",коды)-1)),ROW()),данные),0)>0,ROW(данные)))),LEN(INDEX(данные,SUM(IF(IFERROR(FIND(тп&INDEX(UPPER(LEFT(коды,FIND(\" \",коды)-1)),ROW()),данные),0)>0,ROW(данные)))))-FIND(\"ТЕЛЕФОН\",INDEX(данные,SUM(IF(IFERROR(FIND(тп&INDEX(UPPER(LEFT(коды,FIND(\" \",коды)-1)),ROW()),данные),0)>0,ROW(данные)))))-7),\"\")","v":""}]
["Черкаська Лозова (Харк.) – 05763",{"$f":"IFERROR(RIGHT(INDEX(данные,SUM(IF(IFERROR(FIND(тп&INDEX(UPPER(LEFT(коды,FIND(\" \",коды)-1)),ROW()),данные),0)>0,ROW(данные)))),LEN(INDEX(данные,SUM(IF(IFERROR(FIND(тп&INDEX(UPPER(LEFT(коды,FIND(\" \",коды)-1)),ROW()),данные),0)>0,ROW(данные)))))-FIND(\"ТЕЛЕФОН\",INDEX(данные,SUM(IF(IFERROR(FIND(тп&INDEX(UPPER(LEFT(коды,FIND(\" \",коды)-1)),ROW()),данные),0)>0,ROW(данные)))))-7),\"\")","v":""}]
["ЧЕРНІВЦІ – 0372, 03722",{"$f":"IFERROR(RIGHT(INDEX(данные,SUM(IF(IFERROR(FIND(тп&INDEX(UPPER(LEFT(коды,FIND(\" \",коды)-1)),ROW()),данные),0)>0,ROW(данные)))),LEN(INDEX(данные,SUM(IF(IFERROR(FIND(тп&INDEX(UPPER(LEFT(коды,FIND(\" \",коды)-1)),ROW()),данные),0)>0,ROW(данные)))))-FIND(\"ТЕЛЕФОН\",INDEX(данные,SUM(IF(IFERROR(FIND(тп&INDEX(UPPER(LEFT(коды,FIND(\" \",коды)-1)),ROW()),данные),0)>0,ROW(данные)))))-7),\"\")","v":""}]
["Чернівці Вінниця 04357",{"$f":"IFERROR(RIGHT(INDEX(данные,SUM(IF(IFERROR(FIND(тп&INDEX(UPPER(LEFT(коды,FIND(\" \",коды)-1)),ROW()),данные),0)>0,ROW(данные)))),LEN(INDEX(данные,SUM(IF(IFERROR(FIND(тп&INDEX(UPPER(LEFT(коды,FIND(\" \",коды)-1)),ROW()),данные),0)>0,ROW(данные)))))-FIND(\"ТЕЛЕФОН\",INDEX(данные,SUM(IF(IFERROR(FIND(тп&INDEX(UPPER(LEFT(коды,FIND(\" \",коды)-1)),ROW()),данные),0)>0,ROW(данные)))))-7),\"\")","v":""}]
["ЧЕРНІГІВ – 0462, 04622",{"$f":"IFERROR(RIGHT(INDEX(данные,SUM(IF(IFERROR(FIND(тп&INDEX(UPPER(LEFT(коды,FIND(\" \",коды)-1)),ROW()),данные),0)>0,ROW(данные)))),LEN(INDEX(данные,SUM(IF(IFERROR(FIND(тп&INDEX(UPPER(LEFT(коды,FIND(\" \",коды)-1)),ROW()),данные),0)>0,ROW(данные)))))-FIND(\"ТЕЛЕФОН\",INDEX(данные,SUM(IF(IFERROR(FIND(тп&INDEX(UPPER(LEFT(коды,FIND(\" \",коды)-1)),ROW()),данные),0)>0,ROW(данные)))))-7),\"\")","v":""}]
["Чернігівка (Зап.) – 06140",{"$f":"IFERROR(RIGHT(INDEX(данные,SUM(IF(IFERROR(FIND(тп&INDEX(UPPER(LEFT(коды,FIND(\" \",коды)-1)),ROW()),данные),0)>0,ROW(данные)))),LEN(INDEX(данные,SUM(IF(IFERROR(FIND(тп&INDEX(UPPER(LEFT(коды,FIND(\" \",коды)-1)),ROW()),данные),0)>0,ROW(данные)))))-FIND(\"ТЕЛЕФОН\",INDEX(данные,SUM(IF(IFERROR(FIND(тп&INDEX(UPPER(LEFT(коды,FIND(\" \",коды)-1)),ROW()),данные),0)>0,ROW(данные)))))-7),\"\")","v":""}]
["Черняхів (Жит.) – 04134",{"$f":"IFERROR(RIGHT(INDEX(данные,SUM(IF(IFERROR(FIND(тп&INDEX(UPPER(LEFT(коды,FIND(\" \",коды)-1)),ROW()),данные),0)>0,ROW(данные)))),LEN(INDEX(данные,SUM(IF(IFERROR(FIND(тп&INDEX(UPPER(LEFT(коды,FIND(\" \",коды)-1)),ROW()),данные),0)>0,ROW(данные)))))-FIND(\"ТЕЛЕФОН\",INDEX(данные,SUM(IF(IFERROR(FIND(тп&INDEX(UPPER(LEFT(коды,FIND(\" \",коды)-1)),ROW()),данные),0)>0,ROW(данные)))))-7),\"\")","v":""}]
["Чечельник (Він.) – 04351",{"$f":"IFERROR(RIGHT(INDEX(данные,SUM(IF(IFERROR(FIND(тп&INDEX(UPPER(LEFT(коды,FIND(\" \",коды)-1)),ROW()),данные),0)>0,ROW(данные)))),LEN(INDEX(данные,SUM(IF(IFERROR(FIND(тп&INDEX(UPPER(LEFT(коды,FIND(\" \",коды)-1)),ROW()),данные),0)>0,ROW(данные)))))-FIND(\"ТЕЛЕФОН\",INDEX(данные,SUM(IF(IFERROR(FIND(тп&INDEX(UPPER(LEFT(коды,FIND(\" \",коды)-1)),ROW()),данные),0)>0,ROW(данные)))))-7),\"\")","v":""}]
["Чигирин (Черк.) – 04730",{"$f":"IFERROR(RIGHT(INDEX(данные,SUM(IF(IFERROR(FIND(тп&INDEX(UPPER(LEFT(коды,FIND(\" \",коды)-1)),ROW()),данные),0)>0,ROW(данные)))),LEN(INDEX(данные,SUM(IF(IFERROR(FIND(тп&INDEX(UPPER(LEFT(коды,FIND(\" \",коды)-1)),ROW()),данные),0)>0,ROW(данные)))))-FIND(\"ТЕЛЕФОН\",INDEX(данные,SUM(IF(IFERROR(FIND(тп&INDEX(UPPER(LEFT(коды,FIND(\" \",коды)-1)),ROW()),данные),0)>0,ROW(данные)))))-7),\"\")","v":""}]
["Чкаловське (Харк.) – 05746",{"$f":"IFERROR(RIGHT(INDEX(данные,SUM(IF(IFERROR(FIND(тп&INDEX(UPPER(LEFT(коды,FIND(\" \",коды)-1)),ROW()),данные),0)>0,ROW(данные)))),LEN(INDEX(данные,SUM(IF(IFERROR(FIND(тп&INDEX(UPPER(LEFT(коды,FIND(\" \",коды)-1)),ROW()),данные),0)>0,ROW(данные)))))-FIND(\"ТЕЛЕФОН\",INDEX(данные,SUM(IF(IFERROR(FIND(тп&INDEX(UPPER(LEFT(коды,FIND(\" \",коды)-1)),ROW()),данные),0)>0,ROW(данные)))))-7),\"\")","v":""}]
["Чоп (Зак.) – 03137",{"$f":"IFERROR(RIGHT(INDEX(данные,SUM(IF(IFERROR(FIND(тп&INDEX(UPPER(LEFT(коды,FIND(\" \",коды)-1)),ROW()),данные),0)>0,ROW(данные)))),LEN(INDEX(данные,SUM(IF(IFERROR(FIND(тп&INDEX(UPPER(LEFT(коды,FIND(\" \",коды)-1)),ROW()),данные),0)>0,ROW(данные)))))-FIND(\"ТЕЛЕФОН\",INDEX(данные,SUM(IF(IFERROR(FIND(тп&INDEX(UPPER(LEFT(коды,FIND(\" \",коды)-1)),ROW()),данные),0)>0,ROW(данные)))))-7),\"\")","v":""}]
["Чоповичі (Жит.) – 04133",{"$f":"IFERROR(RIGHT(INDEX(данные,SUM(IF(IFERROR(FIND(тп&INDEX(UPPER(LEFT(коды,FIND(\" \",коды)-1)),ROW()),данные),0)>0,ROW(данные)))),LEN(INDEX(данные,SUM(IF(IFERROR(FIND(тп&INDEX(UPPER(LEFT(коды,FIND(\" \",коды)-1)),ROW()),данные),0)>0,ROW(данные)))))-FIND(\"ТЕЛЕФОН\",INDEX(данные,SUM(IF(IFERROR(FIND(тп&INDEX(UPPER(LEFT(коды,FIND(\" \",коды)-1)),ROW()),данные),0)>0,ROW(данные)))))-7),\"\")","v":""}]
["Чорнобай (Черк.) – 04739",{"$f":"IFERROR(RIGHT(INDEX(данные,SUM(IF(IFERROR(FIND(тп&INDEX(UPPER(LEFT(коды,FIND(\" \",коды)-1)),ROW()),данные),0)>0,ROW(данные)))),LEN(INDEX(данные,SUM(IF(IFERROR(FIND(тп&INDEX(UPPER(LEFT(коды,FIND(\" \",коды)-1)),ROW()),данные),0)>0,ROW(данные)))))-FIND(\"ТЕЛЕФОН\",INDEX(данные,SUM(IF(IFERROR(FIND(тп&INDEX(UPPER(LEFT(коды,FIND(\" \",коды)-1)),ROW()),данные),0)>0,ROW(данные)))))-7),\"\")","v":""}]
["Чорнобиль (Київ.) – 04493",{"$f":"IFERROR(RIGHT(INDEX(данные,SUM(IF(IFERROR(FIND(тп&INDEX(UPPER(LEFT(коды,FIND(\" \",коды)-1)),ROW()),данные),0)>0,ROW(данные)))),LEN(INDEX(данные,SUM(IF(IFERROR(FIND(тп&INDEX(UPPER(LEFT(коды,FIND(\" \",коды)-1)),ROW()),данные),0)>0,ROW(данные)))))-FIND(\"ТЕЛЕФОН\",INDEX(данные,SUM(IF(IFERROR(FIND(тп&INDEX(UPPER(LEFT(коды,FIND(\" \",коды)-1)),ROW()),данные),0)>0,ROW(данные)))))-7),\"\")","v":""}]
["Чорноморське (АРК) – 06558",{"$f":"IFERROR(RIGHT(INDEX(данные,SUM(IF(IFERROR(FIND(тп&INDEX(UPPER(LEFT(коды,FIND(\" \",коды)-1)),ROW()),данные),0)>0,ROW(данные)))),LEN(INDEX(данные,SUM(IF(IFERROR(FIND(тп&INDEX(UPPER(LEFT(коды,FIND(\" \",коды)-1)),ROW()),данные),0)>0,ROW(данные)))))-FIND(\"ТЕЛЕФОН\",INDEX(данные,SUM(IF(IFERROR(FIND(тп&INDEX(UPPER(LEFT(коды,FIND(\" \",коды)-1)),ROW()),данные),0)>0,ROW(данные)))))-7),\"\")","v":""}]
["Чорнухи (Полт.) – 05340",{"$f":"IFERROR(RIGHT(INDEX(данные,SUM(IF(IFERROR(FIND(тп&INDEX(UPPER(LEFT(коды,FIND(\" \",коды)-1)),ROW()),данные),0)>0,ROW(данные)))),LEN(INDEX(данные,SUM(IF(IFERROR(FIND(тп&INDEX(UPPER(LEFT(коды,FIND(\" \",коды)-1)),ROW()),данные),0)>0,ROW(данные)))))-FIND(\"ТЕЛЕФОН\",INDEX(данные,SUM(IF(IFERROR(FIND(тп&INDEX(UPPER(LEFT(коды,FIND(\" \",коды)-1)),ROW()),данные),0)>0,ROW(данные)))))-7),\"\")","v":""}]
["Чортків (Терн.) – 03552",{"$f":"IFERROR(RIGHT(INDEX(данные,SUM(IF(IFERROR(FIND(тп&INDEX(UPPER(LEFT(коды,FIND(\" \",коды)-1)),ROW()),данные),0)>0,ROW(данные)))),LEN(INDEX(данные,SUM(IF(IFERROR(FIND(тп&INDEX(UPPER(LEFT(коды,FIND(\" \",коды)-1)),ROW()),данные),0)>0,ROW(данные)))))-FIND(\"ТЕЛЕФОН\",INDEX(данные,SUM(IF(IFERROR(FIND(тп&INDEX(UPPER(LEFT(коды,FIND(\" \",коды)-1)),ROW()),данные),0)>0,ROW(данные)))))-7),\"\")","v":""}]
["Чугуїв (Харк.) – 05746",{"$f":"IFERROR(RIGHT(INDEX(данные,SUM(IF(IFERROR(FIND(тп&INDEX(UPPER(LEFT(коды,FIND(\" \",коды)-1)),ROW()),данные),0)>0,ROW(данные)))),LEN(INDEX(данные,SUM(IF(IFERROR(FIND(тп&INDEX(UPPER(LEFT(коды,FIND(\" \",коды)-1)),ROW()),данные),0)>0,ROW(данные)))))-FIND(\"ТЕЛЕФОН\",INDEX(данные,SUM(IF(IFERROR(FIND(тп&INDEX(UPPER(LEFT(коды,FIND(\" \",коды)-1)),ROW()),данные),0)>0,ROW(данные)))))-7),\"\")","v":""}]
["Чуднів (Жит.) – 04139",{"$f":"IFERROR(RIGHT(INDEX(данные,SUM(IF(IFERROR(FIND(тп&INDEX(UPPER(LEFT(коды,FIND(\" \",коды)-1)),ROW()),данные),0)>0,ROW(данные)))),LEN(INDEX(данные,SUM(IF(IFERROR(FIND(тп&INDEX(UPPER(LEFT(коды,FIND(\" \",коды)-1)),ROW()),данные),0)>0,ROW(данные)))))-FIND(\"ТЕЛЕФОН\",INDEX(данные,SUM(IF(IFERROR(FIND(тп&INDEX(UPPER(LEFT(коды,FIND(\" \",коды)-1)),ROW()),данные),0)>0,ROW(данные)))))-7),\"\")","v":""}]
["Чутове (Полт.) – 05347",{"$f":"IFERROR(RIGHT(INDEX(данные,SUM(IF(IFERROR(FIND(тп&INDEX(UPPER(LEFT(коды,FIND(\" \",коды)-1)),ROW()),данные),0)>0,ROW(данные)))),LEN(INDEX(данные,SUM(IF(IFERROR(FIND(тп&INDEX(UPPER(LEFT(коды,FIND(\" \",коды)-1)),ROW()),данные),0)>0,ROW(данные)))))-FIND(\"ТЕЛЕФОН\",INDEX(данные,SUM(IF(IFERROR(FIND(тп&INDEX(UPPER(LEFT(коды,FIND(\" \",коды)-1)),ROW()),данные),0)>0,ROW(данные)))))-7),\"\")","v":""}]
[null,{"$f":"IFERROR(RIGHT(INDEX(данные,SUM(IF(IFERROR(FIND(тп&INDEX(UPPER(LEFT(коды,FIND(\" \",коды)-1)),ROW()),данные),0)>0,ROW(данные)))),LEN(INDEX(данные,SUM(IF(IFERROR(FIND(тп&INDEX(UPPER(LEFT(коды,FIND(\" \",коды)-1)),ROW()),данные),0)>0,ROW(данные)))))-FIND(\"ТЕЛЕФОН\",INDEX(данные,SUM(IF(IFERROR(FIND(тп&INDEX(UPPER(LEFT(коды,FIND(\" \",коды)-1)),ROW()),данные),0)>0,ROW(данные)))))-7),\"\")","v":""}]
["Шаргород (Він.) – 04344",{"$f":"IFERROR(RIGHT(INDEX(данные,SUM(IF(IFERROR(FIND(тп&INDEX(UPPER(LEFT(коды,FIND(\" \",коды)-1)),ROW()),данные),0)>0,ROW(данные)))),LEN(INDEX(данные,SUM(IF(IFERROR(FIND(тп&INDEX(UPPER(LEFT(коды,FIND(\" \",коды)-1)),ROW()),данные),0)>0,ROW(данные)))))-FIND(\"ТЕЛЕФОН\",INDEX(данные,SUM(IF(IFERROR(FIND(тп&INDEX(UPPER(LEFT(коды,FIND(\" \",коды)-1)),ROW()),данные),0)>0,ROW(данные)))))-7),\"\")","v":""}]
["Шахтарськ (Дон.) – 06255",{"$f":"IFERROR(RIGHT(INDEX(данные,SUM(IF(IFERROR(FIND(тп&INDEX(UPPER(LEFT(коды,FIND(\" \",коды)-1)),ROW()),данные),0)>0,ROW(данные)))),LEN(INDEX(данные,SUM(IF(IFERROR(FIND(тп&INDEX(UPPER(LEFT(коды,FIND(\" \",коды)-1)),ROW()),данные),0)>0,ROW(данные)))))-FIND(\"ТЕЛЕФОН\",INDEX(данные,SUM(IF(IFERROR(FIND(тп&INDEX(UPPER(LEFT(коды,FIND(\" \",коды)-1)),ROW()),данные),0)>0,ROW(данные)))))-7),\"\")","v":""}]
["Шацьк (Вол.) – 03355",{"$f":"IFERROR(RIGHT(INDEX(данные,SUM(IF(IFERROR(FIND(тп&INDEX(UPPER(LEFT(коды,FIND(\" \",коды)-1)),ROW()),данные),0)>0,ROW(данные)))),LEN(INDEX(данные,SUM(IF(IFERROR(FIND(тп&INDEX(UPPER(LEFT(коды,FIND(\" \",коды)-1)),ROW()),данные),0)>0,ROW(данные)))))-FIND(\"ТЕЛЕФОН\",INDEX(данные,SUM(IF(IFERROR(FIND(тп&INDEX(UPPER(LEFT(коды,FIND(\" \",коды)-1)),ROW()),данные),0)>0,ROW(данные)))))-7),\"\")","v":""}]
["Шевченкове (Харк.) – 05751",{"$f":"IFERROR(RIGHT(INDEX(данные,SUM(IF(IFERROR(FIND(тп&INDEX(UPPER(LEFT(коды,FIND(\" \",коды)-1)),ROW()),данные),0)>0,ROW(данные)))),LEN(INDEX(данные,SUM(IF(IFERROR(FIND(тп&INDEX(UPPER(LEFT(коды,FIND(\" \",коды)-1)),ROW()),данные),0)>0,ROW(данные)))))-FIND(\"ТЕЛЕФОН\",INDEX(данные,SUM(IF(IFERROR(FIND(тп&INDEX(UPPER(LEFT(коды,FIND(\" \",коды)-1)),ROW()),данные),0)>0,ROW(данные)))))-7),\"\")","v":""}]
["Шепетівка (Хм.) – 03840",{"$f":"IFERROR(RIGHT(INDEX(данные,SUM(IF(IFERROR(FIND(тп&INDEX(UPPER(LEFT(коды,FIND(\" \",коды)-1)),ROW()),данные),0)>0,ROW(данные)))),LEN(INDEX(данные,SUM(IF(IFERROR(FIND(тп&INDEX(UPPER(LEFT(коды,FIND(\" \",коды)-1)),ROW()),данные),0)>0,ROW(данные)))))-FIND(\"ТЕЛЕФОН\",INDEX(данные,SUM(IF(IFERROR(FIND(тп&INDEX(UPPER(LEFT(коды,FIND(\" \",коды)-1)),ROW()),данные),0)>0,ROW(данные)))))-7),\"\")","v":""}]
["Широке (Дн.) – 05657",{"$f":"IFERROR(RIGHT(INDEX(данные,SUM(IF(IFERROR(FIND(тп&INDEX(UPPER(LEFT(коды,FIND(\" \",коды)-1)),ROW()),данные),0)>0,ROW(данные)))),LEN(INDEX(данные,SUM(IF(IFERROR(FIND(тп&INDEX(UPPER(LEFT(коды,FIND(\" \",коды)-1)),ROW()),данные),0)>0,ROW(данные)))))-FIND(\"ТЕЛЕФОН\",INDEX(данные,SUM(IF(IFERROR(FIND(тп&INDEX(UPPER(LEFT(коды,FIND(\" \",коды)-1)),ROW()),данные),0)>0,ROW(данные)))))-7),\"\")","v":""}]
["Ширяєве (Од.) – 04858",{"$f":"IFERROR(RIGHT(INDEX(данные,SUM(IF(IFERROR(FIND(тп&INDEX(UPPER(LEFT(коды,FIND(\" \",коды)-1)),ROW()),данные),0)>0,ROW(данные)))),LEN(INDEX(данные,SUM(IF(IFERROR(FIND(тп&INDEX(UPPER(LEFT(коды,FIND(\" \",коды)-1)),ROW()),данные),0)>0,ROW(данные)))))-FIND(\"ТЕЛЕФОН\",INDEX(данные,SUM(IF(IFERROR(FIND(тп&INDEX(UPPER(LEFT(коды,FIND(\" \",коды)-1)),ROW()),данные),0)>0,ROW(данные)))))-7),\"\")","v":""}]
["Шишаки (Полт.) – 05352",{"$f":"IFERROR(RIGHT(INDEX(данные,SUM(IF(IFERROR(FIND(тп&INDEX(UPPER(LEFT(коды,FIND(\" \",коды)-1)),ROW()),данные),0)>0,ROW(данные)))),LEN(INDEX(данные,SUM(IF(IFERROR(FIND(тп&INDEX(UPPER(LEFT(коды,FIND(\" \",коды)-1)),ROW()),данные),0)>0,ROW(данные)))))-FIND(\"ТЕЛЕФОН\",INDEX(данные,SUM(IF(IFERROR(FIND(тп&INDEX(UPPER(LEFT(коды,FIND(\" \",коды)-1)),ROW()),данные),0)>0,ROW(данные)))))-7),\"\")","v":""}]
["Шкло (Льв.) – 03259",{"$f":"IFERROR(RIGHT(INDEX(данные,SUM(IF(IFERROR(FIND(тп&INDEX(UPPER(LEFT(коды,FIND(\" \",коды)-1)),ROW()),данные),0)>0,ROW(данные)))),LEN(INDEX(данные,SUM(IF(IFERROR(FIND(тп&INDEX(UPPER(LEFT(коды,FIND(\" \",коды)-1)),ROW()),данные),0)>0,ROW(данные)))))-FIND(\"ТЕЛЕФОН\",INDEX(данные,SUM(IF(IFERROR(FIND(тп&INDEX(UPPER(LEFT(коды,FIND(\" \",коды)-1)),ROW()),данные),0)>0,ROW(данные)))))-7),\"\")","v":""}]
["Шостка (Сум.) – 05449",{"$f":"IFERROR(RIGHT(INDEX(данные,SUM(IF(IFERROR(FIND(тп&INDEX(UPPER(LEFT(коды,FIND(\" \",коды)-1)),ROW()),данные),0)>0,ROW(данные)))),LEN(INDEX(данные,SUM(IF(IFERROR(FIND(тп&INDEX(UPPER(LEFT(коды,FIND(\" \",коды)-1)),ROW()),данные),0)>0,ROW(данные)))))-FIND(\"ТЕЛЕФОН\",INDEX(данные,SUM(IF(IFERROR(FIND(тп&INDEX(UPPER(LEFT(коды,FIND(\" \",коды)-1)),ROW()),данные),0)>0,ROW(данные)))))-7),\"\")","v":""}]
["Шпола (Черк.) – 04741",{"$f":"IFERROR(RIGHT(INDEX(данные,SUM(IF(IFERROR(FIND(тп&INDEX(UPPER(LEFT(коды,FIND(\" \",коды)-1)),ROW()),данные),0)>0,ROW(данные)))),LEN(INDEX(данные,SUM(IF(IFERROR(FIND(тп&INDEX(UPPER(LEFT(коды,FIND(\" \",коды)-1)),ROW()),данные),0)>0,ROW(данные)))))-FIND(\"ТЕЛЕФОН\",INDEX(данные,SUM(IF(IFERROR(FIND(тп&INDEX(UPPER(LEFT(коды,FIND(\" \",коды)-1)),ROW()),данные),0)>0,ROW(данные)))))-7),\"\")","v":""}]
["Шумське (Терн.) – 03558",{"$f":"IFERROR(RIGHT(INDEX(данные,SUM(IF(IFERROR(FIND(тп&INDEX(UPPER(LEFT(коды,FIND(\" \",коды)-1)),ROW()),данные),0)>0,ROW(данные)))),LEN(INDEX(данные,SUM(IF(IFERROR(FIND(тп&INDEX(UPPER(LEFT(коды,FIND(\" \",коды)-1)),ROW()),данные),0)>0,ROW(данные)))))-FIND(\"ТЕЛЕФОН\",INDEX(данные,SUM(IF(IFERROR(FIND(тп&INDEX(UPPER(LEFT(коды,FIND(\" \",коды)-1)),ROW()),данные),0)>0,ROW(данные)))))-7),\"\")","v":""}]
[null,{"$f":"IFERROR(RIGHT(INDEX(данные,SUM(IF(IFERROR(FIND(тп&INDEX(UPPER(LEFT(коды,FIND(\" \",коды)-1)),ROW()),данные),0)>0,ROW(данные)))),LEN(INDEX(данные,SUM(IF(IFERROR(FIND(тп&INDEX(UPPER(LEFT(коды,FIND(\" \",коды)-1)),ROW()),данные),0)>0,ROW(данные)))))-FIND(\"ТЕЛЕФОН\",INDEX(данные,SUM(IF(IFERROR(FIND(тп&INDEX(UPPER(LEFT(коды,FIND(\" \",коды)-1)),ROW()),данные),0)>0,ROW(данные)))))-7),\"\")","v":""}]
["Щебетовка (АРК) – 06566",{"$f":"IFERROR(RIGHT(INDEX(данные,SUM(IF(IFERROR(FIND(тп&INDEX(UPPER(LEFT(коды,FIND(\" \",коды)-1)),ROW()),данные),0)>0,ROW(данные)))),LEN(INDEX(данные,SUM(IF(IFERROR(FIND(тп&INDEX(UPPER(LEFT(коды,FIND(\" \",коды)-1)),ROW()),данные),0)>0,ROW(данные)))))-FIND(\"ТЕЛЕФОН\",INDEX(данные,SUM(IF(IFERROR(FIND(тп&INDEX(UPPER(LEFT(коды,FIND(\" \",коды)-1)),ROW()),данные),0)>0,ROW(данные)))))-7),\"\")","v":""}]
["Щолкіне (АРК) – 06557",{"$f":"IFERROR(RIGHT(INDEX(данные,SUM(IF(IFERROR(FIND(тп&INDEX(UPPER(LEFT(коды,FIND(\" \",коды)-1)),ROW()),данные),0)>0,ROW(данные)))),LEN(INDEX(данные,SUM(IF(IFERROR(FIND(тп&INDEX(UPPER(LEFT(коды,FIND(\" \",коды)-1)),ROW()),данные),0)>0,ROW(данные)))))-FIND(\"ТЕЛЕФОН\",INDEX(данные,SUM(IF(IFERROR(FIND(тп&INDEX(UPPER(LEFT(коды,FIND(\" \",коды)-1)),ROW()),данные),0)>0,ROW(данные)))))-7),\"\")","v":""}]
["Щорс (Черніг.) – 04654",{"$f":"IFERROR(RIGHT(INDEX(данные,SUM(IF(IFERROR(FIND(тп&INDEX(UPPER(LEFT(коды,FIND(\" \",коды)-1)),ROW()),данные),0)>0,ROW(данные)))),LEN(INDEX(данные,SUM(IF(IFERROR(FIND(тп&INDEX(UPPER(LEFT(коды,FIND(\" \",коды)-1)),ROW()),данные),0)>0,ROW(данные)))))-FIND(\"ТЕЛЕФОН\",INDEX(данные,SUM(IF(IFERROR(FIND(тп&INDEX(UPPER(LEFT(коды,FIND(\" \",коды)-1)),ROW()),данные),0)>0,ROW(данные)))))-7),\"\")","v":""}]
[null,{"$f":"IFERROR(RIGHT(INDEX(данные,SUM(IF(IFERROR(FIND(тп&INDEX(UPPER(LEFT(коды,FIND(\" \",коды)-1)),ROW()),данные),0)>0,ROW(данные)))),LEN(INDEX(данные,SUM(IF(IFERROR(FIND(тп&INDEX(UPPER(LEFT(коды,FIND(\" \",коды)-1)),ROW()),данные),0)>0,ROW(данные)))))-FIND(\"ТЕЛЕФОН\",INDEX(данные,SUM(IF(IFERROR(FIND(тп&INDEX(UPPER(LEFT(коды,FIND(\" \",коды)-1)),ROW()),данные),0)>0,ROW(данные)))))-7),\"\")","v":""}]
["Южноукраїнськ (Мик.) – 05136",{"$f":"IFERROR(RIGHT(INDEX(данные,SUM(IF(IFERROR(FIND(тп&INDEX(UPPER(LEFT(коды,FIND(\" \",коды)-1)),ROW()),данные),0)>0,ROW(данные)))),LEN(INDEX(данные,SUM(IF(IFERROR(FIND(тп&INDEX(UPPER(LEFT(коды,FIND(\" \",коды)-1)),ROW()),данные),0)>0,ROW(данные)))))-FIND(\"ТЕЛЕФОН\",INDEX(данные,SUM(IF(IFERROR(FIND(тп&INDEX(UPPER(LEFT(коды,FIND(\" \",коды)-1)),ROW()),данные),0)>0,ROW(данные)))))-7),\"\")","v":""}]
["Юр'євка (Дн.) – 05635",{"$f":"IFERROR(RIGHT(INDEX(данные,SUM(IF(IFERROR(FIND(тп&INDEX(UPPER(LEFT(коды,FIND(\" \",коды)-1)),ROW()),данные),0)>0,ROW(данные)))),LEN(INDEX(данные,SUM(IF(IFERROR(FIND(тп&INDEX(UPPER(LEFT(коды,FIND(\" \",коды)-1)),ROW()),данные),0)>0,ROW(данные)))))-FIND(\"ТЕЛЕФОН\",INDEX(данные,SUM(IF(IFERROR(FIND(тп&INDEX(UPPER(LEFT(коды,FIND(\" \",коды)-1)),ROW()),данные),0)>0,ROW(данные)))))-7),\"\")","v":""}]
[null,{"$f":"IFERROR(RIGHT(INDEX(данные,SUM(IF(IFERROR(FIND(тп&INDEX(UPPER(LEFT(коды,FIND(\" \",коды)-1)),ROW()),данные),0)>0,ROW(данные)))),LEN(INDEX(данные,SUM(IF(IFERROR(FIND(тп&INDEX(UPPER(LEFT(коды,FIND(\" \",коды)-1)),ROW()),данные),0)>0,ROW(данные)))))-FIND(\"ТЕЛЕФОН\",INDEX(данные,SUM(IF(IFERROR(FIND(тп&INDEX(UPPER(LEFT(коды,FIND(\" \",коды)-1)),ROW()),данные),0)>0,ROW(данные)))))-7),\"\")","v":""}]
["Яблунець (Жит.) – 04149",{"$f":"IFERROR(RIGHT(INDEX(данные,SUM(IF(IFERROR(FIND(тп&INDEX(UPPER(LEFT(коды,FIND(\" \",коды)-1)),ROW()),данные),0)>0,ROW(данные)))),LEN(INDEX(данные,SUM(IF(IFERROR(FIND(тп&INDEX(UPPER(LEFT(коды,FIND(\" \",коды)-1)),ROW()),данные),0)>0,ROW(данные)))))-FIND(\"ТЕЛЕФОН\",INDEX(данные,SUM(IF(IFERROR(FIND(тп&INDEX(UPPER(LEFT(коды,FIND(\" \",коды)-1)),ROW()),данные),0)>0,ROW(данные)))))-7),\"\")","v":""}]
["Яворів (Льв.) – 03259",{"$f":"IFERROR(RIGHT(INDEX(данные,SUM(IF(IFERROR(FIND(тп&INDEX(UPPER(LEFT(коды,FIND(\" \",коды)-1)),ROW()),данные),0)>0,ROW(данные)))),LEN(INDEX(данные,SUM(IF(IFERROR(FIND(тп&INDEX(UPPER(LEFT(коды,FIND(\" \",коды)-1)),ROW()),данные),0)>0,ROW(данные)))))-FIND(\"ТЕЛЕФОН\",INDEX(данные,SUM(IF(IFERROR(FIND(тп&INDEX(UPPER(LEFT(коды,FIND(\" \",коды)-1)),ROW()),данные),0)>0,ROW(данные)))))-7),\"\")","v":""}]
["Яготин (Київ.) – 04475",{"$f":"IFERROR(RIGHT(INDEX(данные,SUM(IF(IFERROR(FIND(тп&INDEX(UPPER(LEFT(коды,FIND(\" \",коды)-1)),ROW()),данные),0)>0,ROW(данные)))),LEN(INDEX(данные,SUM(IF(IFERROR(FIND(тп&INDEX(UPPER(LEFT(коды,FIND(\" \",коды)-1)),ROW()),данные),0)>0,ROW(данные)))))-FIND(\"ТЕЛЕФОН\",INDEX(данные,SUM(IF(IFERROR(FIND(тп&INDEX(UPPER(LEFT(коды,FIND(\" \",коды)-1)),ROW()),данные),0)>0,ROW(данные)))))-7),\"\")","v":""}]
["Якимівка (Зап.) – 06131",{"$f":"IFERROR(RIGHT(INDEX(данные,SUM(IF(IFERROR(FIND(тп&INDEX(UPPER(LEFT(коды,FIND(\" \",коды)-1)),ROW()),данные),0)>0,ROW(данные)))),LEN(INDEX(данные,SUM(IF(IFERROR(FIND(тп&INDEX(UPPER(LEFT(коды,FIND(\" \",коды)-1)),ROW()),данные),0)>0,ROW(данные)))))-FIND(\"ТЕЛЕФОН\",INDEX(данные,SUM(IF(IFERROR(FIND(тп&INDEX(UPPER(LEFT(коды,FIND(\" \",коды)-1)),ROW()),данные),0)>0,ROW(данные)))))-7),\"\")","v":""}]
["Ялта (Дон.) – 06297",{"$f":"IFERROR(RIGHT(INDEX(данные,SUM(IF(IFERROR(FIND(тп&INDEX(UPPER(LEFT(коды,FIND(\" \",коды)-1)),ROW()),данные),0)>0,ROW(данные)))),LEN(INDEX(данные,SUM(IF(IFERROR(FIND(тп&INDEX(UPPER(LEFT(коды,FIND(\" \",коды)-1)),ROW()),данные),0)>0,ROW(данные)))))-FIND(\"ТЕЛЕФОН\",INDEX(данные,SUM(IF(IFERROR(FIND(тп&INDEX(UPPER(LEFT(коды,FIND(\" \",коды)-1)),ROW()),данные),0)>0,ROW(данные)))))-7),\"\")","v":""}]
["Ялта (АРК) – 0654",{"$f":"IFERROR(RIGHT(INDEX(данные,SUM(IF(IFERROR(FIND(тп&INDEX(UPPER(LEFT(коды,FIND(\" \",коды)-1)),ROW()),данные),0)>0,ROW(данные)))),LEN(INDEX(данные,SUM(IF(IFERROR(FIND(тп&INDEX(UPPER(LEFT(коды,FIND(\" \",коды)-1)),ROW()),данные),0)>0,ROW(данные)))))-FIND(\"ТЕЛЕФОН\",INDEX(данные,SUM(IF(IFERROR(FIND(тп&INDEX(UPPER(LEFT(коды,FIND(\" \",коды)-1)),ROW()),данные),0)>0,ROW(данные)))))-7),\"\")","v":""}]
["Ямпіпь (Він.) – 04336",{"$f":"IFERROR(RIGHT(INDEX(данные,SUM(IF(IFERROR(FIND(тп&INDEX(UPPER(LEFT(коды,FIND(\" \",коды)-1)),ROW()),данные),0)>0,ROW(данные)))),LEN(INDEX(данные,SUM(IF(IFERROR(FIND(тп&INDEX(UPPER(LEFT(коды,FIND(\" \",коды)-1)),ROW()),данные),0)>0,ROW(данные)))))-FIND(\"ТЕЛЕФОН\",INDEX(данные,SUM(IF(IFERROR(FIND(тп&INDEX(UPPER(LEFT(коды,FIND(\" \",коды)-1)),ROW()),данные),0)>0,ROW(данные)))))-7),\"\")","v":""}]
["Ямпіль (Сум.) – 05456",{"$f":"IFERROR(RIGHT(INDEX(данные,SUM(IF(IFERROR(FIND(тп&INDEX(UPPER(LEFT(коды,FIND(\" \",коды)-1)),ROW()),данные),0)>0,ROW(данные)))),LEN(INDEX(данные,SUM(IF(IFERROR(FIND(тп&INDEX(UPPER(LEFT(коды,FIND(\" \",коды)-1)),ROW()),данные),0)>0,ROW(данные)))))-FIND(\"ТЕЛЕФОН\",INDEX(данные,SUM(IF(IFERROR(FIND(тп&INDEX(UPPER(LEFT(коды,FIND(\" \",коды)-1)),ROW()),данные),0)>0,ROW(данные)))))-7),\"\")","v":""}]
["Ямпіль (Хм.) – 03841",{"$f":"IFERROR(RIGHT(INDEX(данные,SUM(IF(IFERROR(FIND(тп&INDEX(UPPER(LEFT(коды,FIND(\" \",коды)-1)),ROW()),данные),0)>0,ROW(данные)))),LEN(INDEX(данные,SUM(IF(IFERROR(FIND(тп&INDEX(UPPER(LEFT(коды,FIND(\" \",коды)-1)),ROW()),данные),0)>0,ROW(данные)))))-FIND(\"ТЕЛЕФОН\",INDEX(данные,SUM(IF(IFERROR(FIND(тп&INDEX(UPPER(LEFT(коды,FIND(\" \",коды)-1)),ROW()),данные),0)>0,ROW(данные)))))-7),\"\")","v":""}]
["Яремча (Ів.-Фр.) – 03434",{"$f":"IFERROR(RIGHT(INDEX(данные,SUM(IF(IFERROR(FIND(тп&INDEX(UPPER(LEFT(коды,FIND(\" \",коды)-1)),ROW()),данные),0)>0,ROW(данные)))),LEN(INDEX(данные,SUM(IF(IFERROR(FIND(тп&INDEX(UPPER(LEFT(коды,FIND(\" \",коды)-1)),ROW()),данные),0)>0,ROW(данные)))))-FIND(\"ТЕЛЕФОН\",INDEX(данные,SUM(IF(IFERROR(FIND(тп&INDEX(UPPER(LEFT(коды,FIND(\" \",коды)-1)),ROW()),данные),0)>0,ROW(данные)))))-7),\"\")","v":""}]
["Ярмолинці (Хм.) – 03853",{"$f":"IFERROR(RIGHT(INDEX(данные,SUM(IF(IFERROR(FIND(тп&INDEX(UPPER(LEFT(коды,FIND(\" \",коды)-1)),ROW()),данные),0)>0,ROW(данные)))),LEN(INDEX(данные,SUM(IF(IFERROR(FIND(тп&INDEX(UPPER(LEFT(коды,FIND(\" \",коды)-1)),ROW()),данные),0)>0,ROW(данные)))))-FIND(\"ТЕЛЕФОН\",INDEX(данные,SUM(IF(IFERROR(FIND(тп&INDEX(UPPER(LEFT(коды,FIND(\" \",коды)-1)),ROW()),данные),0)>0,ROW(данные)))))-7),\"\")","v":""}]
["Ясинувата (Дон.) – 06236 ",{"$f":"IFERROR(RIGHT(INDEX(данные,SUM(IF(IFERROR(FIND(тп&INDEX(UPPER(LEFT(коды,FIND(\" \",коды)-1)),ROW()),данные),0)>0,ROW(данные)))),LEN(INDEX(данные,SUM(IF(IFERROR(FIND(тп&INDEX(UPPER(LEFT(коды,FIND(\" \",коды)-1)),ROW()),данные),0)>0,ROW(данные)))))-FIND(\"ТЕЛЕФОН\",INDEX(данные,SUM(IF(IFERROR(FIND(тп&INDEX(UPPER(LEFT(коды,FIND(\" \",коды)-1)),ROW()),данные),0)>0,ROW(данные)))))-7),\"\")","v":""}]